Workbook

Sheet Moodus
A1: =YTD!L15 -> Moodus
B2: Team | C2: Fish | D2: Member | E2: Show | F2: Non | G2: Number | H2: Number | I2: Number | J2: Lunker | K2: Species | L2: Gross | M2: Total | N2: Net | O2: Points | P2: Non Boater | Q2: # Non-
B3: Number | C3: Alone? | D3: Name | E3: Up? | F3: Boater? | G3: of LMB | H3: of SMB | I3: Dead | J3: Weight | K3: LMB/SMB | L3: Weight | M3: Caught | N3: Weight | O3: Awarded | P3: Weight | Q3: Boaters
A4: 1 | B4: 5 | C4: N | D4: =YTD!P15 -> Anthony | E4: Y | F4: =YTD!Q15 -> Y | G4: 1 | L4: 0.88 | M4: =G4+H4 -> 1 | N4: =L4-(I4*0.2) -> 0.88 | O4: =IF($E4="N",35,IF($M4=0,30,RANK($N4,$N$4:$N$29,0))) -> 18 | P4: =IF(F4="Y",N4,0) -> 0.88 | Q4: =IF(E4="N",0,(IF(F4="N",0,1))) -> 1
A5: 2 | B5: 9 | C5: N | D5: =YTD!P16 -> Armand | E5: Y | F5: =YTD!Q16 -> N | G5: 2 | L5: 1.98 | M5: 2 | N5: 1.98 | O5: =IF($E5="N",35,IF($M5=0,30,RANK($N5,$N$4:$N$29,0))) -> 7 | P5: 0 | Q5: =IF(E5="N",0,(IF(F5="N",0,1))) -> 0
A6: 3 | B6: 2 | C6: N | D6: =YTD!P17 -> Dean | E6: Y | F6: =YTD!Q17 -> N | G6: 3 | J6: 5.84 | K6: LMB | L6: 8.4 | M6: =G6+H6 -> 3 | N6: =L6-(I6*0.2) -> 8.4 | O6: 1 | P6: =IF(F6="Y",N6,0) -> 0 | Q6: 0
A7: 4 | B7: 6 | C7: N | D7: =YTD!P18 -> Jack | E7: Y | F7: =YTD!Q18 -> Y | G7: 2 | L7: 1.75 | M7: 2 | N7: 1.75 | O7: 8 | P7: 1.75 | Q7: 1
A8: 5 | B8: 8 | C8: N | D8: =YTD!P19 -> Jason | E8: Y | F8: =YTD!Q19 -> N | G8: 0 | L8: 0 | M8: =G8+H8 -> 0 | N8: =L8-(I8*0.2) -> 0 | O8: 30 | P8: =IF(F8="Y",N8,0) -> 0 | Q8: 0
A9: 6 | B9: 2 | C9: N | D9: =YTD!P20 -> Jim B | E9: Y | F9: =YTD!Q20 -> Y | G9: 1 | L9: 1.07 | M9: 1 | N9: 1.07 | O9: 13 | P9: 1.07 | Q9: 1
A10: 7 | B10: 1 | C10: N | D10: =YTD!P21 -> Kam | E10: Y | F10: =YTD!Q21 -> Y | G10: 1 | L10: 1.01 | M10: 1 | N10: 1.01 | O10: 15 | P10: 1.01 | Q10: 1
A11: 8 | B11: 4 | C11: N | D11: =YTD!P22 -> Kevin | E11: Y | F11: =YTD!Q22 -> N | G11: 5 | L11: 5.21 | M11: =G11+H11 -> 5 | N11: =L11-(I11*0.2) -> 5.21 | O11: 2 | P11: =IF(F11="Y",N11,0) -> 0 | Q11: 0
A12: 9 | B12: 4 | C12: N | D12: =YTD!P23 -> Mike M | E12: Y | F12: =YTD!Q23 -> Y | G12: 1 | L12: 0.94 | M12: 1 | N12: 0.94 | O12: 16 | P12: 0.94 | Q12: 1
A13: 10 | B13: 10 | C13: N | D13: =YTD!P24 -> Mike G | E13: Y | F13: =YTD!Q24 -> Y | G13: 3 | L13: 3.15 | M13: 3 | N13: 3.15 | O13: 5 | P13: 3.15 | Q13: 1
A14: 11 | B14: 10 | C14: N | D14: =YTD!P25 -> Morrie | E14: Y | F14: =YTD!Q25 -> N | G14: 2 | L14: 1.71 | M14: 2 | N14: 1.71 | O14: 9 | P14: 0 | Q14: 0
A15: 12 | B15: 8 | C15: N | D15: =YTD!P26 -> Peter | E15: Y | F15: =YTD!Q26 -> Y | G15: 4 | L15: 3.97 | M15: 4 | N15: 3.97 | O15: 4 | P15: 3.97 | Q15: 1
A16: 13 | B16: 7 | C16: N | D16: =YTD!P27 -> Rich B | E16: Y | F16: Y | G16: 0 | L16: 0 | M16: 0 | N16: 0 | O16: 30 | P16: 0 | Q16: 1
A17: 14 | B17: 3 | C17: N | D17: =YTD!P28 -> Rich T | E17: Y | F17: =YTD!Q28 -> Y | G17: 3 | L17: 2.77 | M17: 3 | N17: 2.77 | O17: 6 | P17: 2.77 | Q17: 1
A18: 15 | B18: 3 | C18: N | D18: =YTD!P29 -> Ron | E18: Y | F18: =YTD!Q29 -> N | G18: 1 | L18: 1.1 | M18: =G18+H18 -> 1 | N18: =L18-(I18*0.2) -> 1.1 | O18: 12 | P18: 0 | Q18: 0
A19: 16 | B19: 9 | C19: N | D19: =YTD!P30 -> Ryan | E19: Y | F19: =YTD!Q30 -> Y | G19: 1 | L19: 1.21 | M19: 1 | N19: 1.21 | O19: 10 | P19: 1.21 | Q19: 1
A20: 17 | B20: 7 | C20: N | D20: =YTD!P31 -> Scott | E20: Y | F20: =YTD!Q31 -> N | G20: 1 | L20: 0.91 | M20: =G20+H20 -> 1 | N20: =L20-(I20*0.2) -> 0.91 | O20: 17 | P20: =IF(F20="Y",N20,0) -> 0 | Q20: 0
A21: 18 | B21: 1 | C21: N | D21: =YTD!P32 -> Steve D | E21: Y | F21: =YTD!Q32 -> N | G21: 5 | L21: 4.96 | M21: 5 | N21: 4.96 | O21: 3 | P21: 0 | Q21: 0
A22: 19 | B22: 5 | C22: N | D22: =YTD!P33 -> Steve S | E22: Y | F22: =YTD!Q33 -> N | G22: 1 | L22: 1.15 | M22: 1 | N22: 1.15 | O22: 11 | P22: 0 | Q22: 0
A23: 20 | B23: 6 | C23: N | D23: =YTD!P34 -> Tom | E23: Y | F23: =YTD!Q34 -> N | G23: 1 | L23: 1.04 | M23: =G23+H23 -> 1 | N23: =L23-(I23*0.2) -> 1.04 | O23: 14 | P23: 0 | Q23: 0
A24: 21 | C24: N | D24: =YTD!P35 -> X | E24: N | F24: =YTD!Q35 -> N | M24: 0 | N24: 0 | O24: 35 | P24: 0 | Q24: 0
A25: 22 | C25: N | D25: =YTD!P36 -> X | E25: N | F25: =YTD!Q36 -> N | M25: 0 | N25: 0 | O25: 35 | P25: 0 | Q25: 0
A26: 23 | C26: N | D26: =YTD!P37 -> X | E26: N | F26: =YTD!Q37 -> N | M26: 0 | N26: 0 | O26: 35 | P26: 0 | Q26: 0
A27: 24 | C27: N | D27: =YTD!P38 -> X | E27: N | F27: =YTD!Q38 -> N | M27: 0 | N27: 0 | O27: 35 | P27: 0 | Q27: 0
A28: 25 | C28: N | D28: =YTD!P39 -> X | E28: N | F28: =YTD!Q39 -> N | M28: =G28+H28 -> 0 | N28: =L28-(I28*0.2) -> 0 | O28: 35 | P28: =IF(F28="Y",N28,0) -> 0 | Q28: =IF(E28="N",0,(IF(F28="N",0,1))) -> 0
A29: 26 | C29: N | D29: =YTD!P40 -> X | E29: N | F29: =YTD!Q40 -> N | M29: =G29+H29 -> 0 | N29: =L29-(I29*0.2) -> 0 | O29: 35 | P29: =IF(F29="Y",N29,0) -> 0 | Q29: =IF(E29="N",0,(IF(F29="N",0,1))) -> 0
D30: Totals | E30: =COUNTIF(E4:E29,"Y") -> 20 | G30: =SUM(G4:G29) -> 38 | H30: =SUM(H4:H29) -> 0 | I30: =SUM(I4:I29) -> 0 | J30: =MAX(J4:J29) -> 5.84 | L30: =SUM(L4:L29) -> 43.21 | M30: =SUM(M4:M29) -> 38 | N30: =SUM(N4:N29) -> 43.21 | P30: =SUM(P4:P29) -> 16.75 | Q30: =SUM(Q4:Q29) -> 10
B31: Place | C31: Team # | D31: Partners | G31: Total Weight | I31: Place | J31: Team # | K31: Partners | N31: Total Weight | P31: NB Avg | Q31: =IF(Q30=0,"No Data",P30/Q30) -> 1.675
B32: 1st | C32: =Teams!N4 -> 2 | D32: =VLOOKUP($C32,$B$4:$D$29,3,0) -> Dean | E32: & | F32: =IF($B$4:$B$29=20,"#N/A",IF(COUNTIF($B$4:$B$29,$C32)=1,"Alone",LOOKUP(2,1/($B$4:$B$29=$C32),$D$4:$D$29))) -> Jim B | G32: =Teams!O4 -> 9.47 | I32: 4th | J32: =Teams!N7 -> 10 | K32: =VLOOKUP($J32,$B$4:$D$29,3,0) -> Mike G | L32: & | M32: =IF($B$4:$B$29=20,"#N/A",IF(COUNTIF($B$4:$B$29,$J32)=1,"Alone",LOOKUP(2,1/($B$4:$B$29=$J32),$D$4:$D$29))) -> Morrie | N32: =Teams!O7 -> 4.86
B33: 2nd | C33: =Teams!N5 -> 4 | D33: =VLOOKUP($C33,$B$4:$D$29,3,0) -> Kevin | E33: & | F33: =IF($B$4:$B$29=20,"#N/A",IF(COUNTIF($B$4:$B$29,$C33)=1,"Alone",LOOKUP(2,1/($B$4:$B$29=$C33),$D$4:$D$29))) -> Mike M | G33: =Teams!O5 -> 6.15 | I33: 5th | J33: =Teams!N8 -> 8 | K33: =VLOOKUP($J33,$B$4:$D$29,3,0) -> Jason | L33: & | M33: =IF($B$4:$B$29=20,"#N/A",IF(COUNTIF($B$4:$B$29,$J33)=1,"Alone",LOOKUP(2,1/($B$4:$B$29=$J33),$D$4:$D$29))) -> Peter | N33: =Teams!O8 -> 3.91
B34: 3rd | C34: =Teams!N6 -> 1 | D34: =VLOOKUP($C34,$B$4:$D$29,3,0) -> Kam | E34: & | F34: =IF($B$4:$B$29=20,"#N/A",IF(COUNTIF($B$4:$B$29,$C34)=1,"Alone",LOOKUP(2,1/($B$4:$B$29=$C34),$D$4:$D$29))) -> Steve D | G34: =Teams!O6 -> 5.97 | I34: 6th | J34: =Teams!N9 -> 3 | K34: =VLOOKUP($J34,$B$4:$D$29,3,0) -> Rich T | L34: & | M34: =IF($B$4:$B$29=20,"#N/A",IF(COUNTIF($B$4:$B$29,$J34)=1,"Alone",LOOKUP(2,1/($B$4:$B$29=$J34),$D$4:$D$29))) -> Ron | N34: =Teams!O9 -> 3.87

Sheet Bantam
A1: =YTD!L16 -> Bantam
B2: Team | C2: Fish | D2: Member | E2: Show | F2: Non | G2: Number | H2: Number | I2: Number | J2: Lunker | K2: Species | L2: Gross | M2: Total | N2: Net | O2: Points | P2: Non Boater | Q2: # Non-
B3: Number | C3: Alone? | D3: Name | E3: Up? | F3: Boater? | G3: of LMB | H3: of SMB | I3: Dead | J3: Weight | K3: LMB/SMB | L3: Weight | M3: Caught | N3: Weight | O3: Awarded | P3: Weight | Q3: Boaters
A4: 1 | B4: 1 | C4: N | D4: =YTD!P15 -> Anthony | E4: Y | F4: =YTD!Q15 -> Y | G4: 1 | H4: 1 | L4: 3.04 | M4: =G4+H4 -> 2 | N4: =L4-(I4*0.2) -> 3.04 | O4: =IF($E4="N",35,IF($M4=0,30,RANK($N4,$N$4:$N$29,0))) -> 8 | P4: =IF(F4="Y",N4,0) -> 3.04 | Q4: =IF(E4="N",0,(IF(F4="N",0,1))) -> 1
A5: 2 | B5: 6 | C5: N | D5: =YTD!P16 -> Armand | E5: Y | F5: =YTD!Q16 -> N | G5: 4 | H5: 1 | L5: 11.29 | M5: 5 | N5: 11.29 | O5: =IF($E5="N",35,IF($M5=0,30,RANK($N5,$N$4:$N$29,0))) -> 4 | P5: 0 | Q5: =IF(E5="N",0,(IF(F5="N",0,1))) -> 0
A6: 3 | B6: 1 | C6: N | D6: =YTD!P17 -> Dean | E6: Y | F6: =YTD!Q17 -> N | G6: 4 | L6: 12.7 | M6: =G6+H6 -> 4 | N6: =L6-(I6*0.2) -> 12.7 | O6: 1 | P6: =IF(F6="Y",N6,0) -> 0 | Q6: 0
A7: 4 | B7: 6 | C7: N | D7: =YTD!P18 -> Jack | E7: Y | F7: =YTD!Q18 -> Y | G7: 0 | M7: 0 | N7: 0 | O7: 30 | P7: 0 | Q7: 1
A8: 5 | B8: 7 | C8: N | D8: =YTD!P19 -> Jason | E8: Y | F8: =YTD!Q19 -> N | G8: 2 | H8: 1 | L8: 4.95 | M8: =G8+H8 -> 3 | N8: =L8-(I8*0.2) -> 4.95 | O8: 5 | P8: =IF(F8="Y",N8,0) -> 0 | Q8: 0
A9: 6 | C9: N | D9: =YTD!P20 -> Jim B | E9: N | F9: =YTD!Q20 -> Y | M9: 0 | N9: 0 | O9: 35 | P9: 0 | Q9: 0
A10: 7 | C10: N | D10: =YTD!P21 -> Kam | E10: N | F10: =YTD!Q21 -> Y | M10: 0 | N10: 0 | O10: 35 | P10: 0 | Q10: 0
A11: 8 | B11: 3 | C11: N | D11: =YTD!P22 -> Kevin | E11: Y | F11: =YTD!Q22 -> N | G11: 4 | H11: 1 | J11: 5.73 | K11: LMB | L11: 11.38 | M11: =G11+H11 -> 5 | N11: =L11-(I11*0.2) -> 11.38 | O11: 3 | P11: =IF(F11="Y",N11,0) -> 0 | Q11: 0
A12: 9 | B12: 8 | C12: N | D12: =YTD!P23 -> Mike M | E12: Y | F12: =YTD!Q23 -> Y | G12: 0 | M12: 0 | N12: 0 | O12: 30 | P12: 0 | Q12: 1
A13: 10 | C13: N | D13: =YTD!P24 -> Mike G | E13: N | F13: =YTD!Q24 -> Y | M13: 0 | N13: 0 | O13: 35 | P13: 0 | Q13: 0
A14: 11 | B14: 5 | C14: N | D14: =YTD!P25 -> Morrie | E14: Y | F14: Y | G14: 0 | M14: 0 | N14: 0 | O14: 30 | P14: 0 | Q14: 1
A15: 12 | B15: 4 | C15: N | D15: =YTD!P26 -> Peter | E15: Y | F15: =YTD!Q26 -> Y | G15: 2 | L15: 2.7 | M15: 2 | N15: 2.7 | O15: 9 | P15: 2.7 | Q15: 1
A16: 13 | B16: 8 | C16: N | D16: =YTD!P27 -> Rich B | E16: Y | F16: =YTD!Q27 -> N | G16: 3 | L16: 4.56 | M16: 3 | N16: 4.56 | O16: 7 | P16: 0 | Q16: 0
A17: 14 | B17: 7 | C17: N | D17: =YTD!P28 -> Rich T | E17: Y | F17: =YTD!Q28 -> Y | G17: 1 | L17: 1.58 | M17: 1 | N17: 1.58 | O17: 10 | P17: 1.58 | Q17: 1
A18: 15 | B18: 5 | C18: N | D18: =YTD!P29 -> Ron | E18: Y | F18: =YTD!Q29 -> N | G18: 0 | M18: =G18+H18 -> 0 | N18: =L18-(I18*0.2) -> 0 | O18: 30 | P18: 0 | Q18: 0
A19: 16 | B19: 3 | C19: N | D19: =YTD!P30 -> Ryan | E19: Y | F19: =YTD!Q30 -> Y | G19: 0 | M19: 0 | N19: 0 | O19: 30 | P19: 0 | Q19: 1
A20: 17 | B20: 2 | C20: N | D20: =YTD!P31 -> Scott | E20: Y | F20: Y | G20: 2 | L20: 4.88 | M20: =G20+H20 -> 2 | N20: =L20-(I20*0.2) -> 4.88 | O20: 6 | P20: =IF(F20="Y",N20,0) -> 4.88 | Q20: 1
A21: 18 | B21: 2 | C21: N | D21: =YTD!P32 -> Steve D | E21: Y | F21: =YTD!Q32 -> N | G21: 3 | H21: 2 | L21: 11.77 | M21: 5 | N21: 11.77 | O21: 2 | P21: 0 | Q21: 0
A22: 19 | B22: 9 | C22: Y | D22: =YTD!P33 -> Steve S | E22: Y | F22: =YTD!Q33 -> N | G22: 1 | L22: 1.34 | M22: 1 | N22: 1.34 | O22: 11 | P22: 0 | Q22: 0
A23: 20 | B23: 4 | C23: N | D23: =YTD!P34 -> Tom | E23: Y | F23: =YTD!Q34 -> N | H23: 1 | L23: 1.05 | M23: =G23+H23 -> 1 | N23: =L23-(I23*0.2) -> 1.05 | O23: 12 | P23: 0 | Q23: 0
A24: 21 | C24: N | D24: =YTD!P35 -> X | E24: N | F24: =YTD!Q35 -> N | M24: 0 | N24: 0 | O24: 35 | P24: 0 | Q24: 0
A25: 22 | C25: N | D25: =YTD!P36 -> X | E25: N | F25: =YTD!Q36 -> N | M25: 0 | N25: 0 | O25: 35 | P25: 0 | Q25: 0
A26: 23 | C26: N | D26: =YTD!P37 -> X | E26: N | F26: =YTD!Q37 -> N | M26: 0 | N26: 0 | O26: 35 | P26: 0 | Q26: 0
A27: 24 | C27: N | D27: =YTD!P38 -> X | E27: N | F27: =YTD!Q38 -> N | M27: 0 | N27: 0 | O27: 35 | P27: 0 | Q27: 0
A28: 25 | C28: N | D28: =YTD!P39 -> X | E28: N | F28: =YTD!Q39 -> N | M28: =G28+H28 -> 0 | N28: =L28-(I28*0.2) -> 0 | O28: 35 | P28: =IF(F28="Y",N28,0) -> 0 | Q28: =IF(E28="N",0,(IF(F28="N",0,1))) -> 0
A29: 26 | C29: N | D29: =YTD!P40 -> X | E29: N | F29: =YTD!Q40 -> N | M29: =G29+H29 -> 0 | N29: =L29-(I29*0.2) -> 0 | O29: 35 | P29: =IF(F29="Y",N29,0) -> 0 | Q29: =IF(E29="N",0,(IF(F29="N",0,1))) -> 0
D30: Totals | E30: =COUNTIF(E4:E29,"Y") -> 17 | G30: =SUM(G4:G29) -> 27 | H30: =SUM(H4:H29) -> 7 | I30: =SUM(I4:I29) -> 0 | J30: =MAX(J4:J29) -> 5.73 | K30: LMB | L30: =SUM(L4:L29) -> 71.24 | M30: =SUM(M4:M29) -> 34 | N30: =SUM(N4:N29) -> 71.24 | P30: =SUM(P4:P29) -> 12.2 | Q30: =SUM(Q4:Q29) -> 8
B31: Place | C31: Team # | D31: Partners | G31: Total Weight | I31: Place | J31: Team # | K31: Partners | N31: Total Weight | P31: NB Avg | Q31: =IF(Q30=0,"No Data",P30/Q30) -> 1.525
B32: 1st | C32: =Teams!N34 -> 2 | D32: =VLOOKUP($C32,$B$4:$D$29,3,0) -> Scott | E32: & | F32: =IF($B$4:$B$29=20,"#N/A",IF(COUNTIF($B$4:$B$29,$C32)=1,"Alone",LOOKUP(2,1/($B$4:$B$29=$C32),$D$4:$D$29))) -> Steve D | G32: =Teams!O34 -> 16.65 | I32: 4th | J32: =Teams!N37 -> 6 | K32: =VLOOKUP($J32,$B$4:$D$29,3,0) -> Armand | L32: & | M32: =IF($B$4:$B$29=20,"#N/A",IF(COUNTIF($B$4:$B$29,$J32)=1,"Alone",LOOKUP(2,1/($B$4:$B$29=$J32),$D$4:$D$29))) -> Jack | N32: =Teams!O37 -> 11.29
B33: 2nd | C33: =Teams!N35 -> 1 | D33: =VLOOKUP($C33,$B$4:$D$29,3,0) -> Anthony | E33: & | F33: =IF($B$4:$B$29=20,"#N/A",IF(COUNTIF($B$4:$B$29,$C33)=1,"Alone",LOOKUP(2,1/($B$4:$B$29=$C33),$D$4:$D$29))) -> Dean | G33: =Teams!O35 -> 15.74 | I33: 5th | J33: =Teams!N38 -> 7 | K33: =VLOOKUP($J33,$B$4:$D$29,3,0) -> Jason | L33: & | M33: =IF($B$4:$B$29=20,"#N/A",IF(COUNTIF($B$4:$B$29,$J33)=1,"Alone",LOOKUP(2,1/($B$4:$B$29=$J33),$D$4:$D$29))) -> Rich T | N33: =Teams!O38 -> 6.53
B34: 3rd | C34: =Teams!N36 -> 3 | D34: =VLOOKUP($C34,$B$4:$D$29,3,0) -> Kevin | E34: & | F34: =IF($B$4:$B$29=20,"#N/A",IF(COUNTIF($B$4:$B$29,$C34)=1,"Alone",LOOKUP(2,1/($B$4:$B$29=$C34),$D$4:$D$29))) -> Ryan | G34: =Teams!O36 -> 11.38 | I34: 6th | J34: =Teams!N39 -> 8 | K34: =VLOOKUP($J34,$B$4:$D$29,3,0) -> Mike M | L34: & | M34: =IF($B$4:$B$29=20,"#N/A",IF(COUNTIF($B$4:$B$29,$J34)=1,"Alone",LOOKUP(2,1/($B$4:$B$29=$J34),$D$4:$D$29))) -> Rich B | N34: =Teams!O39 -> 4.56

Sheet Gardner
A1: =YTD!L17 -> Gardner
B2: Team | C2: Fish | D2: Member | E2: Show | F2: Non | G2: Number | H2: Number | I2: Number | J2: Lunker | K2: Species | L2: Gross | M2: Total | N2: Net | O2: Points | P2: Non Boater | Q2: # Non-
B3: Number | C3: Alone? | D3: Name | E3: Up? | F3: Boater? | G3: of LMB | H3: of SMB | I3: Dead | J3: Weight | K3: LMB/SMB | L3: Weight | M3: Caught | N3: Weight | O3: Awarded | P3: Weight | Q3: Boaters
A4: 1 | B4: 8 | C4: N | D4: =YTD!P15 -> Anthony | E4: Y | F4: =YTD!Q15 -> Y | G4: 5 | L4: 9.09 | M4: =G4+H4 -> 5 | N4: =L4-(I4*0.2) -> 9.09 | O4: =IF($E4="N",35,IF($M4=0,30,RANK($N4,$N$4:$N$29,0))) -> 1 | P4: =IF(F4="Y",N4,0) -> 9.09 | Q4: =IF(E4="N",0,(IF(F4="N",0,1))) -> 1
A5: 2 | B5: 2 | C5: N | D5: =YTD!P16 -> Armand | E5: Y | F5: =YTD!Q16 -> N | G5: 3 | L5: 4.27 | M5: 3 | N5: 4.27 | O5: =IF($E5="N",35,IF($M5=0,30,RANK($N5,$N$4:$N$29,0))) -> 15 | P5: 0 | Q5: =IF(E5="N",0,(IF(F5="N",0,1))) -> 0
A6: 3 | B6: 6 | C6: Y | D6: =YTD!P17 -> Dean | E6: Y | F6: =YTD!Q17 -> N | G6: 5 | L6: 7.01 | M6: =G6+H6 -> 5 | N6: =L6-(I6*0.2) -> 7.01 | O6: 8 | P6: =IF(F6="Y",N6,0) -> 0 | Q6: 0
A7: 4 | B7: 7 | C7: N | D7: =YTD!P18 -> Jack | E7: Y | F7: =YTD!Q18 -> Y | G7: 4 | L7: 4.94 | M7: 4 | N7: 4.94 | O7: 14 | P7: 4.94 | Q7: 1
A8: 5 | B8: 9 | C8: N | D8: =YTD!P19 -> Jason | E8: Y | F8: Y | G8: 4 | H8: 1 | L8: 7.56 | M8: =G8+H8 -> 5 | N8: =L8-(I8*0.2) -> 7.56 | O8: 5 | P8: =IF(F8="Y",N8,0) -> 7.56 | Q8: 1
A9: 6 | C9: N | D9: =YTD!P20 -> Jim B | E9: N | F9: =YTD!Q20 -> Y | M9: 0 | N9: 0 | O9: 35 | P9: 0 | Q9: 0
A10: 7 | C10: N | D10: =YTD!P21 -> Kam | E10: N | F10: =YTD!Q21 -> Y | M10: 0 | N10: 0 | O10: 35 | P10: 0 | Q10: 0
A11: 8 | B11: 7 | C11: N | D11: =YTD!P22 -> Kevin | E11: Y | F11: =YTD!Q22 -> N | G11: 4 | L11: 5.89 | M11: =G11+H11 -> 4 | N11: =L11-(I11*0.2) -> 5.89 | O11: 13 | P11: =IF(F11="Y",N11,0) -> 0 | Q11: 0
A12: 9 | B12: 1 | C12: N | D12: =YTD!P23 -> Mike M | E12: Y | F12: =YTD!Q23 -> Y | G12: 1 | L12: 0.77 | M12: 1 | N12: 0.77 | O12: 17 | P12: 0.77 | Q12: 1
A13: 10 | B13: 4 | C13: N | D13: =YTD!P24 -> Mike G | E13: Y | F13: =YTD!Q24 -> Y | G13: 5 | L13: 6.75 | M13: 5 | N13: 6.75 | O13: 9 | P13: 6.75 | Q13: 1
A14: 11 | C14: N | D14: =YTD!P25 -> Morrie | E14: N | F14: =YTD!Q25 -> N | M14: 0 | N14: 0 | O14: 35 | P14: 0 | Q14: 0
A15: 12 | B15: 2 | C15: N | D15: =YTD!P26 -> Peter | E15: Y | F15: =YTD!Q26 -> Y | G15: 5 | L15: 6.48 | M15: 5 | N15: 6.48 | O15: 11 | P15: 6.48 | Q15: 1
A16: 13 | B16: 3 | C16: N | D16: =YTD!P27 -> Rich B | E16: Y | F16: =YTD!Q27 -> N | G16: 5 | I16: 1 | L16: 7.96 | M16: 5 | N16: 7.76 | O16: 4 | P16: 0 | Q16: 0
A17: 14 | B17: 5 | C17: N | D17: =YTD!P28 -> Rich T | E17: Y | F17: =YTD!Q28 -> Y | G17: 4 | H17: 1 | I17: 1 | J17: 3.85 | K17: LMB | L17: 8.95 | M17: 5 | N17: 8.75 | O17: 2 | P17: 8.75 | Q17: 1
A18: 15 | B18: 4 | C18: N | D18: =YTD!P29 -> Ron | E18: Y | F18: =YTD!Q29 -> N | G18: 5 | L18: 8.27 | M18: =G18+H18 -> 5 | N18: =L18-(I18*0.2) -> 8.27 | O18: 3 | P18: 0 | Q18: 0
A19: 16 | B19: 3 | C19: N | D19: =YTD!P30 -> Ryan | E19: Y | F19: =YTD!Q30 -> Y | G19: 4 | L19: 6.48 | M19: 4 | N19: 6.48 | O19: 11 | P19: 6.48 | Q19: 1
A20: 17 | B20: 1 | C20: N | D20: =YTD!P31 -> Scott | E20: Y | F20: =YTD!Q31 -> N | G20: 2 | L20: 4.13 | M20: =G20+H20 -> 2 | N20: =L20-(I20*0.2) -> 4.13 | O20: 16 | P20: =IF(F20="Y",N20,0) -> 0 | Q20: 0
A21: 18 | B21: 9 | C21: N | D21: =YTD!P32 -> Steve D | E21: Y | F21: =YTD!Q32 -> N | G21: 3 | H21: 2 | I21: 1 | L21: 7.49 | M21: 5 | N21: 7.29 | O21: 6 | P21: 0 | Q21: 0
A22: 19 | B22: 8 | C22: N | D22: =YTD!P33 -> Steve S | E22: Y | F22: =YTD!Q33 -> N | G22: 5 | L22: 6.6 | M22: 5 | N22: 6.6 | O22: 10 | P22: 0 | Q22: 0
A23: 20 | B23: 5 | C23: N | D23: =YTD!P34 -> Tom | E23: Y | F23: =YTD!Q34 -> N | G23: 5 | L23: 7.24 | M23: =G23+H23 -> 5 | N23: =L23-(I23*0.2) -> 7.24 | O23: 7 | P23: 0 | Q23: 0
A24: 21 | C24: N | D24: =YTD!P35 -> X | E24: N | F24: =YTD!Q35 -> N | M24: 0 | N24: 0 | O24: 35 | P24: 0 | Q24: 0
A25: 22 | C25: N | D25: =YTD!P36 -> X | E25: N | F25: =YTD!Q36 -> N | M25: 0 | N25: 0 | O25: 35 | P25: 0 | Q25: 0
A26: 23 | C26: N | D26: =YTD!P37 -> X | E26: N | F26: =YTD!Q37 -> N | M26: 0 | N26: 0 | O26: 35 | P26: 0 | Q26: 0
A27: 24 | C27: N | D27: =YTD!P38 -> X | E27: N | F27: =YTD!Q38 -> N | M27: 0 | N27: 0 | O27: 35 | P27: 0 | Q27: 0
A28: 25 | C28: N | D28: =YTD!P39 -> X | E28: N | F28: =YTD!Q39 -> N | M28: =G28+H28 -> 0 | N28: =L28-(I28*0.2) -> 0 | O28: 35 | P28: =IF(F28="Y",N28,0) -> 0 | Q28: =IF(E28="N",0,(IF(F28="N",0,1))) -> 0
A29: 26 | C29: N | D29: =YTD!P40 -> X | E29: N | F29: =YTD!Q40 -> N | M29: =G29+H29 -> 0 | N29: =L29-(I29*0.2) -> 0 | O29: 35 | P29: =IF(F29="Y",N29,0) -> 0 | Q29: =IF(E29="N",0,(IF(F29="N",0,1))) -> 0
D30: Totals | E30: =COUNTIF(E4:E29,"Y") -> 17 | G30: =SUM(G4:G29) -> 69 | H30: =SUM(H4:H29) -> 4 | I30: =SUM(I4:I29) -> 3 | J30: =MAX(J4:J29) -> 3.85 | L30: =SUM(L4:L29) -> 109.88 | M30: =SUM(M4:M29) -> 73 | N30: =SUM(N4:N29) -> 109.28 | P30: =SUM(P4:P29) -> 50.82 | Q30: =SUM(Q4:Q29) -> 8
B31: Place | C31: Team # | D31: Partners | G31: Total Weight | I31: Place | J31: Team # | K31: Partners | N31: Total Weight | P31: NB Avg | Q31: =IF(Q30=0,"No Data",P30/Q30) -> 6.3525
B32: 1st | C32: =Teams!N64 -> 5 | D32: =VLOOKUP($C32,$B$4:$D$29,3,0) -> Rich T | E32: & | F32: =IF($B$4:$B$29=20,"#N/A",IF(COUNTIF($B$4:$B$29,$C32)=1,"Alone",LOOKUP(2,1/($B$4:$B$29=$C32),$D$4:$D$29))) -> Tom | G32: =Teams!O64 -> 15.99 | I32: 4th | J32: =Teams!N67 -> 9 | K32: =VLOOKUP($J32,$B$4:$D$29,3,0) -> Jason | L32: & | M32: =IF($B$4:$B$29=20,"#N/A",IF(COUNTIF($B$4:$B$29,$J32)=1,"Alone",LOOKUP(2,1/($B$4:$B$29=$J32),$D$4:$D$29))) -> Steve D | N32: =Teams!O67 -> 14.85
B33: 2nd | C33: =Teams!N65 -> 8 | D33: =VLOOKUP($C33,$B$4:$D$29,3,0) -> Anthony | E33: & | F33: =IF($B$4:$B$29=20,"#N/A",IF(COUNTIF($B$4:$B$29,$C33)=1,"Alone",LOOKUP(2,1/($B$4:$B$29=$C33),$D$4:$D$29))) -> Steve S | G33: =Teams!O65 -> 15.69 | I33: 5th | J33: =Teams!N68 -> 3 | K33: =VLOOKUP($J33,$B$4:$D$29,3,0) -> Rich B | L33: & | M33: =IF($B$4:$B$29=20,"#N/A",IF(COUNTIF($B$4:$B$29,$J33)=1,"Alone",LOOKUP(2,1/($B$4:$B$29=$J33),$D$4:$D$29))) -> Ryan | N33: =Teams!O68 -> 14.24
B34: 3rd | C34: =Teams!N66 -> 4 | D34: =VLOOKUP($C34,$B$4:$D$29,3,0) -> Mike G | E34: & | F34: =IF($B$4:$B$29=20,"#N/A",IF(COUNTIF($B$4:$B$29,$C34)=1,"Alone",LOOKUP(2,1/($B$4:$B$29=$C34),$D$4:$D$29))) -> Ron | G34: =Teams!O66 -> 15.02 | I34: 6th | J34: =Teams!N69 -> 6 | K34: =VLOOKUP($J34,$B$4:$D$29,3,0) -> Dean | L34: & | M34: =IF($B$4:$B$29=20,"#N/A",IF(COUNTIF($B$4:$B$29,$J34)=1,"Alone",LOOKUP(2,1/($B$4:$B$29=$J34),$D$4:$D$29))) -> Alone | N34: =Teams!O69 -> 13.3625

Sheet Candlewood
A1: =YTD!L18 -> Candlewood
B2: Team | C2: Fish | D2: Member | E2: Show | F2: Non | G2: Number | H2: Number | I2: Number | J2: Lunker | K2: Species | L2: Gross | M2: Total | N2: Net | O2: Points | P2: Non Boater | Q2: # Non-
B3: Number | C3: Alone? | D3: Name | E3: Up? | F3: Boater? | G3: of LMB | H3: of SMB | I3: Dead | J3: Weight | K3: LMB/SMB | L3: Weight | M3: Caught | N3: Weight | O3: Awarded | P3: Weight | Q3: Boaters
A4: 1 | B4: 8 | C4: N | D4: =YTD!P15 -> Anthony | E4: Y | F4: =YTD!Q15 -> Y | G4: 0 | M4: =G4+H4 -> 0 | N4: =L4-(I4*0.2) -> 0 | O4: =IF($E4="N",35,IF($M4=0,30,RANK($N4,$N$4:$N$29,0))) -> 30 | P4: =IF(F4="Y",N4,0) -> 0 | Q4: =IF(E4="N",0,(IF(F4="N",0,1))) -> 1
A5: 2 | B5: 4 | C5: N | D5: =YTD!P16 -> Armand | E5: Y | F5: =YTD!Q16 -> N | G5: 1 | L5: 1.68 | M5: 1 | N5: 1.68 | O5: =IF($E5="N",35,IF($M5=0,30,RANK($N5,$N$4:$N$29,0))) -> 13 | P5: 0 | Q5: =IF(E5="N",0,(IF(F5="N",0,1))) -> 0
A6: 3 | B6: 2 | C6: N | D6: =YTD!P17 -> Dean | E6: Y | F6: =YTD!Q17 -> N | G6: 2 | L6: 5.02 | M6: =G6+H6 -> 2 | N6: =L6-(I6*0.2) -> 5.02 | O6: 5 | P6: =IF(F6="Y",N6,0) -> 0 | Q6: 0
A7: 4 | B7: 1 | C7: N | D7: =YTD!P18 -> Jack | E7: Y | F7: =YTD!Q18 -> Y | G7: 1 | H7: 1 | L7: 3.46 | M7: 2 | N7: 3.46 | O7: 8 | P7: 3.46 | Q7: 1
A8: 5 | B8: 3 | C8: N | D8: =YTD!P19 -> Jason | E8: Y | F8: =YTD!Q19 -> N | G8: 1 | H8: 2 | L8: 6.32 | M8: =G8+H8 -> 3 | N8: =L8-(I8*0.2) -> 6.32 | O8: 3 | P8: =IF(F8="Y",N8,0) -> 0 | Q8: 0
A9: 6 | B9: 5 | C9: N | D9: =YTD!P20 -> Jim B | E9: Y | F9: =YTD!Q20 -> Y | G9: 1 | L9: 2.77 | M9: 1 | N9: 2.77 | O9: 11 | P9: 2.77 | Q9: 1
A10: 7 | C10: N | D10: =YTD!P21 -> Kam | E10: N | F10: =YTD!Q21 -> Y | M10: 0 | N10: 0 | O10: 35 | P10: 0 | Q10: 0
A11: 8 | B11: 9 | C11: N | D11: =YTD!P22 -> Kevin | E11: Y | F11: =YTD!Q22 -> N | G11: 2 | H11: 2 | L11: 5.94 | M11: =G11+H11 -> 4 | N11: =L11-(I11*0.2) -> 5.94 | O11: 4 | P11: =IF(F11="Y",N11,0) -> 0 | Q11: 0
A12: 9 | B12: 2 | C12: N | D12: =YTD!P23 -> Mike M | E12: Y | F12: =YTD!Q23 -> Y | G12: 1 | J12: 4.03 | K12: LMB | L12: 4.03 | M12: 1 | N12: 4.03 | O12: 6 | P12: 4.03 | Q12: 1
A13: 10 | B13: 3 | C13: N | D13: =YTD!P24 -> Mike G | E13: Y | F13: =YTD!Q24 -> Y | G13: 1 | H13: 1 | L13: 3.08 | M13: 2 | N13: 3.08 | O13: 9 | P13: 3.08 | Q13: 1
A14: 11 | C14: N | D14: =YTD!P25 -> Morrie | E14: N | F14: =YTD!Q25 -> N | M14: 0 | N14: 0 | O14: 35 | P14: 0 | Q14: 0
A15: 12 | B15: 9 | C15: N | D15: =YTD!P26 -> Peter | E15: Y | F15: =YTD!Q26 -> Y | G15: 1 | L15: 1.26 | M15: 1 | N15: 1.26 | O15: 14 | P15: 1.26 | Q15: 1
A16: 13 | B16: 1 | C16: N | D16: =YTD!P27 -> Rich B | E16: Y | F16: =YTD!Q27 -> N | G16: 1 | L16: 1.75 | M16: 1 | N16: 1.75 | O16: 12 | P16: 0 | Q16: 0
A17: 14 | B17: 4 | C17: N | D17: =YTD!P28 -> Rich T | E17: Y | F17: =YTD!Q28 -> Y | H17: 2 | L17: 3.88 | M17: 2 | N17: 3.88 | O17: 7 | P17: 3.88 | Q17: 1
A18: 15 | B18: 5 | C18: N | D18: =YTD!P29 -> Ron | E18: Y | F18: =YTD!Q29 -> N | G18: 2 | L18: 3.01 | M18: =G18+H18 -> 2 | N18: =L18-(I18*0.2) -> 3.01 | O18: 10 | P18: 0 | Q18: 0
A19: 16 | B19: 7 | C19: N | D19: =YTD!P30 -> Ryan | E19: Y | F19: =YTD!Q30 -> Y | G19: 1 | L19: 1 | M19: 1 | N19: 1 | O19: 16 | P19: 1 | Q19: 1
A20: 17 | B20: 7 | C20: N | D20: =YTD!P31 -> Scott | E20: Y | F20: =YTD!Q31 -> N | H20: 3 | L20: 6.33 | M20: =G20+H20 -> 3 | N20: =L20-(I20*0.2) -> 6.33 | O20: 2 | P20: =IF(F20="Y",N20,0) -> 0 | Q20: 0
A21: 18 | B21: 8 | C21: N | D21: =YTD!P32 -> Steve D | E21: Y | F21: =YTD!Q32 -> N | G21: 3 | H21: 2 | L21: 6.66 | M21: 5 | N21: 6.66 | O21: 1 | P21: 0 | Q21: 0
A22: 19 | C22: N | D22: =YTD!P33 -> Steve S | E22: N | F22: =YTD!Q33 -> N | M22: 0 | N22: 0 | O22: 35 | P22: 0 | Q22: 0
A23: 20 | B23: 6 | C23: Y | D23: =YTD!P34 -> Tom | E23: Y | F23: =YTD!Q34 -> N | H23: 1 | L23: 1.01 | M23: =G23+H23 -> 1 | N23: =L23-(I23*0.2) -> 1.01 | O23: 15 | P23: 0 | Q23: 0
A24: 21 | C24: N | D24: =YTD!P35 -> X | E24: N | F24: =YTD!Q35 -> N | M24: 0 | N24: 0 | O24: 35 | P24: 0 | Q24: 0
A25: 22 | C25: N | D25: =YTD!P36 -> X | E25: N | F25: =YTD!Q36 -> N | M25: 0 | N25: 0 | O25: 35 | P25: 0 | Q25: 0
A26: 23 | C26: N | D26: =YTD!P37 -> X | E26: N | F26: =YTD!Q37 -> N | M26: 0 | N26: 0 | O26: 35 | P26: 0 | Q26: 0
A27: 24 | C27: N | D27: =YTD!P38 -> X | E27: N | F27: =YTD!Q38 -> N | M27: 0 | N27: 0 | O27: 35 | P27: 0 | Q27: 0
A28: 25 | C28: N | D28: =YTD!P39 -> X | E28: N | F28: =YTD!Q39 -> N | M28: =G28+H28 -> 0 | N28: =L28-(I28*0.2) -> 0 | O28: 35 | P28: =IF(F28="Y",N28,0) -> 0 | Q28: =IF(E28="N",0,(IF(F28="N",0,1))) -> 0
A29: 26 | C29: N | D29: =YTD!P40 -> X | E29: N | F29: =YTD!Q40 -> N | M29: =G29+H29 -> 0 | N29: =L29-(I29*0.2) -> 0 | O29: 35 | P29: =IF(F29="Y",N29,0) -> 0 | Q29: =IF(E29="N",0,(IF(F29="N",0,1))) -> 0
D30: Totals | E30: =COUNTIF(E4:E29,"Y") -> 17 | G30: =SUM(G4:G29) -> 18 | H30: =SUM(H4:H29) -> 14 | I30: =SUM(I4:I29) -> 0 | J30: =MAX(J4:J29) -> 4.03 | L30: =SUM(L4:L29) -> 57.2 | M30: =SUM(M4:M29) -> 32 | N30: =SUM(N4:N29) -> 57.2 | P30: =SUM(P4:P29) -> 19.48 | Q30: =SUM(Q4:Q29) -> 8
B31: Place | C31: Team # | D31: Partners | G31: Total Weight | I31: Place | J31: Team # | K31: Partners | N31: Total Weight | P31: NB Avg | Q31: =IF(Q30=0,"No Data",P30/Q30) -> 2.435
B32: 1st | C32: =Teams!$N94 -> 3 | D32: =VLOOKUP($C32,$B$4:$D$29,3,0) -> Jason | E32: & | F32: =IF($B$4:$B$29=20,"#N/A",IF(COUNTIF($B$4:$B$29,$C32)=1,"Alone",LOOKUP(2,1/($B$4:$B$29=$C32),$D$4:$D$29))) -> Mike G | G32: =Teams!O94 -> 9.4 | I32: 4th | J32: =Teams!$N97 -> 9 | K32: =VLOOKUP($J32,$B$4:$D$29,3,0) -> Kevin | L32: & | M32: =IF($B$4:$B$29=20,"#N/A",IF(COUNTIF($B$4:$B$29,$J32)=1,"Alone",LOOKUP(2,1/($B$4:$B$29=$J32),$D$4:$D$29))) -> Peter | N32: =Teams!O97 -> 7.2
B33: 2nd | C33: =Teams!$N95 -> 2 | D33: =VLOOKUP($C33,$B$4:$D$29,3,0) -> Dean | E33: & | F33: =IF($B$4:$B$29=20,"#N/A",IF(COUNTIF($B$4:$B$29,$C33)=1,"Alone",LOOKUP(2,1/($B$4:$B$29=$C33),$D$4:$D$29))) -> Mike M | G33: =Teams!O95 -> 9.05 | I33: 5th | J33: =Teams!$N98 -> 8 | K33: =VLOOKUP($J33,$B$4:$D$29,3,0) -> Anthony | L33: & | M33: =IF($B$4:$B$29=20,"#N/A",IF(COUNTIF($B$4:$B$29,$J33)=1,"Alone",LOOKUP(2,1/($B$4:$B$29=$J33),$D$4:$D$29))) -> Steve D | N33: =Teams!O98 -> 6.66
B34: 3rd | C34: =Teams!$N96 -> 7 | D34: =VLOOKUP($C34,$B$4:$D$29,3,0) -> Ryan | E34: & | F34: =IF($B$4:$B$29=20,"#N/A",IF(COUNTIF($B$4:$B$29,$C34)=1,"Alone",LOOKUP(2,1/($B$4:$B$29=$C34),$D$4:$D$29))) -> Scott | G34: =Teams!O96 -> 7.33 | I34: 6th | J34: =Teams!$N99 -> 5 | K34: =VLOOKUP($J34,$B$4:$D$29,3,0) -> Jim B | L34: & | M34: =IF($B$4:$B$29=20,"#N/A",IF(COUNTIF($B$4:$B$29,$J34)=1,"Alone",LOOKUP(2,1/($B$4:$B$29=$J34),$D$4:$D$29))) -> Ron | N34: =Teams!O99 -> 5.78

Sheet Twin Lakes
A1: =YTD!L19 -> Twin Lakes
B2: Team | C2: Fish | D2: Member | E2: Show | F2: Non | G2: Number | H2: Number | I2: Number | J2: Lunker | K2: Species | L2: Gross | M2: Total | N2: Net | O2: Points | P2: Non Boater | Q2: # Non-
B3: Number | C3: Alone? | D3: Name | E3: Up? | F3: Boater? | G3: of LMB | H3: of SMB | I3: Dead | J3: Weight | K3: LMB/SMB | L3: Weight | M3: Caught | N3: Weight | O3: Awarded | P3: Weight | Q3: Boaters
A4: 1 | B4: 10 | C4: N | D4: =YTD!P15 -> Anthony | E4: Y | F4: =YTD!Q15 -> Y | G4: 1 | L4: 0.86 | M4: =G4+H4 -> 1 | N4: =L4-(I4*0.2) -> 0.86 | O4: =IF($E4="N",35,IF($M4=0,30,RANK($N4,$N$4:$N$29,0))) -> 19 | P4: =IF(F4="Y",N4,0) -> 0.86 | Q4: =IF(E4="N",0,(IF(F4="N",0,1))) -> 1
A5: 2 | C5: N | D5: =YTD!P16 -> Armand | E5: N | F5: =YTD!Q16 -> N | M5: 0 | N5: 0 | O5: =IF($E5="N",35,IF($M5=0,30,RANK($N5,$N$4:$N$29,0))) -> 35 | P5: 0 | Q5: =IF(E5="N",0,(IF(F5="N",0,1))) -> 0
A6: 3 | B6: 7 | C6: N | D6: =YTD!P17 -> Dean | E6: Y | F6: =YTD!Q17 -> N | G6: 2 | L6: 3.15 | M6: =G6+H6 -> 2 | N6: =L6-(I6*0.2) -> 3.15 | O6: 15 | P6: =IF(F6="Y",N6,0) -> 0 | Q6: 0
A7: 4 | B7: 9 | C7: N | D7: =YTD!P18 -> Jack | E7: Y | F7: =YTD!Q18 -> Y | G7: 4 | L7: 5.4 | M7: 4 | N7: 5.4 | O7: 12 | P7: 5.4 | Q7: 1
A8: 5 | B8: 8 | C8: N | D8: =YTD!P19 -> Jason | E8: Y | F8: =YTD!Q19 -> N | G8: 5 | L8: 9.51 | M8: =G8+H8 -> 5 | N8: =L8-(I8*0.2) -> 9.51 | O8: 3 | P8: =IF(F8="Y",N8,0) -> 0 | Q8: 0
A9: 6 | B9: 8 | C9: N | D9: =YTD!P20 -> Jim B | E9: Y | F9: =YTD!Q20 -> Y | G9: 2 | L9: 3.93 | M9: 2 | N9: 3.93 | O9: 14 | P9: 3.93 | Q9: 1
A10: 7 | B10: 1 | C10: N | D10: =YTD!P21 -> Kam | E10: Y | F10: =YTD!Q21 -> Y | G10: 4 | L10: 7.05 | M10: 4 | N10: 7.05 | O10: 4 | P10: 7.05 | Q10: 1
A11: 8 | B11: 4 | C11: N | D11: =YTD!P22 -> Kevin | E11: Y | F11: =YTD!Q22 -> N | G11: 4 | L11: 6.93 | M11: =G11+H11 -> 4 | N11: =L11-(I11*0.2) -> 6.93 | O11: 5 | P11: =IF(F11="Y",N11,0) -> 0 | Q11: 0
A12: 9 | B12: 7 | C12: N | D12: =YTD!P23 -> Mike M | E12: Y | F12: =YTD!Q23 -> Y | G12: 1 | L12: 1.75 | M12: 1 | N12: 1.75 | O12: 18 | P12: 1.75 | Q12: 1
A13: 10 | B13: 6 | C13: N | D13: =YTD!P24 -> Mike G | E13: Y | F13: =YTD!Q24 -> Y | G13: 2 | L13: 3.05 | M13: 2 | N13: 3.05 | O13: 16 | P13: 3.05 | Q13: 1
A14: 11 | B14: 1 | C14: N | D14: =YTD!P25 -> Morrie | E14: Y | F14: =YTD!Q25 -> N | G14: 1 | L14: 1.97 | M14: 1 | N14: 1.97 | O14: 17 | P14: 0 | Q14: 0
A15: 12 | B15: 5 | C15: N | D15: =YTD!P26 -> Peter | E15: Y | F15: =YTD!Q26 -> Y | G15: 5 | L15: 6.66 | M15: 5 | N15: 6.66 | O15: 8 | P15: 6.66 | Q15: 1
A16: 13 | B16: 5 | C16: N | D16: =YTD!P27 -> Rich B | E16: Y | F16: =YTD!Q27 -> N | G16: 3 | L16: 5.12 | M16: 3 | N16: 5.12 | O16: 13 | P16: 0 | Q16: 0
A17: 14 | B17: 4 | C17: N | D17: =YTD!P28 -> Rich T | E17: Y | F17: =YTD!Q28 -> Y | G17: 5 | L17: 12.9 | M17: 5 | N17: 12.9 | O17: 1 | P17: 12.9 | Q17: 1
A18: 15 | B18: 10 | C18: N | D18: =YTD!P29 -> Ron | E18: Y | F18: =YTD!Q29 -> N | G18: 3 | L18: 5.67 | M18: =G18+H18 -> 3 | N18: =L18-(I18*0.2) -> 5.67 | O18: 10 | P18: 0 | Q18: 0
A19: 16 | B19: 3 | C19: N | D19: =YTD!P30 -> Ryan | E19: Y | F19: =YTD!Q30 -> Y | G19: 5 | I19: 1 | L19: 6.97 | M19: 5 | N19: 6.77 | O19: 6 | P19: 6.77 | Q19: 1
A20: 17 | B20: 9 | C20: N | D20: =YTD!P31 -> Scott | E20: Y | F20: =YTD!Q31 -> N | G20: 4 | L20: 5.44 | M20: =G20+H20 -> 4 | N20: =L20-(I20*0.2) -> 5.44 | O20: 11 | P20: =IF(F20="Y",N20,0) -> 0 | Q20: 0
A21: 18 | B21: 2 | C21: Y | D21: =YTD!P32 -> Steve D | E21: Y | F21: =YTD!Q32 -> N | G21: 5 | L21: 6.74 | M21: 5 | N21: 6.74 | O21: 7 | P21: 0 | Q21: 0
A22: 19 | B22: 3 | C22: N | D22: =YTD!P33 -> Steve S | E22: Y | F22: =YTD!Q33 -> N | G22: 5 | L22: 6.56 | M22: 5 | N22: 6.56 | O22: 9 | P22: 0 | Q22: 0
A23: 20 | B23: 6 | C23: N | D23: =YTD!P34 -> Tom | E23: Y | F23: =YTD!Q34 -> N | G23: 4 | H23: 1 | I23: 1 | J23: 4.55 | K23: LMB | L23: 10.13 | M23: =G23+H23 -> 5 | N23: =L23-(I23*0.2) -> 9.93 | O23: 2 | P23: 0 | Q23: 0
A24: 21 | C24: N | D24: =YTD!P35 -> X | E24: N | F24: =YTD!Q35 -> N | M24: 0 | N24: 0 | O24: 35 | P24: 0 | Q24: 0
A25: 22 | C25: N | D25: =YTD!P36 -> X | E25: N | F25: =YTD!Q36 -> N | M25: 0 | N25: 0 | O25: 35 | P25: 0 | Q25: 0
A26: 23 | C26: N | D26: =YTD!P37 -> X | E26: N | F26: =YTD!Q37 -> N | M26: 0 | N26: 0 | O26: 35 | P26: 0 | Q26: 0
A27: 24 | C27: N | D27: =YTD!P38 -> X | E27: N | F27: =YTD!Q38 -> N | M27: 0 | N27: 0 | O27: 35 | P27: 0 | Q27: 0
A28: 25 | C28: N | D28: =YTD!P39 -> X | E28: N | F28: =YTD!Q39 -> N | M28: =G28+H28 -> 0 | N28: =L28-(I28*0.2) -> 0 | O28: 35 | P28: =IF(F28="Y",N28,0) -> 0 | Q28: =IF(E28="N",0,(IF(F28="N",0,1))) -> 0
A29: 26 | C29: N | D29: =YTD!P40 -> X | E29: N | F29: =YTD!Q40 -> N | M29: =G29+H29 -> 0 | N29: =L29-(I29*0.2) -> 0 | O29: 35 | P29: =IF(F29="Y",N29,0) -> 0 | Q29: =IF(E29="N",0,(IF(F29="N",0,1))) -> 0
D30: Totals | E30: =COUNTIF(E4:E29,"Y") -> 19 | G30: =SUM(G4:G29) -> 65 | H30: =SUM(H4:H29) -> 1 | I30: =SUM(I4:I29) -> 2 | J30: =MAX(J4:J29) -> 4.55 | L30: =SUM(L4:L29) -> 109.79 | M30: =SUM(M4:M29) -> 66 | N30: =SUM(N4:N29) -> 109.39 | P30: =SUM(P4:P29) -> 48.37 | Q30: =SUM(Q4:Q29) -> 9
B31: Place | C31: Team # | D31: Partners | G31: Total Weight | I31: Place | J31: Team # | K31: Partners | N31: Total Weight | P31: NB Avg | Q31: =IF(Q30=0,"No Data",P30/Q30) -> 5.374444444
B32: 1st | C32: =Teams!$AD4 -> 4 | D32: =VLOOKUP($C32,$B$4:$D$29,3,0) -> Kevin | E32: & | F32: =IF($B$4:$B$29=20,"#N/A",IF(COUNTIF($B$4:$B$29,$C32)=1,"Alone",LOOKUP(2,1/($B$4:$B$29=$C32),$D$4:$D$29))) -> Rich T | G32: =Teams!AE4 -> 19.83 | I32: 4th | J32: =Teams!$AD7 -> 6 | K32: =VLOOKUP($J32,$B$4:$D$29,3,0) -> Mike G | L32: & | M32: =IF($B$4:$B$29=20,"#N/A",IF(COUNTIF($B$4:$B$29,$J32)=1,"Alone",LOOKUP(2,1/($B$4:$B$29=$J32),$D$4:$D$29))) -> Tom | N32: =Teams!AE7 -> 12.98
B33: 2nd | C33: =Teams!$AD5 -> 8 | D33: =VLOOKUP($C33,$B$4:$D$29,3,0) -> Jason | E33: & | F33: =IF($B$4:$B$29=20,"#N/A",IF(COUNTIF($B$4:$B$29,$C33)=1,"Alone",LOOKUP(2,1/($B$4:$B$29=$C33),$D$4:$D$29))) -> Jim B | G33: =Teams!AE5 -> 13.44 | I33: 5th | J33: =Teams!$AD8 -> 2 | K33: =VLOOKUP($J33,$B$4:$D$29,3,0) -> Steve D | L33: & | M33: =IF($B$4:$B$29=20,"#N/A",IF(COUNTIF($B$4:$B$29,$J33)=1,"Alone",LOOKUP(2,1/($B$4:$B$29=$J33),$D$4:$D$29))) -> Alone | N33: =Teams!AE8 -> 12.11444444
B34: 3rd | C34: =Teams!$AD6 -> 3 | D34: =VLOOKUP($C34,$B$4:$D$29,3,0) -> Ryan | E34: & | F34: =IF($B$4:$B$29=20,"#N/A",IF(COUNTIF($B$4:$B$29,$C34)=1,"Alone",LOOKUP(2,1/($B$4:$B$29=$C34),$D$4:$D$29))) -> Steve S | G34: =Teams!AE6 -> 13.33 | I34: 6th | J34: =Teams!$AD9 -> 5 | K34: =VLOOKUP($J34,$B$4:$D$29,3,0) -> Peter | L34: & | M34: =IF($B$4:$B$29=20,"#N/A",IF(COUNTIF($B$4:$B$29,$J34)=1,"Alone",LOOKUP(2,1/($B$4:$B$29=$J34),$D$4:$D$29))) -> Rich B | N34: =Teams!AE9 -> 11.78

Sheet Lillinonah
A1: =YTD!L20 -> Lillinonah
B2: Team | C2: Fish | D2: Member | E2: Show | F2: Non | G2: Number | H2: Number | I2: Number | J2: Lunker | K2: Species | L2: Gross | M2: Total | N2: Net | O2: Points | P2: Non Boater | Q2: # Non-
B3: Number | C3: Alone? | D3: Name | E3: Up? | F3: Boater? | G3: of LMB | H3: of SMB | I3: Dead | J3: Weight | K3: LMB/SMB | L3: Weight | M3: Caught | N3: Weight | O3: Awarded | P3: Weight | Q3: Boaters
B4: 8 | C4: N | D4: =YTD!P15 -> Anthony | E4: Y | F4: =YTD!Q15 -> Y | G4: 1 | H4: 4 | I4: 2 | L4: 7.61 | M4: =G4+H4 -> 5 | N4: =L4-(I4*0.2) -> 7.21 | O4: =IF($E4="N",35,IF($M4=0,30,RANK($N4,$N$4:$N$29,0))) -> 4 | P4: =IF(F4="Y",N4,0) -> 7.21 | Q4: =IF(E4="N",0,(IF(F4="N",0,1))) -> 1
B5: 7 | C5: N | D5: =YTD!P16 -> Armand | E5: Y | F5: =YTD!Q16 -> N | G5: 1 | H5: 2 | L5: 3.08 | M5: 3 | N5: 3.08 | O5: =IF($E5="N",35,IF($M5=0,30,RANK($N5,$N$4:$N$29,0))) -> 14 | P5: 0 | Q5: =IF(E5="N",0,(IF(F5="N",0,1))) -> 0
B6: 3 | C6: N | D6: =YTD!P17 -> Dean | E6: Y | F6: =YTD!Q17 -> N | G6: 1 | H6: 4 | L6: 6.44 | M6: =G6+H6 -> 5 | N6: =L6-(I6*0.2) -> 6.44 | O6: 5 | P6: =IF(F6="Y",N6,0) -> 0 | Q6: 0
B7: 2 | C7: N | D7: =YTD!P18 -> Jack | E7: Y | F7: =YTD!Q18 -> Y | G7: 1 | H7: 1 | L7: 2.31 | M7: 2 | N7: 2.31 | O7: 15 | P7: 2.31 | Q7: 1
B8: 8 | C8: N | D8: =YTD!P19 -> Jason | E8: Y | F8: =YTD!Q19 -> N | G8: 2 | H8: 3 | I8: 3 | L8: 8.38 | M8: =G8+H8 -> 5 | N8: =L8-(I8*0.2) -> 7.78 | O8: 3 | P8: =IF(F8="Y",N8,0) -> 0 | Q8: 0
B9: 1 | C9: N | D9: =YTD!P20 -> Jim B | E9: Y | F9: =YTD!Q20 -> Y | G9: 0 | L9: 0 | M9: 0 | N9: 0 | O9: 30 | P9: 0 | Q9: 1
B10: 6 | C10: N | D10: =YTD!P21 -> Kam | E10: Y | F10: =YTD!Q21 -> Y | G10: 0 | H10: 1 | L10: 3.24 | M10: 1 | N10: 3.24 | O10: 13 | P10: 3.24 | Q10: 1
B11: 6 | C11: N | D11: =YTD!P22 -> Kevin | E11: Y | F11: =YTD!Q22 -> N | G11: 0 | H11: 4 | L11: 10.59 | M11: =G11+H11 -> 4 | N11: =L11-(I11*0.2) -> 10.59 | O11: 1 | P11: =IF(F11="Y",N11,0) -> 0 | Q11: 0
B12: 9 | C12: N | D12: =YTD!P23 -> Mike M | E12: Y | F12: =YTD!Q23 -> Y | G12: 1 | H12: 2 | L12: 3.84 | M12: 3 | N12: 3.84 | O12: 11 | P12: 3.84 | Q12: 1
B13: 7 | C13: N | D13: =YTD!P24 -> Mike G | E13: Y | F13: =YTD!Q24 -> Y | G13: 1 | H13: 1 | I13: 1 | L13: 2.12 | M13: 2 | N13: 1.92 | O13: 16 | P13: 1.92 | Q13: 1
B14: 9 | C14: N | D14: =YTD!P25 -> Morrie | E14: Y | F14: =YTD!Q25 -> N | G14: 0 | H14: 2 | J14: 4.3 | K14: SMB | L14: 6.3 | M14: 2 | N14: 6.3 | O14: 6 | P14: 0 | Q14: 0
C15: N | D15: =YTD!P26 -> Peter | E15: N | F15: =YTD!Q26 -> Y | M15: 0 | N15: 0 | O15: 35 | P15: 0 | Q15: 0
B16: 4 | C16: N | D16: =YTD!P27 -> Rich B | E16: Y | F16: =YTD!Q27 -> N | G16: 1 | H16: 2 | L16: 4.09 | M16: 3 | N16: 4.09 | O16: 10 | P16: 0 | Q16: 0
B17: 4 | C17: N | D17: =YTD!P28 -> Rich T | E17: Y | F17: =YTD!Q28 -> Y | G17: 0 | H17: 4 | L17: 5.85 | M17: 4 | N17: 5.85 | O17: 8 | P17: 5.85 | Q17: 1
C18: N | D18: =YTD!P29 -> Ron | E18: N | F18: =YTD!Q29 -> N | M18: =G18+H18 -> 0 | N18: =L18-(I18*0.2) -> 0 | O18: 35 | P18: 0 | Q18: 0
B19: 3 | C19: N | D19: =YTD!P30 -> Ryan | E19: Y | F19: =YTD!Q30 -> Y | G19: 4 | H19: 1 | L19: 6.17 | M19: 5 | N19: 6.17 | O19: 7 | P19: 6.17 | Q19: 1
B20: 5 | C20: N | D20: =YTD!P31 -> Scott | E20: Y | F20: Y | G20: 1 | H20: 3 | L20: 4.74 | M20: =G20+H20 -> 4 | N20: =L20-(I20*0.2) -> 4.74 | O20: 9 | P20: =IF(F20="Y",N20,0) -> 4.74 | Q20: 1
B21: 5 | C21: N | D21: =YTD!P32 -> Steve D | E21: Y | F21: =YTD!Q32 -> N | G21: 0 | H21: 5 | I21: 1 | L21: 8.05 | M21: 5 | N21: 7.85 | O21: 2 | P21: 0 | Q21: 0
B22: 2 | C22: N | D22: =YTD!P33 -> Steve S | E22: Y | F22: =YTD!Q33 -> N | G22: 1 | H22: 2 | L22: 3.68 | M22: 3 | N22: 3.68 | O22: 12 | P22: 0 | Q22: 0
B23: 1 | C23: N | D23: =YTD!P34 -> Tom | E23: Y | F23: =YTD!Q34 -> N | G23: 0 | L23: 0 | M23: =G23+H23 -> 0 | N23: =L23-(I23*0.2) -> 0 | O23: 30 | P23: 0 | Q23: 0
C24: N | D24: =YTD!P35 -> X | E24: N | F24: N | M24: 0 | N24: 0 | O24: 35 | P24: 0 | Q24: 0
C25: N | D25: =YTD!P36 -> X | E25: N | F25: N | M25: 0 | N25: 0 | O25: 35 | P25: 0 | Q25: 0
C26: N | D26: =YTD!P37 -> X | E26: N | F26: N | M26: 0 | N26: 0 | O26: 35 | P26: 0 | Q26: 0
C27: N | D27: =YTD!P38 -> X | E27: N | F27: N | M27: 0 | N27: 0 | O27: 35 | P27: 0 | Q27: 0
C28: N | D28: =YTD!P39 -> X | E28: N | F28: N | M28: =G28+H28 -> 0 | N28: =L28-(I28*0.2) -> 0 | O28: 35 | P28: =IF(F28="Y",N28,0) -> 0 | Q28: =IF(E28="N",0,(IF(F28="N",0,1))) -> 0
A29: 26 | C29: N | D29: =YTD!P40 -> X | E29: N | F29: N | M29: =G29+H29 -> 0 | N29: =L29-(I29*0.2) -> 0 | O29: 35 | P29: =IF(F29="Y",N29,0) -> 0 | Q29: =IF(E29="N",0,(IF(F29="N",0,1))) -> 0
D30: Totals | E30: =COUNTIF(E4:E29,"Y") -> 18 | G30: =SUM(G4:G29) -> 15 | H30: =SUM(H4:H29) -> 41 | I30: =SUM(I4:I29) -> 7 | J30: =MAX(J4:J29) -> 4.3 | L30: =SUM(L4:L29) -> 86.49 | M30: =SUM(M4:M29) -> 56 | N30: =SUM(N4:N29) -> 85.09 | P30: =SUM(P4:P29) -> 35.28 | Q30: =SUM(Q4:Q29) -> 9
B31: Place | C31: Team # | D31: Partners | G31: Total Weight | I31: Place | J31: Team # | K31: Partners | N31: Total Weight | P31: NB Avg | Q31: =IF(Q30=0,"No Data",P30/Q30) -> 3.92
B32: 1st | C32: =Teams!$AD34 -> 8 | D32: =VLOOKUP($C32,$B$4:$D$29,3,0) -> Anthony | E32: & | F32: =IF($B$4:$B$29=20,"#N/A",IF(COUNTIF($B$4:$B$29,$C32)=1,"Alone",LOOKUP(2,1/($B$4:$B$29=$C32),$D$4:$D$29))) -> Jason | G32: =Teams!AE34 -> 14.99 | I32: 4th | J32: =Teams!$AD37 -> 5 | K32: =VLOOKUP($J32,$B$4:$D$29,3,0) -> Scott | L32: & | M32: =IF($B$4:$B$29=20,"#N/A",IF(COUNTIF($B$4:$B$29,$J32)=1,"Alone",LOOKUP(2,1/($B$4:$B$29=$J32),$D$4:$D$29))) -> Steve D | N32: =Teams!AE37 -> 12.59
B33: 2nd | C33: =Teams!$AD35 -> 6 | D33: =VLOOKUP($C33,$B$4:$D$29,3,0) -> Kam | E33: & | F33: =IF($B$4:$B$29=20,"#N/A",IF(COUNTIF($B$4:$B$29,$C33)=1,"Alone",LOOKUP(2,1/($B$4:$B$29=$C33),$D$4:$D$29))) -> Kevin | G33: =Teams!AE35 -> 13.83 | I33: 5th | J33: =Teams!$AD38 -> 9 | K33: =VLOOKUP($J33,$B$4:$D$29,3,0) -> Mike M | L33: & | M33: =IF($B$4:$B$29=20,"#N/A",IF(COUNTIF($B$4:$B$29,$J33)=1,"Alone",LOOKUP(2,1/($B$4:$B$29=$J33),$D$4:$D$29))) -> Morrie | N33: =Teams!AE38 -> 10.14
B34: 3rd | C34: =Teams!$AD36 -> 3 | D34: =VLOOKUP($C34,$B$4:$D$29,3,0) -> Dean | E34: & | F34: =IF($B$4:$B$29=20,"#N/A",IF(COUNTIF($B$4:$B$29,$C34)=1,"Alone",LOOKUP(2,1/($B$4:$B$29=$C34),$D$4:$D$29))) -> Ryan | G34: =Teams!AE36 -> 12.61 | I34: 6th | J34: =Teams!$AD39 -> 4 | K34: =VLOOKUP($J34,$B$4:$D$29,3,0) -> Rich B | L34: & | M34: =IF($B$4:$B$29=20,"#N/A",IF(COUNTIF($B$4:$B$29,$J34)=1,"Alone",LOOKUP(2,1/($B$4:$B$29=$J34),$D$4:$D$29))) -> Rich T | N34: =Teams!AE39 -> 9.94

Sheet CT River
A1: =YTD!L21 -> CT River
B2: Team | C2: Fish | D2: Member | E2: Show | F2: Non | G2: Number | H2: Number | I2: Number | J2: Lunker | K2: Species | L2: Gross | M2: Total | N2: Net | O2: Points | P2: Non Boater | Q2: # Non-
B3: Number | C3: Alone? | D3: Name | E3: Up? | F3: Boater? | G3: of LMB | H3: of SMB | I3: Dead | J3: Weight | K3: LMB/SMB | L3: Weight | M3: Caught | N3: Weight | O3: Awarded | P3: Weight | Q3: Boaters
A4: 1 | B4: 4 | C4: N | D4: =YTD!P15 -> Anthony | E4: Y | F4: =YTD!Q15 -> Y | G4: 0 | M4: =G4+H4 -> 0 | N4: =L4-(I4*0.2) -> 0 | O4: =IF($E4="N",35,IF($M4=0,30,RANK($N4,$N$4:$N$29,0))) -> 30 | P4: =IF(F4="Y",N4,0) -> 0 | Q4: =IF(E4="N",0,(IF(F4="N",0,1))) -> 1
A5: 2 | C5: N | D5: =YTD!P16 -> Armand | E5: N | F5: =YTD!Q16 -> N | M5: 0 | N5: 0 | O5: =IF($E5="N",35,IF($M5=0,30,RANK($N5,$N$4:$N$29,0))) -> 35 | P5: 0 | Q5: =IF(E5="N",0,(IF(F5="N",0,1))) -> 0
A6: 3 | B6: 9 | C6: N | D6: =YTD!P17 -> Dean | E6: Y | F6: =YTD!Q17 -> N | G6: 1 | L6: 1.31 | M6: =G6+H6 -> 1 | N6: =L6-(I6*0.2) -> 1.31 | O6: 9 | P6: =IF(F6="Y",N6,0) -> 0 | Q6: 0
A7: 4 | B7: 9 | C7: N | D7: =YTD!P18 -> Jack | E7: Y | F7: =YTD!Q18 -> Y | H7: 1 | L7: 1.07 | M7: 1 | N7: =L7-(I7*0.2) -> 1.07 | O7: 11 | P7: 1.07 | Q7: 1
A8: 5 | C8: N | D8: =YTD!P19 -> Jason | E8: N | F8: =YTD!Q19 -> N | M8: =G8+H8 -> 0 | N8: =L8-(I8*0.2) -> 0 | O8: 35 | P8: =IF(F8="Y",N8,0) -> 0 | Q8: 0
A9: 6 | C9: N | D9: =YTD!P20 -> Jim B | E9: N | F9: =YTD!Q20 -> Y | M9: 0 | N9: 0 | O9: 35 | P9: 0 | Q9: 0
A10: 7 | B10: 2 | C10: N | D10: =YTD!P21 -> Kam | E10: Y | F10: =YTD!Q21 -> Y | G10: 0 | M10: 0 | N10: 0 | O10: 30 | P10: 0 | Q10: 1
A11: 8 | B11: 1 | C11: Y | D11: =YTD!P22 -> Kevin | E11: Y | F11: =YTD!Q22 -> N | G11: 1 | L11: 0.83 | M11: =G11+H11 -> 1 | N11: =L11-(I11*0.2) -> 0.83 | O11: 12 | P11: =IF(F11="Y",N11,0) -> 0 | Q11: 0
A12: 9 | B12: 8 | C12: N | D12: =YTD!P23 -> Mike M | E12: Y | F12: =YTD!Q23 -> Y | G12: 1 | H12: 1 | L12: 2.8 | M12: 2 | N12: 2.8 | O12: 6 | P12: 2.8 | Q12: 1
A13: 10 | C13: N | D13: =YTD!P24 -> Mike G | E13: N | F13: =YTD!Q24 -> Y | M13: 0 | N13: 0 | O13: 35 | P13: 0 | Q13: 0
A14: 11 | B14: 7 | C14: N | D14: =YTD!P25 -> Morrie | E14: Y | F14: =YTD!Q25 -> N | G14: 3 | L14: 4.02 | M14: 3 | N14: 4.02 | O14: 3 | P14: 0 | Q14: 0
A15: 12 | B15: 3 | C15: N | D15: =YTD!P26 -> Peter | E15: Y | F15: =YTD!Q26 -> Y | G15: 2 | L15: 3.03 | M15: 2 | N15: 3.03 | O15: 5 | P15: 3.03 | Q15: 1
A16: 13 | B16: 2 | C16: N | D16: =YTD!P27 -> Rich B | E16: Y | F16: =YTD!Q27 -> N | G16: 2 | H16: 3 | J16: 4.43 | K16: SMB | L16: 15.72 | M16: 5 | N16: 15.72 | O16: 1 | P16: 0 | Q16: 0
A17: 14 | B17: 5 | C17: N | D17: =YTD!P28 -> Rich T | E17: Y | F17: =YTD!Q28 -> Y | G17: 2 | H17: 1 | L17: 3.5 | M17: 3 | N17: 3.5 | O17: 4 | P17: 3.5 | Q17: 1
A18: 15 | B18: 6 | C18: Y | D18: =YTD!P29 -> Ron | E18: Y | F18: =YTD!Q29 -> N | G18: 0 | M18: =G18+H18 -> 0 | N18: =L18-(I18*0.2) -> 0 | O18: 30 | P18: 0 | Q18: 0
A19: 16 | B19: 7 | C19: N | D19: =YTD!P30 -> Ryan | E19: Y | F19: =YTD!Q30 -> Y | G19: 2 | L19: 2.56 | M19: 2 | N19: 2.56 | O19: 7 | P19: 2.56 | Q19: 1
A20: 17 | B20: 5 | C20: N | D20: =YTD!P31 -> Scott | E20: Y | F20: =YTD!Q31 -> N | G20: 0 | M20: =G20+H20 -> 0 | N20: =L20-(I20*0.2) -> 0 | O20: 30 | P20: =IF(F20="Y",N20,0) -> 0 | Q20: 0
A21: 18 | B21: 8 | C21: N | D21: =YTD!P32 -> Steve D | E21: Y | F21: =YTD!Q32 -> N | G21: 2 | H21: 3 | L21: 8.76 | M21: 5 | N21: 8.76 | O21: 2 | P21: 0 | Q21: 0
A22: 19 | B22: 3 | C22: N | D22: =YTD!P33 -> Steve S | E22: Y | F22: =YTD!Q33 -> N | G22: 1 | L22: 1.61 | M22: 1 | N22: 1.61 | O22: 8 | P22: 0 | Q22: 0
A23: 20 | B23: 4 | C23: N | D23: =YTD!P34 -> Tom | E23: Y | F23: =YTD!Q34 -> N | H23: 1 | L23: 1.26 | M23: =G23+H23 -> 1 | N23: =L23-(I23*0.2) -> 1.26 | O23: 10 | P23: 0 | Q23: 0
A24: 21 | C24: N | D24: =YTD!P35 -> X | E24: N | F24: =YTD!Q35 -> N | M24: 0 | N24: 0 | O24: 35 | P24: 0 | Q24: 0
A25: 22 | C25: N | D25: =YTD!P36 -> X | E25: N | F25: =YTD!Q36 -> N | M25: 0 | N25: 0 | O25: 35 | P25: 0 | Q25: 0
A26: 23 | C26: N | D26: =YTD!P37 -> X | E26: N | F26: =YTD!Q37 -> N | M26: 0 | N26: 0 | O26: 35 | P26: 0 | Q26: 0
A27: 24 | C27: N | D27: =YTD!P38 -> X | E27: N | F27: =YTD!Q38 -> N | M27: 0 | N27: 0 | O27: 35 | P27: 0 | Q27: 0
A28: 25 | C28: N | D28: =YTD!P39 -> X | E28: N | F28: =YTD!Q39 -> N | M28: =G28+H28 -> 0 | N28: =L28-(I28*0.2) -> 0 | O28: 35 | P28: =IF(F28="Y",N28,0) -> 0 | Q28: =IF(E28="N",0,(IF(F28="N",0,1))) -> 0
A29: 26 | C29: N | D29: =YTD!P40 -> X | E29: N | F29: =YTD!Q40 -> N | M29: =G29+H29 -> 0 | N29: =L29-(I29*0.2) -> 0 | O29: 35 | P29: =IF(F29="Y",N29,0) -> 0 | Q29: =IF(E29="N",0,(IF(F29="N",0,1))) -> 0
D30: Totals | E30: =COUNTIF(E4:E29,"Y") -> 16 | G30: =SUM(G4:G29) -> 17 | H30: =SUM(H4:H29) -> 10 | I30: =SUM(I4:I29) -> 0 | J30: =MAX(J4:J29) -> 4.43 | L30: =SUM(L4:L29) -> 46.47 | M30: =SUM(M4:M29) -> 27 | N30: =SUM(N4:N29) -> 46.47 | P30: =SUM(P4:P29) -> 12.96 | Q30: =SUM(Q4:Q29) -> 7
B31: Place | C31: Team # | D31: Partners | G31: Total Weight | I31: Place | J31: Team # | K31: Partners | N31: Total Weight | P31: NB Avg | Q31: =IF(Q30=0,"No Data",P30/Q30) -> 1.851428571
B32: 1st | C32: =Teams!$AD64 -> 2 | D32: =VLOOKUP($C32,$B$4:$D$29,3,0) -> Kam | E32: & | F32: =IF($B$4:$B$29=20,"#N/A",IF(COUNTIF($B$4:$B$29,$C32)=1,"Alone",LOOKUP(2,1/($B$4:$B$29=$C32),$D$4:$D$29))) -> Rich B | G32: =Teams!AE64 -> 15.72 | I32: 4th | J32: =Teams!$AD67 -> 3 | K32: =VLOOKUP($J32,$B$4:$D$29,3,0) -> Peter | L32: & | M32: =IF($B$4:$B$29=20,"#N/A",IF(COUNTIF($B$4:$B$29,$J32)=1,"Alone",LOOKUP(2,1/($B$4:$B$29=$J32),$D$4:$D$29))) -> Steve S | N32: =Teams!AE67 -> 4.64
B33: 2nd | C33: =Teams!$AD65 -> 8 | D33: =VLOOKUP($C33,$B$4:$D$29,3,0) -> Mike M | E33: & | F33: =IF($B$4:$B$29=20,"#N/A",IF(COUNTIF($B$4:$B$29,$C33)=1,"Alone",LOOKUP(2,1/($B$4:$B$29=$C33),$D$4:$D$29))) -> Steve D | G33: =Teams!AE65 -> 11.56 | I33: 5th | J33: =Teams!$AD68 -> 5 | K33: =VLOOKUP($J33,$B$4:$D$29,3,0) -> Rich T | L33: & | M33: =IF($B$4:$B$29=20,"#N/A",IF(COUNTIF($B$4:$B$29,$J33)=1,"Alone",LOOKUP(2,1/($B$4:$B$29=$J33),$D$4:$D$29))) -> Scott | N33: =Teams!AE68 -> 3.5
B34: 3rd | C34: =Teams!$AD66 -> 7 | D34: =VLOOKUP($C34,$B$4:$D$29,3,0) -> Morrie | E34: & | F34: =IF($B$4:$B$29=20,"#N/A",IF(COUNTIF($B$4:$B$29,$C34)=1,"Alone",LOOKUP(2,1/($B$4:$B$29=$C34),$D$4:$D$29))) -> Ryan | G34: =Teams!AE66 -> 6.58 | I34: 6th | J34: =Teams!$AD69 -> 1 | K34: =VLOOKUP($J34,$B$4:$D$29,3,0) -> Kevin | L34: & | M34: =IF($B$4:$B$29=20,"#N/A",IF(COUNTIF($B$4:$B$29,$J34)=1,"Alone",LOOKUP(2,1/($B$4:$B$29=$J34),$D$4:$D$29))) -> Alone | N34: =Teams!AE69 -> 2.681428571

Sheet Bashan
A1: =YTD!L22 -> Bashan
B2: Team | C2: Fish | D2: Member | E2: Show | F2: Non | G2: Number | H2: Number | I2: Number | J2: Lunker | K2: Species | L2: Gross | M2: Total | N2: Net | O2: Points | P2: Non Boater | Q2: # Non-
B3: Number | C3: Alone? | D3: Name | E3: Up? | F3: Boater? | G3: of LMB | H3: of SMB | I3: Dead | J3: Weight | K3: LMB/SMB | L3: Weight | M3: Caught | N3: Weight | O3: Awarded | P3: Weight | Q3: Boaters
A4: 1 | B4: 5 | C4: N | D4: =YTD!P15 -> Anthony | E4: Y | F4: =YTD!Q15 -> Y | G4: 5 | L4: 7.48 | M4: =G4+H4 -> 5 | N4: =L4-(I4*0.2) -> 7.48 | O4: =IF($E4="N",35,IF($M4=0,30,RANK($N4,$N$4:$N$29,0))) -> 5 | P4: =IF(F4="Y",N4,0) -> 7.48 | Q4: =IF(E4="N",0,(IF(F4="N",0,1))) -> 1
A5: 2 | C5: N | D5: =YTD!P16 -> Armand | E5: N | F5: =YTD!Q16 -> N | M5: 0 | N5: 0 | O5: =IF($E5="N",35,IF($M5=0,30,RANK($N5,$N$4:$N$29,0))) -> 35 | P5: 0 | Q5: =IF(E5="N",0,(IF(F5="N",0,1))) -> 0
A6: 3 | B6: 3 | C6: N | D6: =YTD!P17 -> Dean | E6: Y | F6: =YTD!Q17 -> N | G6: 3 | L6: 3.72 | M6: =G6+H6 -> 3 | N6: =L6-(I6*0.2) -> 3.72 | O6: 11 | P6: =IF(F6="Y",N6,0) -> 0 | Q6: 0
A7: 4 | C7: N | D7: =YTD!P18 -> Jack | E7: N | F7: =YTD!Q18 -> Y | M7: 0 | N7: 0 | O7: 35 | P7: 0 | Q7: 0
A8: 5 | C8: N | D8: =YTD!P19 -> Jason | E8: N | F8: =YTD!Q19 -> N | M8: =G8+H8 -> 0 | N8: =L8-(I8*0.2) -> 0 | O8: 35 | P8: =IF(F8="Y",N8,0) -> 0 | Q8: 0
A9: 6 | B9: 2 | C9: N | D9: =YTD!P20 -> Jim B | E9: Y | F9: =YTD!Q20 -> Y | G9: 5 | L9: 8.05 | M9: 5 | N9: 8.05 | O9: 3 | P9: 8.05 | Q9: 1
A10: 7 | B10: 6 | C10: N | D10: =YTD!P21 -> Kam | E10: Y | F10: =YTD!Q21 -> Y | G10: 0 | M10: 0 | N10: 0 | O10: 30 | P10: 0 | Q10: 1
A11: 8 | B11: 2 | C11: N | D11: =YTD!P22 -> Kevin | E11: Y | F11: =YTD!Q22 -> N | G11: 5 | L11: 6.28 | M11: =G11+H11 -> 5 | N11: =L11-(I11*0.2) -> 6.28 | O11: 8 | P11: =IF(F11="Y",N11,0) -> 0 | Q11: 0
A12: 9 | B12: 4 | C12: N | D12: =YTD!P23 -> Mike M | E12: Y | F12: =YTD!Q23 -> Y | G12: 4 | L12: 6.33 | M12: 4 | N12: 6.33 | O12: 7 | P12: 6.33 | Q12: 1
A13: 10 | C13: N | D13: =YTD!P24 -> Mike G | E13: N | F13: =YTD!Q24 -> Y | M13: 0 | N13: 0 | O13: 35 | P13: 0 | Q13: 0
A14: 11 | B14: 1 | C14: N | D14: =YTD!P25 -> Morrie | E14: Y | F14: =YTD!Q25 -> N | G14: 2 | L14: 2.33 | M14: 2 | N14: 2.33 | O14: 12 | P14: 0 | Q14: 0
A15: 12 | B15: 3 | C15: N | D15: =YTD!P26 -> Peter | E15: Y | F15: =YTD!Q26 -> Y | G15: 4 | L15: 5.9 | M15: 4 | N15: 5.9 | O15: 9 | P15: 5.9 | Q15: 1
A16: 13 | B16: 1 | C16: N | D16: =YTD!P27 -> Rich B | E16: Y | F16: Y | G16: 5 | I16: 1 | L16: 7.42 | M16: 5 | N16: 7.22 | O16: 6 | P16: 7.22 | Q16: 1
A17: 14 | B17: 5 | C17: N | D17: =YTD!P28 -> Rich T | E17: Y | F17: N | G17: 5 | L17: 9.36 | M17: 5 | N17: 9.36 | O17: 1 | P17: 0 | Q17: 0
A18: 15 | B18: 4 | C18: N | D18: =YTD!P29 -> Ron | E18: Y | F18: =YTD!Q29 -> N | G18: 1 | L18: 1.99 | M18: =G18+H18 -> 1 | N18: =L18-(I18*0.2) -> 1.99 | O18: 13 | P18: 0 | Q18: 0
A19: 16 | B19: 7 | C19: N | D19: =YTD!P30 -> Ryan | E19: Y | F19: =YTD!Q30 -> Y | G19: 5 | I19: 1 | L19: 7.96 | M19: 5 | N19: 7.76 | O19: 4 | P19: 7.76 | Q19: 1
A20: 17 | B20: 6 | C20: N | D20: =YTD!P31 -> Scott | E20: Y | F20: =YTD!Q31 -> N | G20: 5 | L20: 5.72 | M20: =G20+H20 -> 5 | N20: =L20-(I20*0.2) -> 5.72 | O20: 10 | P20: =IF(F20="Y",N20,0) -> 0 | Q20: 0
A21: 18 | B21: 7 | C21: N | D21: =YTD!P32 -> Steve D | E21: Y | F21: =YTD!Q32 -> N | G21: 5 | J21: 2.59 | K21: LMB | L21: 8.09 | M21: 5 | N21: 8.09 | O21: 2 | P21: 0 | Q21: 0
A22: 19 | B22: 8 | C22: Y | D22: =YTD!P33 -> Steve S | E22: Y | F22: =YTD!Q33 -> N | G22: 1 | L22: 1.43 | M22: 1 | N22: 1.43 | O22: 14 | P22: 0 | Q22: 0
A23: 20 | C23: N | D23: =YTD!P34 -> Tom | E23: N | F23: =YTD!Q34 -> N | M23: =G23+H23 -> 0 | N23: =L23-(I23*0.2) -> 0 | O23: 35 | P23: 0 | Q23: 0
A24: 21 | C24: N | D24: =YTD!P35 -> X | E24: N | F24: =YTD!Q35 -> N | M24: 0 | N24: 0 | O24: 35 | P24: 0 | Q24: 0
A25: 22 | C25: N | D25: =YTD!P36 -> X | E25: N | F25: =YTD!Q36 -> N | M25: 0 | N25: 0 | O25: 35 | P25: 0 | Q25: 0
A26: 23 | C26: N | D26: =YTD!P37 -> X | E26: N | F26: =YTD!Q37 -> N | M26: 0 | N26: 0 | O26: 35 | P26: 0 | Q26: 0
A27: 24 | C27: N | D27: =YTD!P38 -> X | E27: N | F27: =YTD!Q38 -> N | M27: 0 | N27: 0 | O27: 35 | P27: 0 | Q27: 0
A28: 25 | C28: N | D28: =YTD!P39 -> X | E28: N | F28: =YTD!Q39 -> N | M28: =G28+H28 -> 0 | N28: =L28-(I28*0.2) -> 0 | O28: 35 | P28: =IF(F28="Y",N28,0) -> 0 | Q28: =IF(E28="N",0,(IF(F28="N",0,1))) -> 0
A29: 26 | C29: N | D29: =YTD!P40 -> X | E29: N | F29: =YTD!Q40 -> N | M29: =G29+H29 -> 0 | N29: =L29-(I29*0.2) -> 0 | O29: 35 | P29: =IF(F29="Y",N29,0) -> 0 | Q29: =IF(E29="N",0,(IF(F29="N",0,1))) -> 0
D30: Totals | E30: =COUNTIF(E4:E29,"Y") -> 15 | G30: =SUM(G4:G29) -> 55 | H30: =SUM(H4:H29) -> 0 | I30: =SUM(I4:I29) -> 2 | J30: =MAX(J4:J29) -> 2.59 | L30: =SUM(L4:L29) -> 82.06 | M30: =SUM(M4:M29) -> 55 | N30: =SUM(N4:N29) -> 81.66 | P30: =SUM(P4:P29) -> 42.74 | Q30: =SUM(Q4:Q29) -> 7
B31: Place | C31: Team # | D31: Partners | G31: Total Weight | I31: Place | J31: Team # | K31: Partners | N31: Total Weight | P31: NB Avg | Q31: =IF(Q30=0,"No Data",P30/Q30) -> 6.105714286
B32: 1st | C32: =Teams!$AD94 -> 5 | D32: =VLOOKUP($C32,$B$4:$D$29,3,0) -> Anthony | E32: & | F32: =IF($B$4:$B$29=20,"#N/A",IF(COUNTIF($B$4:$B$29,$C32)=1,"Alone",LOOKUP(2,1/($B$4:$B$29=$C32),$D$4:$D$29))) -> Rich T | G32: =Teams!AE94 -> 16.84 | I32: 4th | J32: =Teams!$AD97 -> 3 | K32: =VLOOKUP($J32,$B$4:$D$29,3,0) -> Dean | L32: & | M32: =IF($B$4:$B$29=20,"#N/A",IF(COUNTIF($B$4:$B$29,$J32)=1,"Alone",LOOKUP(2,1/($B$4:$B$29=$J32),$D$4:$D$29))) -> Peter | N32: =Teams!AE97 -> 9.62
B33: 2nd | C33: =Teams!$AD95 -> 7 | D33: =VLOOKUP($C33,$B$4:$D$29,3,0) -> Ryan | E33: & | F33: =IF($B$4:$B$29=20,"#N/A",IF(COUNTIF($B$4:$B$29,$C33)=1,"Alone",LOOKUP(2,1/($B$4:$B$29=$C33),$D$4:$D$29))) -> Steve D | G33: =Teams!AE95 -> 15.85 | I33: 5th | J33: =Teams!$AD98 -> 1 | K33: =VLOOKUP($J33,$B$4:$D$29,3,0) -> Morrie | L33: & | M33: =IF($B$4:$B$29=20,"#N/A",IF(COUNTIF($B$4:$B$29,$J33)=1,"Alone",LOOKUP(2,1/($B$4:$B$29=$J33),$D$4:$D$29))) -> Rich B | N33: =Teams!AE98 -> 9.55
B34: 3rd | C34: =Teams!$AD96 -> 2 | D34: =VLOOKUP($C34,$B$4:$D$29,3,0) -> Jim B | E34: & | F34: =IF($B$4:$B$29=20,"#N/A",IF(COUNTIF($B$4:$B$29,$C34)=1,"Alone",LOOKUP(2,1/($B$4:$B$29=$C34),$D$4:$D$29))) -> Kevin | G34: =Teams!AE96 -> 14.33 | I34: 6th | J34: =Teams!$AD99 -> 4 | K34: =VLOOKUP($J34,$B$4:$D$29,3,0) -> Mike M | L34: & | M34: =IF($B$4:$B$29=20,"#N/A",IF(COUNTIF($B$4:$B$29,$J34)=1,"Alone",LOOKUP(2,1/($B$4:$B$29=$J34),$D$4:$D$29))) -> Ron | N34: =Teams!AE99 -> 8.32

Sheet Teams
A2: =YTD!L15 -> Moodus | M2: Sort | N2: Copy | O2: Sort | Q2: =YTD!L19 -> Twin Lakes | AC2: Sort | AD2: Copy | AE2: Sort
A3: Team # | B3: Alone? | C3: Name | D3: Net Wt | F3: Team # | G3: Alone? | H3: Name | I3: Net Wt | K3: Totals | L3: Rank | M3: Rank | N3: Team # | O3: Tot Wt | Q3: Team # | R3: Alone? | S3: Name | T3: Net Wt | V3: Team # | W3: Alone? | X3: Name | Y3: Net Wt | AA3: Totals | AB3: Rank | AC3: Rank | AD3: Team # | AE3: Tot Wt
A4: =Moodus!B4 -> 5 | B4: =Moodus!C4 -> N | C4: =Moodus!D4 -> Anthony | D4: =Moodus!N4 -> 0.88 | F4: 0 | G4: N | H4: X | I4: 0 | K4: =IF(F4=20,0,IF(F4=F5,I4+I5,IF(G4="Y",I4+I$30,0))) -> 0 | L4: =IF(K4>0,RANK(K4,K$4:K$29,0),"") ->  | M4: 1 | N4: 2 | O4: 9.47 | Q4: ='Twin Lakes'!B4 -> 10 | R4: ='Twin Lakes'!C4 -> N | S4: ='Twin Lakes'!D4 -> Anthony | T4: ='Twin Lakes'!N4 -> 0.86 | V4: 0 | W4: N | X4: Armand | Y4: 0 | AA4: =IF(V4=20,0,IF(V4=V5,Y4+Y5,IF(W4="Y",Y4+Y$30,0))) -> 0 | AB4: =IF(AA4>0,RANK(AA4,AA$4:AA$29,0),"") ->  | AC4: 1 | AD4: 4 | AE4: 19.83
A5: =Moodus!B5 -> 9 | B5: =Moodus!C5 -> N | C5: =Moodus!D5 -> Armand | D5: =Moodus!N5 -> 1.98 | F5: 0 | G5: N | H5: X | I5: 0 | K5: =IF(F5=20,0,IF(F5=F6,I5+I6,IF(G5="Y",I5+I$30,0))) -> 0 | L5: =IF(K5>0,RANK(K5,K$4:K$29,0),"") ->  | M5: 2 | N5: 4 | O5: 6.15 | Q5: ='Twin Lakes'!B5 -> 0 | R5: ='Twin Lakes'!C5 -> N | S5: ='Twin Lakes'!D5 -> Armand | T5: ='Twin Lakes'!N5 -> 0 | V5: 0 | W5: N | X5: X | Y5: 0 | AA5: =IF(V5=20,0,IF(V5=V6,Y5+Y6,IF(W5="Y",Y5+Y$30,0))) -> 0 | AB5: =IF(AA5>0,RANK(AA5,AA$4:AA$29,0),"") ->  | AC5: 2 | AD5: 8 | AE5: 13.44
A6: =Moodus!B6 -> 2 | B6: =Moodus!C6 -> N | C6: =Moodus!D6 -> Dean | D6: =Moodus!N6 -> 8.4 | F6: 0 | G6: N | H6: X | I6: 0 | K6: 0 | M6: 3 | N6: 1 | O6: 5.97 | Q6: ='Twin Lakes'!B6 -> 7 | R6: ='Twin Lakes'!C6 -> N | S6: ='Twin Lakes'!D6 -> Dean | T6: ='Twin Lakes'!N6 -> 3.15 | V6: 0 | W6: N | X6: X | Y6: 0 | AA6: 0 | AC6: 3 | AD6: 3 | AE6: 13.33
A7: =Moodus!B7 -> 6 | B7: =Moodus!C7 -> N | C7: =Moodus!D7 -> Jack | D7: =Moodus!N7 -> 1.75 | F7: 0 | G7: N | H7: X | I7: 0 | K7: 0 | M7: 4 | N7: 10 | O7: 4.86 | Q7: ='Twin Lakes'!B7 -> 9 | R7: ='Twin Lakes'!C7 -> N | S7: ='Twin Lakes'!D7 -> Jack | T7: ='Twin Lakes'!N7 -> 5.4 | V7: 0 | W7: N | X7: X | Y7: 0 | AA7: 0 | AC7: 4 | AD7: 6 | AE7: 12.98
A8: =Moodus!B8 -> 8 | B8: =Moodus!C8 -> N | C8: =Moodus!D8 -> Jason | D8: =Moodus!N8 -> 0 | F8: 0 | G8: N | H8: X | I8: 0 | K8: 0 | M8: 5 | N8: 8 | O8: 3.91 | Q8: ='Twin Lakes'!B8 -> 8 | R8: ='Twin Lakes'!C8 -> N | S8: ='Twin Lakes'!D8 -> Jason | T8: ='Twin Lakes'!N8 -> 9.51 | V8: 0 | W8: N | X8: X | Y8: 0 | AA8: 0 | AC8: 5 | AD8: 2 | AE8: 12.11444444
A9: =Moodus!B9 -> 2 | B9: =Moodus!C9 -> N | C9: =Moodus!D9 -> Jim B | D9: =Moodus!N9 -> 1.07 | F9: 0 | G9: N | H9: X | I9: 0 | K9: 0 | M9: 6 | N9: 3 | O9: 3.87 | Q9: ='Twin Lakes'!B9 -> 8 | R9: ='Twin Lakes'!C9 -> N | S9: ='Twin Lakes'!D9 -> Jim B | T9: ='Twin Lakes'!N9 -> 3.93 | V9: 0 | W9: N | X9: X | Y9: 0 | AA9: 0 | AC9: 6 | AD9: 5 | AE9: 11.78
A10: =Moodus!B10 -> 1 | B10: =Moodus!C10 -> N | C10: =Moodus!D10 -> Kam | D10: =Moodus!N10 -> 1.01 | F10: 1 | G10: N | H10: Kam | I10: 1.01 | K10: 5.97 | L10: 3 | M10: 7 | N10: 9 | O10: 3.19 | Q10: ='Twin Lakes'!B10 -> 1 | R10: ='Twin Lakes'!C10 -> N | S10: ='Twin Lakes'!D10 -> Kam | T10: ='Twin Lakes'!N10 -> 7.05 | V10: 0 | W10: N | X10: X | Y10: 0 | AA10: 0 | AC10: 7 | AD10: 9 | AE10: 10.84
A11: =Moodus!B11 -> 4 | B11: =Moodus!C11 -> N | C11: =Moodus!D11 -> Kevin | D11: =Moodus!N11 -> 5.21 | F11: 1 | G11: N | H11: Steve D | I11: 4.96 | K11: 0 | M11: 8 | N11: 6 | O11: 2.79 | Q11: ='Twin Lakes'!B11 -> 4 | R11: ='Twin Lakes'!C11 -> N | S11: ='Twin Lakes'!D11 -> Kevin | T11: ='Twin Lakes'!N11 -> 6.93 | V11: 1 | W11: N | X11: Kam | Y11: 7.05 | AA11: 9.02 | AB11: 8 | AC11: 8 | AD11: 1 | AE11: 9.02
A12: =Moodus!B12 -> 4 | B12: =Moodus!C12 -> N | C12: =Moodus!D12 -> Mike M | D12: =Moodus!N12 -> 0.94 | F12: 2 | G12: N | H12: Dean | I12: 8.4 | K12: 9.47 | L12: 1 | M12: 9 | N12: 5 | O12: 2.03 | Q12: ='Twin Lakes'!B12 -> 7 | R12: ='Twin Lakes'!C12 -> N | S12: ='Twin Lakes'!D12 -> Mike M | T12: ='Twin Lakes'!N12 -> 1.75 | V12: 1 | W12: N | X12: Morrie | Y12: 1.97 | AA12: 0 | AC12: 9 | AD12: 10 | AE12: 6.53
A13: =Moodus!B13 -> 10 | B13: =Moodus!C13 -> N | C13: =Moodus!D13 -> Mike G | D13: =Moodus!N13 -> 3.15 | F13: 2 | G13: N | H13: Jim B | I13: 1.07 | K13: 0 | M13: 10 | N13: 7 | O13: 0.91 | Q13: ='Twin Lakes'!B13 -> 6 | R13: ='Twin Lakes'!C13 -> N | S13: ='Twin Lakes'!D13 -> Mike G | T13: ='Twin Lakes'!N13 -> 3.05 | V13: 2 | W13: Y | X13: Steve D | Y13: 6.74 | AA13: 12.11444444 | AB13: 5 | AC13: 10 | AD13: 7 | AE13: 4.9
A14: =Moodus!B14 -> 10 | B14: =Moodus!C14 -> N | C14: =Moodus!D14 -> Morrie | D14: =Moodus!N14 -> 1.71 | F14: 3 | G14: N | H14: Rich T | I14: 2.77 | K14: 3.87 | L14: 6 | N14: 0 | O14: 0 | Q14: ='Twin Lakes'!B14 -> 1 | R14: ='Twin Lakes'!C14 -> N | S14: ='Twin Lakes'!D14 -> Morrie | T14: ='Twin Lakes'!N14 -> 1.97 | V14: 3 | W14: N | X14: Ryan | Y14: 6.77 | AA14: 13.33 | AB14: 3 | AD14: 0 | AE14: 0
A15: =Moodus!B15 -> 8 | B15: =Moodus!C15 -> N | C15: =Moodus!D15 -> Peter | D15: =Moodus!N15 -> 3.97 | F15: 3 | G15: N | H15: Ron | I15: 1.1 | K15: 0 | N15: 0 | O15: 0 | Q15: ='Twin Lakes'!B15 -> 5 | R15: ='Twin Lakes'!C15 -> N | S15: ='Twin Lakes'!D15 -> Peter | T15: ='Twin Lakes'!N15 -> 6.66 | V15: 3 | W15: N | X15: Steve S | Y15: 6.56 | AA15: 0 | AD15: 0 | AE15: 0
A16: =Moodus!B16 -> 7 | B16: =Moodus!C16 -> N | C16: =Moodus!D16 -> Rich B | D16: =Moodus!N16 -> 0 | F16: 4 | G16: N | H16: Kevin | I16: 5.21 | K16: 6.15 | L16: 2 | N16: 0 | O16: 0 | Q16: ='Twin Lakes'!B16 -> 5 | R16: ='Twin Lakes'!C16 -> N | S16: ='Twin Lakes'!D16 -> Rich B | T16: ='Twin Lakes'!N16 -> 5.12 | V16: 4 | W16: N | X16: Kevin | Y16: 6.93 | AA16: 19.83 | AB16: 1 | AD16: 0 | AE16: 0
A17: =Moodus!B17 -> 3 | B17: =Moodus!C17 -> N | C17: =Moodus!D17 -> Rich T | D17: =Moodus!N17 -> 2.77 | F17: 4 | G17: N | H17: Mike M | I17: 0.94 | K17: 0 | N17: 0 | O17: 0 | Q17: ='Twin Lakes'!B17 -> 4 | R17: ='Twin Lakes'!C17 -> N | S17: ='Twin Lakes'!D17 -> Rich T | T17: ='Twin Lakes'!N17 -> 12.9 | V17: 4 | W17: N | X17: Rich T | Y17: 12.9 | AA17: 0 | AD17: 0 | AE17: 0
A18: =Moodus!B18 -> 3 | B18: =Moodus!C18 -> N | C18: =Moodus!D18 -> Ron | D18: =Moodus!N18 -> 1.1 | F18: 5 | G18: N | H18: Anthony | I18: 0.88 | K18: 2.03 | L18: 9 | N18: 0 | O18: 0 | Q18: ='Twin Lakes'!B18 -> 10 | R18: ='Twin Lakes'!C18 -> N | S18: ='Twin Lakes'!D18 -> Ron | T18: ='Twin Lakes'!N18 -> 5.67 | V18: 5 | W18: N | X18: Peter | Y18: 6.66 | AA18: 11.78 | AB18: 6 | AD18: 0 | AE18: 0
A19: =Moodus!B19 -> 9 | B19: =Moodus!C19 -> N | C19: =Moodus!D19 -> Ryan | D19: =Moodus!N19 -> 1.21 | F19: 5 | G19: N | H19: Steve S | I19: 1.15 | K19: 0 | N19: 0 | O19: 0 | Q19: ='Twin Lakes'!B19 -> 3 | R19: ='Twin Lakes'!C19 -> N | S19: ='Twin Lakes'!D19 -> Ryan | T19: ='Twin Lakes'!N19 -> 6.77 | V19: 5 | W19: N | X19: Rich B | Y19: 5.12 | AA19: 0 | AD19: 0 | AE19: 0
A20: =Moodus!B20 -> 7 | B20: =Moodus!C20 -> N | C20: =Moodus!D20 -> Scott | D20: =Moodus!N20 -> 0.91 | F20: 6 | G20: N | H20: Jack | I20: 1.75 | K20: 2.79 | L20: 8 | N20: 1 | O20: 0 | Q20: ='Twin Lakes'!B20 -> 9 | R20: ='Twin Lakes'!C20 -> N | S20: ='Twin Lakes'!D20 -> Scott | T20: ='Twin Lakes'!N20 -> 5.44 | V20: 6 | W20: N | X20: Mike G | Y20: 3.05 | AA20: 12.98 | AB20: 4 | AD20: 0 | AE20: 0
A21: =Moodus!B21 -> 1 | B21: =Moodus!C21 -> N | C21: =Moodus!D21 -> Steve D | D21: =Moodus!N21 -> 4.96 | F21: 6 | G21: N | H21: Tom | I21: 1.04 | K21: 0 | N21: 2 | O21: 0 | Q21: ='Twin Lakes'!B21 -> 2 | R21: ='Twin Lakes'!C21 -> Y | S21: ='Twin Lakes'!D21 -> Steve D | T21: ='Twin Lakes'!N21 -> 6.74 | V21: 6 | W21: N | X21: Tom | Y21: 9.93 | AA21: 0 | AD21: 1 | AE21: 0
A22: =Moodus!B22 -> 5 | B22: =Moodus!C22 -> N | C22: =Moodus!D22 -> Steve S | D22: =Moodus!N22 -> 1.15 | F22: 7 | G22: N | H22: Rich B | I22: 0 | K22: 0.91 | L22: 10 | N22: 3 | O22: 0 | Q22: ='Twin Lakes'!B22 -> 3 | R22: ='Twin Lakes'!C22 -> N | S22: ='Twin Lakes'!D22 -> Steve S | T22: ='Twin Lakes'!N22 -> 6.56 | V22: 7 | W22: N | X22: Dean | Y22: 3.15 | AA22: 4.9 | AB22: 10 | AD22: 3 | AE22: 0
A23: =Moodus!B23 -> 6 | B23: =Moodus!C23 -> N | C23: =Moodus!D23 -> Tom | D23: =Moodus!N23 -> 1.04 | F23: 7 | G23: N | H23: Scott | I23: 0.91 | K23: 0 | N23: 4 | O23: 0 | Q23: ='Twin Lakes'!B23 -> 6 | R23: ='Twin Lakes'!C23 -> N | S23: ='Twin Lakes'!D23 -> Tom | T23: ='Twin Lakes'!N23 -> 9.93 | V23: 7 | W23: N | X23: Mike M | Y23: 1.75 | AA23: 0 | AD23: 4 | AE23: 0
A24: =Moodus!B24 -> 0 | B24: =Moodus!C24 -> N | C24: =Moodus!D24 -> X | D24: =Moodus!N24 -> 0 | F24: 8 | G24: N | H24: Jason | I24: 0 | K24: 3.91 | L24: 5 | N24: 5 | O24: 0 | Q24: ='Twin Lakes'!B24 -> 0 | R24: ='Twin Lakes'!C24 -> N | S24: ='Twin Lakes'!D24 -> X | T24: ='Twin Lakes'!N24 -> 0 | V24: 8 | W24: N | X24: Jason | Y24: 9.51 | AA24: 13.44 | AB24: 2 | AD24: 5 | AE24: 0
A25: =Moodus!B25 -> 0 | B25: =Moodus!C25 -> N | C25: =Moodus!D25 -> X | D25: =Moodus!N25 -> 0 | F25: 8 | G25: N | H25: Peter | I25: 3.91 | K25: 0 | N25: 6 | O25: 0 | Q25: ='Twin Lakes'!B25 -> 0 | R25: ='Twin Lakes'!C25 -> N | S25: ='Twin Lakes'!D25 -> X | T25: ='Twin Lakes'!N25 -> 0 | V25: 8 | W25: N | X25: Jim B | Y25: 3.93 | AA25: 0 | AD25: 6 | AE25: 0
A26: =Moodus!B26 -> 0 | B26: =Moodus!C26 -> N | C26: =Moodus!D26 -> X | D26: =Moodus!N26 -> 0 | F26: 9 | G26: N | H26: Armand | I26: 1.98 | K26: 3.19 | L26: 7 | N26: 7 | O26: 0 | Q26: ='Twin Lakes'!B26 -> 0 | R26: ='Twin Lakes'!C26 -> N | S26: ='Twin Lakes'!D26 -> X | T26: ='Twin Lakes'!N26 -> 0 | V26: 9 | W26: N | X26: Jack | Y26: 5.4 | AA26: 10.84 | AB26: 7 | AD26: 7 | AE26: 0
A27: =Moodus!B27 -> 0 | B27: =Moodus!C27 -> N | C27: =Moodus!D27 -> X | D27: =Moodus!N27 -> 0 | F27: 9 | G27: N | H27: Ryan | I27: 1.21 | K27: 0 | N27: 8 | O27: 0 | Q27: ='Twin Lakes'!B27 -> 0 | R27: ='Twin Lakes'!C27 -> N | S27: ='Twin Lakes'!D27 -> X | T27: ='Twin Lakes'!N27 -> 0 | V27: 9 | W27: N | X27: Scott | Y27: 5.44 | AA27: 0 | AD27: 8 | AE27: 0
A28: =Moodus!B28 -> 0 | B28: =Moodus!C28 -> N | C28: =Moodus!D28 -> X | D28: =Moodus!N28 -> 0 | F28: 10 | G28: N | H28: Mike G | I28: 3.15 | K28: 4.86 | L28: 4 | N28: 9 | O28: 0 | Q28: ='Twin Lakes'!B28 -> 0 | R28: ='Twin Lakes'!C28 -> N | S28: ='Twin Lakes'!D28 -> X | T28: ='Twin Lakes'!N28 -> 0 | V28: 10 | W28: N | X28: Anthony | Y28: 0.86 | AA28: 6.53 | AB28: 9 | AD28: 9 | AE28: 0
A29: =Moodus!B29 -> 0 | B29: =Moodus!C29 -> N | C29: =Moodus!D29 -> X | D29: =Moodus!N29 -> 0 | F29: 10 | G29: N | H29: Morrie | I29: 1.71 | K29: 0 | N29: 10 | O29: 0 | Q29: ='Twin Lakes'!B29 -> 0 | R29: ='Twin Lakes'!C29 -> N | S29: ='Twin Lakes'!D29 -> X | T29: ='Twin Lakes'!N29 -> 0 | V29: 10 | W29: N | X29: Ron | Y29: 5.67 | AA29: 0 | AD29: 10 | AE29: 0
B30: Macro | C30: CTL+M | D30: Teams | E30: 1 | H30: NB Avg | I30: =Moodus!Q31 -> 1.675 | R30: Macro | S30: CTL+Y | T30: Teams | U30: 5 | X30: NB Avg | Y30: ='Twin Lakes'!Q31 -> 5.374444444
A32: =YTD!L16 -> Bantam | M32: Sort | N32: Copy | O32: Sort | Q32: =YTD!L20 -> Lillinonah | AC32: Sort | AD32: Copy | AE32: Sort
A33: Team # | B33: Alone? | C33: Name | D33: Net Wt | F33: Team # | G33: Alone? | H33: Name | I33: Net Wt | K33: Totals | L33: Rank | M33: Rank | N33: Team # | O33: Tot Wt | Q33: Team # | R33: Alone? | S33: Name | T33: Net Wt | V33: Team # | W33: Alone? | X33: Name | Y33: Net Wt | AA33: Totals | AB33: Rank | AC33: Rank | AD33: Team # | AE33: Tot Wt
A34: =Bantam!B4 -> 1 | B34: =Bantam!C4 -> N | C34: =Bantam!D4 -> Anthony | D34: =Bantam!N4 -> 3.04 | F34: 0 | G34: N | H34: Jim B | I34: 0 | K34: =IF(F34=20,0,IF(F34=F35,I34+I35,IF(G34="Y",I34+I$60,0))) -> 0 | L34: =IF(K34>0,RANK(K34,K$34:K$59,0),"") ->  | M34: 1 | N34: 2 | O34: 16.65 | Q34: =Lillinonah!B4 -> 8 | R34: =Lillinonah!C4 -> N | S34: =Lillinonah!D4 -> Anthony | T34: =Lillinonah!N4 -> 7.21 | V34: 0 | W34: N | X34: Peter | Y34: 0 | AA34: =IF(V34=20,0,IF(V34=V35,Y34+Y35,IF(W34="Y",Y34+Y$60,0))) -> 0 | AB34: =IF(AA34>0,RANK(AA34,AA$34:AA$59,0),"") ->  | AC34: 1 | AD34: 8 | AE34: 14.99
A35: =Bantam!B5 -> 6 | B35: =Bantam!C5 -> N | C35: =Bantam!D5 -> Armand | D35: =Bantam!N5 -> 11.29 | F35: 0 | G35: N | H35: Kam | I35: 0 | K35: =IF(F35=20,0,IF(F35=F36,I35+I36,IF(G35="Y",I35+I$60,0))) -> 0 | L35: =IF(K35>0,RANK(K35,K$34:K$59,0),"") ->  | M35: 2 | N35: 1 | O35: 15.74 | Q35: =Lillinonah!B5 -> 7 | R35: =Lillinonah!C5 -> N | S35: =Lillinonah!D5 -> Armand | T35: =Lillinonah!N5 -> 3.08 | V35: 0 | W35: N | X35: Ron | Y35: 0 | AA35: =IF(V35=20,0,IF(V35=V36,Y35+Y36,IF(W35="Y",Y35+$Y$60,0))) -> 0 | AB35: =IF(AA35>0,RANK(AA35,AA$34:AA$59,0),"") ->  | AC35: 2 | AD35: 6 | AE35: 13.83
A36: =Bantam!B6 -> 1 | B36: =Bantam!C6 -> N | C36: =Bantam!D6 -> Dean | D36: =Bantam!N6 -> 12.7 | F36: 0 | G36: N | H36: Mike G | I36: 0 | K36: 0 | M36: 3 | N36: 3 | O36: 11.38 | Q36: =Lillinonah!B6 -> 3 | R36: =Lillinonah!C6 -> N | S36: =Lillinonah!D6 -> Dean | T36: =Lillinonah!N6 -> 6.44 | V36: 0 | W36: N | X36: X | Y36: 0 | AA36: 0 | AC36: 3 | AD36: 3 | AE36: 12.61
A37: =Bantam!B7 -> 6 | B37: =Bantam!C7 -> N | C37: =Bantam!D7 -> Jack | D37: =Bantam!N7 -> 0 | F37: 0 | G37: N | H37: X | I37: 0 | K37: 0 | M37: 4 | N37: 6 | O37: 11.29 | Q37: =Lillinonah!B7 -> 2 | R37: =Lillinonah!C7 -> N | S37: =Lillinonah!D7 -> Jack | T37: =Lillinonah!N7 -> 2.31 | V37: 0 | W37: N | X37: X | Y37: 0 | AA37: 0 | AC37: 4 | AD37: 5 | AE37: 12.59
A38: =Bantam!B8 -> 7 | B38: =Bantam!C8 -> N | C38: =Bantam!D8 -> Jason | D38: =Bantam!N8 -> 4.95 | F38: 0 | G38: N | H38: X | I38: 0 | K38: 0 | M38: 5 | N38: 7 | O38: 6.53 | Q38: =Lillinonah!B8 -> 8 | R38: =Lillinonah!C8 -> N | S38: =Lillinonah!D8 -> Jason | T38: =Lillinonah!N8 -> 7.78 | V38: 0 | W38: N | X38: X | Y38: 0 | AA38: 0 | AC38: 5 | AD38: 9 | AE38: 10.14
A39: =Bantam!B9 -> 0 | B39: =Bantam!C9 -> N | C39: =Bantam!D9 -> Jim B | D39: =Bantam!N9 -> 0 | F39: 0 | G39: N | H39: X | I39: 0 | K39: 0 | M39: 6 | N39: 8 | O39: 4.56 | Q39: =Lillinonah!B9 -> 1 | R39: =Lillinonah!C9 -> N | S39: =Lillinonah!D9 -> Jim B | T39: =Lillinonah!N9 -> 0 | V39: 0 | W39: N | X39: X | Y39: 0 | AA39: 0 | AC39: 6 | AD39: 4 | AE39: 9.94
A40: =Bantam!B10 -> 0 | B40: =Bantam!C10 -> N | C40: =Bantam!D10 -> Kam | D40: =Bantam!N10 -> 0 | F40: 0 | G40: N | H40: X | I40: 0 | K40: 0 | M40: 7 | N40: 4 | O40: 3.75 | Q40: =Lillinonah!B10 -> 6 | R40: =Lillinonah!C10 -> N | S40: =Lillinonah!D10 -> Kam | T40: =Lillinonah!N10 -> 3.24 | V40: 0 | W40: N | X40: X | Y40: 0 | AA40: 0 | AC40: 7 | AD40: 2 | AE40: 5.99
A41: =Bantam!B11 -> 3 | B41: =Bantam!C11 -> N | C41: =Bantam!D11 -> Kevin | D41: =Bantam!N11 -> 11.38 | F41: 0 | G41: N | H41: X | I41: 0 | K41: 0 | M41: 8 | N41: 9 | O41: 2.865 | Q41: =Lillinonah!B11 -> 6 | R41: =Lillinonah!C11 -> N | S41: =Lillinonah!D11 -> Kevin | T41: =Lillinonah!N11 -> 10.59 | V41: 0 | W41: N | X41: X | Y41: 0 | AA41: 0 | AC41: 8 | AD41: 7 | AE41: 5
A42: =Bantam!B12 -> 8 | B42: =Bantam!C12 -> N | C42: =Bantam!D12 -> Mike M | D42: =Bantam!N12 -> 0 | F42: 0 | G42: N | H42: X | I42: 0 | K42: 0 | N42: 0 | O42: 0 | Q42: =Lillinonah!B12 -> 9 | R42: =Lillinonah!C12 -> N | S42: =Lillinonah!D12 -> Mike M | T42: =Lillinonah!N12 -> 3.84 | V42: 1 | W42: N | X42: Jim B | Y42: 0 | AA42: 0 | AD42: 0 | AE42: 0
A43: =Bantam!B13 -> 0 | B43: =Bantam!C13 -> N | C43: =Bantam!D13 -> Mike G | D43: =Bantam!N13 -> 0 | F43: 1 | G43: N | H43: Anthony | I43: 3.04 | K43: 15.74 | L43: 2 | N43: 0 | O43: 0 | Q43: =Lillinonah!B13 -> 7 | R43: =Lillinonah!C13 -> N | S43: =Lillinonah!D13 -> Mike G | T43: =Lillinonah!N13 -> 1.92 | V43: 1 | W43: N | X43: Tom | Y43: 0 | AA43: 0 | AD43: 0 | AE43: 0
A44: =Bantam!B14 -> 5 | B44: =Bantam!C14 -> N | C44: =Bantam!D14 -> Morrie | D44: =Bantam!N14 -> 0 | F44: 1 | G44: N | H44: Dean | I44: 12.7 | K44: 0 | N44: 0 | O44: 0 | Q44: =Lillinonah!B14 -> 9 | R44: =Lillinonah!C14 -> N | S44: =Lillinonah!D14 -> Morrie | T44: =Lillinonah!N14 -> 6.3 | V44: 2 | W44: N | X44: Jack | Y44: 2.31 | AA44: 5.99 | AB44: 7 | AD44: 0 | AE44: 0
A45: =Bantam!B15 -> 4 | B45: =Bantam!C15 -> N | C45: =Bantam!D15 -> Peter | D45: =Bantam!N15 -> 2.7 | F45: 2 | G45: N | H45: Scott | I45: 4.88 | K45: 16.65 | L45: 1 | N45: 0 | O45: 0 | Q45: =Lillinonah!B15 -> 0 | R45: =Lillinonah!C15 -> N | S45: =Lillinonah!D15 -> Peter | T45: =Lillinonah!N15 -> 0 | V45: 2 | W45: N | X45: Steve S | Y45: 3.68 | AA45: 0 | AD45: 0 | AE45: 0
A46: =Bantam!B16 -> 8 | B46: =Bantam!C16 -> N | C46: =Bantam!D16 -> Rich B | D46: =Bantam!N16 -> 4.56 | F46: 2 | G46: N | H46: Steve D | I46: 11.77 | K46: 0 | N46: 0 | O46: 0 | Q46: =Lillinonah!B16 -> 4 | R46: =Lillinonah!C16 -> N | S46: =Lillinonah!D16 -> Rich B | T46: =Lillinonah!N16 -> 4.09 | V46: 3 | W46: N | X46: Dean | Y46: 6.44 | AA46: 12.61 | AB46: 3 | AD46: 0 | AE46: 0
A47: =Bantam!B17 -> 7 | B47: =Bantam!C17 -> N | C47: =Bantam!D17 -> Rich T | D47: =Bantam!N17 -> 1.58 | F47: 3 | G47: N | H47: Kevin | I47: 11.38 | K47: 11.38 | L47: 3 | N47: 0 | O47: 0 | Q47: =Lillinonah!B17 -> 4 | R47: =Lillinonah!C17 -> N | S47: =Lillinonah!D17 -> Rich T | T47: =Lillinonah!N17 -> 5.85 | V47: 3 | W47: N | X47: Ryan | Y47: 6.17 | AA47: 0 | AD47: 0 | AE47: 0
A48: =Bantam!B18 -> 5 | B48: =Bantam!C18 -> N | C48: =Bantam!D18 -> Ron | D48: =Bantam!N18 -> 0 | F48: 3 | G48: N | H48: Ryan | I48: 0 | K48: 0 | N48: 0 | O48: 0 | Q48: =Lillinonah!B18 -> 0 | R48: =Lillinonah!C18 -> N | S48: =Lillinonah!D18 -> Ron | T48: =Lillinonah!N18 -> 0 | V48: 4 | W48: N | X48: Rich B | Y48: 4.09 | AA48: 9.94 | AB48: 6 | AD48: 0 | AE48: 0
A49: =Bantam!B19 -> 3 | B49: =Bantam!C19 -> N | C49: =Bantam!D19 -> Ryan | D49: =Bantam!N19 -> 0 | F49: 4 | G49: N | H49: Peter | I49: 2.7 | K49: 3.75 | L49: 7 | N49: 0 | O49: 0 | Q49: =Lillinonah!B19 -> 3 | R49: =Lillinonah!C19 -> N | S49: =Lillinonah!D19 -> Ryan | T49: =Lillinonah!N19 -> 6.17 | V49: 4 | W49: N | X49: Rich T | Y49: 5.85 | AA49: 0 | AD49: 0 | AE49: 0
A50: =Bantam!B20 -> 2 | B50: =Bantam!C20 -> N | C50: =Bantam!D20 -> Scott | D50: =Bantam!N20 -> 4.88 | F50: 4 | G50: N | H50: Tom | I50: 1.05 | K50: 0 | N50: 0 | O50: 0 | Q50: =Lillinonah!B20 -> 5 | R50: =Lillinonah!C20 -> N | S50: =Lillinonah!D20 -> Scott | T50: =Lillinonah!N20 -> 4.74 | V50: 5 | W50: N | X50: Scott | Y50: 4.74 | AA50: 12.59 | AB50: 4 | AD50: 1 | AE50: 0
A51: =Bantam!B21 -> 2 | B51: =Bantam!C21 -> N | C51: =Bantam!D21 -> Steve D | D51: =Bantam!N21 -> 11.77 | F51: 5 | G51: N | H51: Morrie | I51: 0 | K51: 0 | N51: 1 | O51: 0 | Q51: =Lillinonah!B21 -> 5 | R51: =Lillinonah!C21 -> N | S51: =Lillinonah!D21 -> Steve D | T51: =Lillinonah!N21 -> 7.85 | V51: 5 | W51: N | X51: Steve D | Y51: 7.85 | AA51: 0 | AD51: 1 | AE51: 0
A52: =Bantam!B22 -> 9 | B52: =Bantam!C22 -> Y | C52: =Bantam!D22 -> Steve S | D52: =Bantam!N22 -> 1.34 | F52: 5 | G52: N | H52: Ron | I52: 0 | K52: 0 | N52: 2 | O52: 0 | Q52: =Lillinonah!B22 -> 2 | R52: =Lillinonah!C22 -> N | S52: =Lillinonah!D22 -> Steve S | T52: =Lillinonah!N22 -> 3.68 | V52: 6 | W52: N | X52: Kam | Y52: 3.24 | AA52: 13.83 | AB52: 2 | AD52: 2 | AE52: 0
A53: =Bantam!B23 -> 4 | B53: =Bantam!C23 -> N | C53: =Bantam!D23 -> Tom | D53: =Bantam!N23 -> 1.05 | F53: 6 | G53: N | H53: Armand | I53: 11.29 | K53: 11.29 | L53: 4 | N53: 3 | O53: 0 | Q53: =Lillinonah!B23 -> 1 | R53: =Lillinonah!C23 -> N | S53: =Lillinonah!D23 -> Tom | T53: =Lillinonah!N23 -> 0 | V53: 6 | W53: N | X53: Kevin | Y53: 10.59 | AA53: 0 | AD53: 3 | AE53: 0
A54: =Bantam!B24 -> 0 | B54: =Bantam!C24 -> N | C54: =Bantam!D24 -> X | D54: =Bantam!N24 -> 0 | F54: 6 | G54: N | H54: Jack | I54: 0 | K54: 0 | N54: 4 | O54: 0 | Q54: =Lillinonah!B24 -> 0 | R54: =Lillinonah!C24 -> N | S54: =Lillinonah!D24 -> X | T54: =Lillinonah!N24 -> 0 | V54: 7 | W54: N | X54: Armand | Y54: 3.08 | AA54: 5 | AB54: 8 | AD54: 4 | AE54: 0
A55: =Bantam!B25 -> 0 | B55: =Bantam!C25 -> N | C55: =Bantam!D25 -> X | D55: =Bantam!N25 -> 0 | F55: 7 | G55: N | H55: Jason | I55: 4.95 | K55: 6.53 | L55: 5 | N55: 5 | O55: 0 | Q55: =Lillinonah!B25 -> 0 | R55: =Lillinonah!C25 -> N | S55: =Lillinonah!D25 -> X | T55: =Lillinonah!N25 -> 0 | V55: 7 | W55: N | X55: Mike G | Y55: 1.92 | AA55: 0 | AD55: 5 | AE55: 0
A56: =Bantam!B26 -> 0 | B56: =Bantam!C26 -> N | C56: =Bantam!D26 -> X | D56: =Bantam!N26 -> 0 | F56: 7 | G56: N | H56: Rich T | I56: 1.58 | K56: 0 | N56: 5 | O56: 0 | Q56: =Lillinonah!B26 -> 0 | R56: =Lillinonah!C26 -> N | S56: =Lillinonah!D26 -> X | T56: =Lillinonah!N26 -> 0 | V56: 8 | W56: N | X56: Anthony | Y56: 7.21 | AA56: 14.99 | AB56: 1 | AD56: 6 | AE56: 0
A57: =Bantam!B27 -> 0 | B57: =Bantam!C27 -> N | C57: =Bantam!D27 -> X | D57: =Bantam!N27 -> 0 | F57: 8 | G57: N | H57: Mike M | I57: 0 | K57: 4.56 | L57: 6 | N57: 6 | O57: 0 | Q57: =Lillinonah!B27 -> 0 | R57: =Lillinonah!C27 -> N | S57: =Lillinonah!D27 -> X | T57: =Lillinonah!N27 -> 0 | V57: 8 | W57: N | X57: Jason | Y57: 7.78 | AA57: 0 | AD57: 7 | AE57: 0
A58: =Bantam!B28 -> 0 | B58: =Bantam!C28 -> N | C58: =Bantam!D28 -> X | D58: =Bantam!N28 -> 0 | F58: 8 | G58: N | H58: Rich B | I58: 4.56 | K58: 0 | N58: 7 | O58: 0 | Q58: =Lillinonah!B28 -> 0 | R58: =Lillinonah!C28 -> N | S58: =Lillinonah!D28 -> X | T58: =Lillinonah!N28 -> 0 | V58: 9 | W58: N | X58: Mike M | Y58: 3.84 | AA58: 10.14 | AB58: 5 | AD58: 8 | AE58: 0
A59: =Bantam!B29 -> 0 | B59: =Bantam!C29 -> N | C59: =Bantam!D29 -> X | D59: =Bantam!N29 -> 0 | F59: 9 | G59: Y | H59: Steve S | I59: 1.34 | K59: 2.865 | L59: 8 | N59: 8 | O59: 0 | Q59: =Lillinonah!B29 -> 0 | R59: =Lillinonah!C29 -> N | S59: =Lillinonah!D29 -> X | T59: =Lillinonah!N29 -> 0 | V59: 9 | W59: N | X59: Morrie | Y59: 6.3 | AA59: 0 | AD59: 9 | AE59: 0
B60: Macro | C60: CTL+D | D60: Teams | E60: 2 | H60: NB Avg | I60: =Bantam!Q31 -> 1.525 | R60: Macro | S60: CTL+T | T60: Teams | U60: 6 | X60: NB Avg | Y60: =Lillinonah!Q31 -> 3.92
A62: =YTD!L17 -> Gardner | M62: Sort | N62: Copy | O62: Sort | Q62: =YTD!L21 -> CT River | AC62: Sort | AD62: Copy | AE62: Sort
A63: Team # | B63: Alone? | C63: Name | D63: Net Wt | F63: Team # | G63: Alone? | H63: Name | I63: Net Wt | K63: Totals | L63: Rank | M63: Rank | N63: Team # | O63: Tot Wt | Q63: Team # | R63: Alone? | S63: Name | T63: Net Wt | V63: Team # | W63: Alone? | X63: Name | Y63: Net Wt | AA63: Totals | AB63: Rank | AC63: Rank | AD63: Team # | AE63: Tot Wt
A64: =Gardner!B4 -> 8 | B64: =Gardner!C4 -> N | C64: =Gardner!D4 -> Anthony | D64: =Gardner!N4 -> 9.09 | F64: 0 | G64: N | H64: Jim B | I64: 0 | K64: =IF(F64=20,0,IF(F64=F65,I64+I65,IF(G64="Y",I64+I$90,0))) -> 0 | L64: =IF(K64>0,RANK(K64,K$64:K$89,0),"") ->  | M64: 1 | N64: 5 | O64: 15.99 | Q64: ='CT River'!B4 -> 4 | R64: ='CT River'!C4 -> N | S64: ='CT River'!D4 -> Anthony | T64: ='CT River'!N4 -> 0 | V64: 0 | W64: N | X64: Armand | Y64: 0 | AA64: =IF(V64=20,0,IF(V64=V65,Y64+Y65,IF(W64="Y",Y64+Y$90,0))) -> 0 | AB64: =IF(AA64>0,RANK(AA64,AA$64:AA$89,0),"") ->  | AC64: 1 | AD64: 2 | AE64: 15.72
A65: =Gardner!B5 -> 2 | B65: =Gardner!C5 -> N | C65: =Gardner!D5 -> Armand | D65: =Gardner!N5 -> 4.27 | F65: 0 | G65: N | H65: Kam | I65: 0 | K65: =IF(F65=20,0,IF(F65=F66,I65+I66,IF(G65="Y",I65+I$90,0))) -> 0 | L65: =IF(K65>0,RANK(K65,K$64:K$89,0),"") ->  | M65: 2 | N65: 8 | O65: 15.69 | Q65: ='CT River'!B5 -> 0 | R65: ='CT River'!C5 -> N | S65: ='CT River'!D5 -> Armand | T65: ='CT River'!N5 -> 0 | V65: 0 | W65: N | X65: Jason | Y65: 0 | AA65: =IF(V65=20,0,IF(V65=V66,Y65+Y66,IF(W65="Y",Y65+Y$90,0))) -> 0 | AB65: =IF(AA65>0,RANK(AA65,AA$64:AA$89,0),"") ->  | AC65: 2 | AD65: 8 | AE65: 11.56
A66: =Gardner!B6 -> 6 | B66: =Gardner!C6 -> Y | C66: =Gardner!D6 -> Dean | D66: =Gardner!N6 -> 7.01 | F66: 0 | G66: N | H66: Morrie | I66: 0 | K66: 0 | M66: 3 | N66: 4 | O66: 15.02 | Q66: ='CT River'!B6 -> 9 | R66: ='CT River'!C6 -> N | S66: ='CT River'!D6 -> Dean | T66: ='CT River'!N6 -> 1.31 | V66: 0 | W66: N | X66: Jim B | Y66: 0 | AA66: 0 | AC66: 3 | AD66: 7 | AE66: 6.58
A67: =Gardner!B7 -> 7 | B67: =Gardner!C7 -> N | C67: =Gardner!D7 -> Jack | D67: =Gardner!N7 -> 4.94 | F67: 0 | G67: N | H67: X | I67: 0 | K67: 0 | M67: 4 | N67: 9 | O67: 14.85 | Q67: ='CT River'!B7 -> 9 | R67: ='CT River'!C7 -> N | S67: ='CT River'!D7 -> Jack | T67: ='CT River'!N7 -> 1.07 | V67: 0 | W67: N | X67: Mike G | Y67: 0 | AA67: 0 | AC67: 4 | AD67: 3 | AE67: 4.64
A68: =Gardner!B8 -> 9 | B68: =Gardner!C8 -> N | C68: =Gardner!D8 -> Jason | D68: =Gardner!N8 -> 7.56 | F68: 0 | G68: N | H68: X | I68: 0 | K68: 0 | M68: 5 | N68: 3 | O68: 14.24 | Q68: ='CT River'!B8 -> 0 | R68: ='CT River'!C8 -> N | S68: ='CT River'!D8 -> Jason | T68: ='CT River'!N8 -> 0 | V68: 0 | W68: N | X68: X | Y68: 0 | AA68: 0 | AC68: 5 | AD68: 5 | AE68: 3.5
A69: =Gardner!B9 -> 0 | B69: =Gardner!C9 -> N | C69: =Gardner!D9 -> Jim B | D69: =Gardner!N9 -> 0 | F69: 0 | G69: N | H69: X | I69: 0 | K69: 0 | M69: 6 | N69: 6 | O69: 13.3625 | Q69: ='CT River'!B9 -> 0 | R69: ='CT River'!C9 -> N | S69: ='CT River'!D9 -> Jim B | T69: ='CT River'!N9 -> 0 | V69: 0 | W69: N | X69: X | Y69: 0 | AA69: 0 | AC69: 6 | AD69: 1 | AE69: 2.681428571
A70: =Gardner!B10 -> 0 | B70: =Gardner!C10 -> N | C70: =Gardner!D10 -> Kam | D70: =Gardner!N10 -> 0 | F70: 0 | G70: N | H70: X | I70: 0 | K70: 0 | M70: 7 | N70: 7 | O70: 10.83 | Q70: ='CT River'!B10 -> 2 | R70: ='CT River'!C10 -> N | S70: ='CT River'!D10 -> Kam | T70: ='CT River'!N10 -> 0 | V70: 0 | W70: N | X70: X | Y70: 0 | AA70: 0 | AC70: 7 | AD70: 9 | AE70: 2.38
A71: =Gardner!B11 -> 7 | B71: =Gardner!C11 -> N | C71: =Gardner!D11 -> Kevin | D71: =Gardner!N11 -> 5.89 | F71: 0 | G71: N | H71: X | I71: 0 | K71: 0 | M71: 8 | N71: 2 | O71: 10.75 | Q71: ='CT River'!B11 -> 1 | R71: ='CT River'!C11 -> Y | S71: ='CT River'!D11 -> Kevin | T71: ='CT River'!N11 -> 0.83 | V71: 0 | W71: N | X71: X | Y71: 0 | AA71: 0 | AC71: 8 | AD71: 6 | AE71: 1.851428571
A72: =Gardner!B12 -> 1 | B72: =Gardner!C12 -> N | C72: =Gardner!D12 -> Mike M | D72: =Gardner!N12 -> 0.77 | F72: 0 | G72: N | H72: X | I72: 0 | K72: 0 | M72: 9 | N72: 1 | O72: 4.9 | Q72: ='CT River'!B12 -> 8 | R72: ='CT River'!C12 -> N | S72: ='CT River'!D12 -> Mike M | T72: ='CT River'!N12 -> 2.8 | V72: 0 | W72: N | X72: X | Y72: 0 | AA72: 0 | AC72: 9 | AD72: 4 | AE72: 1.26
A73: =Gardner!B13 -> 4 | B73: =Gardner!C13 -> N | C73: =Gardner!D13 -> Mike G | D73: =Gardner!N13 -> 6.75 | F73: 1 | G73: N | H73: Mike M | I73: 0.77 | K73: 4.9 | L73: 9 | N73: 0 | O73: 0 | Q73: ='CT River'!B13 -> 0 | R73: ='CT River'!C13 -> N | S73: ='CT River'!D13 -> Mike G | T73: ='CT River'!N13 -> 0 | V73: 0 | W73: N | X73: X | Y73: 0 | AA73: 0 | AD73: 0 | AE73: 0
A74: =Gardner!B14 -> 0 | B74: =Gardner!C14 -> N | C74: =Gardner!D14 -> Morrie | D74: =Gardner!N14 -> 0 | F74: 1 | G74: N | H74: Scott | I74: 4.13 | K74: 0 | N74: 0 | O74: 0 | Q74: ='CT River'!B14 -> 7 | R74: ='CT River'!C14 -> N | S74: ='CT River'!D14 -> Morrie | T74: ='CT River'!N14 -> 4.02 | V74: 1 | W74: Y | X74: Kevin | Y74: 0.83 | AA74: 2.681428571 | AB74: 6 | AD74: 0 | AE74: 0
A75: =Gardner!B15 -> 2 | B75: =Gardner!C15 -> N | C75: =Gardner!D15 -> Peter | D75: =Gardner!N15 -> 6.48 | F75: 2 | G75: N | H75: Armand | I75: 4.27 | K75: 10.75 | L75: 8 | N75: 0 | O75: 0 | Q75: ='CT River'!B15 -> 3 | R75: ='CT River'!C15 -> N | S75: ='CT River'!D15 -> Peter | T75: ='CT River'!N15 -> 3.03 | V75: 2 | W75: N | X75: Kam | Y75: 0 | AA75: 15.72 | AB75: 1 | AD75: 0 | AE75: 0
A76: =Gardner!B16 -> 3 | B76: =Gardner!C16 -> N | C76: =Gardner!D16 -> Rich B | D76: =Gardner!N16 -> 7.76 | F76: 2 | G76: N | H76: Peter | I76: 6.48 | K76: 0 | N76: 0 | O76: 0 | Q76: ='CT River'!B16 -> 2 | R76: ='CT River'!C16 -> N | S76: ='CT River'!D16 -> Rich B | T76: ='CT River'!N16 -> 15.72 | V76: 2 | W76: N | X76: Rich B | Y76: 15.72 | AA76: 0 | AD76: 0 | AE76: 0
A77: =Gardner!B17 -> 5 | B77: =Gardner!C17 -> N | C77: =Gardner!D17 -> Rich T | D77: =Gardner!N17 -> 8.75 | F77: 3 | G77: N | H77: Rich B | I77: 7.76 | K77: 14.24 | L77: 5 | N77: 0 | O77: 0 | Q77: ='CT River'!B17 -> 5 | R77: ='CT River'!C17 -> N | S77: ='CT River'!D17 -> Rich T | T77: ='CT River'!N17 -> 3.5 | V77: 3 | W77: N | X77: Peter | Y77: 3.03 | AA77: 4.64 | AB77: 4 | AD77: 0 | AE77: 0
A78: =Gardner!B18 -> 4 | B78: =Gardner!C18 -> N | C78: =Gardner!D18 -> Ron | D78: =Gardner!N18 -> 8.27 | F78: 3 | G78: N | H78: Ryan | I78: 6.48 | K78: 0 | N78: 0 | O78: 0 | Q78: ='CT River'!B18 -> 6 | R78: ='CT River'!C18 -> Y | S78: ='CT River'!D18 -> Ron | T78: ='CT River'!N18 -> 0 | V78: 3 | W78: N | X78: Steve S | Y78: 1.61 | AA78: 0 | AD78: 0 | AE78: 0
A79: =Gardner!B19 -> 3 | B79: =Gardner!C19 -> N | C79: =Gardner!D19 -> Ryan | D79: =Gardner!N19 -> 6.48 | F79: 4 | G79: N | H79: Mike G | I79: 6.75 | K79: 15.02 | L79: 3 | N79: 0 | O79: 0 | Q79: ='CT River'!B19 -> 7 | R79: ='CT River'!C19 -> N | S79: ='CT River'!D19 -> Ryan | T79: ='CT River'!N19 -> 2.56 | V79: 4 | W79: N | X79: Anthony | Y79: 0 | AA79: 1.26 | AB79: 9 | AD79: 0 | AE79: 0
A80: =Gardner!B20 -> 1 | B80: =Gardner!C20 -> N | C80: =Gardner!D20 -> Scott | D80: =Gardner!N20 -> 4.13 | F80: 4 | G80: N | H80: Ron | I80: 8.27 | K80: 0 | N80: 0 | O80: 0 | Q80: ='CT River'!B20 -> 5 | R80: ='CT River'!C20 -> N | S80: ='CT River'!D20 -> Scott | T80: ='CT River'!N20 -> 0 | V80: 4 | W80: N | X80: Tom | Y80: 1.26 | AA80: 0 | AD80: 0 | AE80: 0
A81: =Gardner!B21 -> 9 | B81: =Gardner!C21 -> N | C81: =Gardner!D21 -> Steve D | D81: =Gardner!N21 -> 7.29 | F81: 5 | G81: N | H81: Rich T | I81: 8.75 | K81: 15.99 | L81: 1 | N81: 0 | O81: 0 | Q81: ='CT River'!B21 -> 8 | R81: ='CT River'!C21 -> N | S81: ='CT River'!D21 -> Steve D | T81: ='CT River'!N21 -> 8.76 | V81: 5 | W81: N | X81: Rich T | Y81: 3.5 | AA81: 3.5 | AB81: 5 | AD81: 0 | AE81: 0
A82: =Gardner!B22 -> 8 | B82: =Gardner!C22 -> N | C82: =Gardner!D22 -> Steve S | D82: =Gardner!N22 -> 6.6 | F82: 5 | G82: N | H82: Tom | I82: 7.24 | K82: 0 | N82: 1 | O82: 0 | Q82: ='CT River'!B22 -> 3 | R82: ='CT River'!C22 -> N | S82: ='CT River'!D22 -> Steve S | T82: ='CT River'!N22 -> 1.61 | V82: 5 | W82: N | X82: Scott | Y82: 0 | AA82: 0 | AD82: 0 | AE82: 0
A83: =Gardner!B23 -> 5 | B83: =Gardner!C23 -> N | C83: =Gardner!D23 -> Tom | D83: =Gardner!N23 -> 7.24 | F83: 6 | G83: Y | H83: Dean | I83: 7.01 | K83: 13.3625 | L83: 6 | N83: 2 | O83: 0 | Q83: ='CT River'!B23 -> 4 | R83: ='CT River'!C23 -> N | S83: ='CT River'!D23 -> Tom | T83: ='CT River'!N23 -> 1.26 | V83: 6 | W83: Y | X83: Ron | Y83: 0 | AA83: 1.851428571 | AB83: 8 | AD83: 2 | AE83: 0
A84: =Gardner!B24 -> 0 | B84: =Gardner!C24 -> N | C84: =Gardner!D24 -> X | D84: =Gardner!N24 -> 0 | F84: 7 | G84: N | H84: Jack | I84: 4.94 | K84: 10.83 | L84: 7 | N84: 3 | O84: 0 | Q84: ='CT River'!B24 -> 0 | R84: ='CT River'!C24 -> N | S84: ='CT River'!D24 -> X | T84: ='CT River'!N24 -> 0 | V84: 7 | W84: N | X84: Morrie | Y84: 4.02 | AA84: 6.58 | AB84: 3 | AD84: 3 | AE84: 0
A85: =Gardner!B25 -> 0 | B85: =Gardner!C25 -> N | C85: =Gardner!D25 -> X | D85: =Gardner!N25 -> 0 | F85: 7 | G85: N | H85: Kevin | I85: 5.89 | K85: 0 | N85: 4 | O85: 0 | Q85: ='CT River'!B25 -> 0 | R85: ='CT River'!C25 -> N | S85: ='CT River'!D25 -> X | T85: ='CT River'!N25 -> 0 | V85: 7 | W85: N | X85: Ryan | Y85: 2.56 | AA85: 0 | AD85: 4 | AE85: 0
A86: =Gardner!B26 -> 0 | B86: =Gardner!C26 -> N | C86: =Gardner!D26 -> X | D86: =Gardner!N26 -> 0 | F86: 8 | G86: N | H86: Anthony | I86: 9.09 | K86: 15.69 | L86: 2 | N86: 5 | O86: 0 | Q86: ='CT River'!B26 -> 0 | R86: ='CT River'!C26 -> N | S86: ='CT River'!D26 -> X | T86: ='CT River'!N26 -> 0 | V86: 8 | W86: N | X86: Mike M | Y86: 2.8 | AA86: 11.56 | AB86: 2 | AD86: 5 | AE86: 0
A87: =Gardner!B27 -> 0 | B87: =Gardner!C27 -> N | C87: =Gardner!D27 -> X | D87: =Gardner!N27 -> 0 | F87: 8 | G87: N | H87: Steve S | I87: 6.6 | K87: 0 | N87: 7 | O87: 0 | Q87: ='CT River'!B27 -> 0 | R87: ='CT River'!C27 -> N | S87: ='CT River'!D27 -> X | T87: ='CT River'!N27 -> 0 | V87: 8 | W87: N | X87: Steve D | Y87: 8.76 | AA87: 0 | AD87: 7 | AE87: 0
A88: =Gardner!B28 -> 0 | B88: =Gardner!C28 -> N | C88: =Gardner!D28 -> X | D88: =Gardner!N28 -> 0 | F88: 9 | G88: N | H88: Jason | I88: 7.56 | K88: 14.85 | L88: 4 | N88: 8 | O88: 0 | Q88: ='CT River'!B28 -> 0 | R88: ='CT River'!C28 -> N | S88: ='CT River'!D28 -> X | T88: ='CT River'!N28 -> 0 | V88: 9 | W88: N | X88: Dean | Y88: 1.31 | AA88: 2.38 | AB88: 7 | AD88: 8 | AE88: 0
A89: =Gardner!B29 -> 0 | B89: =Gardner!C29 -> N | C89: =Gardner!D29 -> X | D89: =Gardner!N29 -> 0 | F89: 9 | G89: N | H89: Steve D | I89: 7.29 | K89: 0 | N89: 9 | O89: 0 | Q89: ='CT River'!B29 -> 0 | R89: ='CT River'!C29 -> N | S89: ='CT River'!D29 -> X | T89: ='CT River'!N29 -> 0 | V89: 9 | W89: N | X89: Jack | Y89: 1.07 | AA89: 0 | AD89: 9 | AE89: 0
B90: Macro | C90: CTL+H | D90: Teams | E90: 3 | H90: NB Avg | I90: =Gardner!Q31 -> 6.3525 | R90: Macro | S90: CTL+E | T90: Teams | U90: 7 | X90: NB Avg | Y90: ='CT River'!Q31 -> 1.851428571
A92: =YTD!L18 -> Candlewood | M92: Sort | N92: Copy | O92: Sort | Q92: =YTD!L22 -> Bashan | AC92: Sort | AD92: Copy | AE92: Sort
A93: Team # | B93: Alone? | C93: Name | D93: Net Wt | F93: Team # | G93: Alone? | H93: Name | I93: Net Wt | K93: Totals | L93: Rank | M93: Rank | N93: Team # | O93: Tot Wt | Q93: Team # | R93: Alone? | S93: Name | T93: Net Wt | V93: Team # | W93: Alone? | X93: Name | Y93: Net Wt | AA93: Totals | AB93: Rank | AC93: Rank | AD93: Team # | AE93: Tot Wt
A94: =Candlewood!B4 -> 8 | B94: =Candlewood!C4 -> N | C94: =Candlewood!D4 -> Anthony | D94: =Candlewood!N4 -> 0 | F94: 0 | G94: N | H94: Kam | I94: 0 | K94: =IF(F94=20,0,IF(F94=F95,I94+I95,IF(G94="Y",I94+I$120,0))) -> 0 | L94: =IF(K94>0,RANK(K94,K$94:K$119,0),"") ->  | M94: 1 | N94: 3 | O94: 9.4 | Q94: =Bashan!B4 -> 5 | R94: =Bashan!C4 -> N | S94: =Bashan!D4 -> Anthony | T94: =Bashan!N4 -> 7.48 | V94: 0 | W94: N | X94: Armand | Y94: 0 | AA94: =IF(V94=20,0,IF(V94=V95,Y94+Y95,IF(W94="Y",Y94+Y$120,0))) -> 0 | AB94: =IF(AA94>0,RANK(AA94,AA$94:AA$119,0),"") ->  | AC94: 1 | AD94: 5 | AE94: 16.84
A95: =Candlewood!B5 -> 4 | B95: =Candlewood!C5 -> N | C95: =Candlewood!D5 -> Armand | D95: =Candlewood!N5 -> 1.68 | F95: 0 | G95: N | H95: Morrie | I95: 0 | K95: =IF(F95=20,0,IF(F95=F96,I95+I96,IF(G95="Y",I95+I$120,0))) -> 0 | L95: =IF(K95>0,RANK(K95,K$94:K$119,0),"") ->  | M95: 2 | N95: 2 | O95: 9.05 | Q95: =Bashan!B5 -> 0 | R95: =Bashan!C5 -> N | S95: =Bashan!D5 -> Armand | T95: =Bashan!N5 -> 0 | V95: 0 | W95: N | X95: Jack | Y95: 0 | AA95: =IF(V95=20,0,IF(V95=V96,Y95+Y96,IF(W95="Y",Y95+Y$120,0))) -> 0 | AB95: =IF(AA95>0,RANK(AA95,AA$94:AA$119,0),"") ->  | AC95: 2 | AD95: 7 | AE95: 15.85
A96: =Candlewood!B6 -> 2 | B96: =Candlewood!C6 -> N | C96: =Candlewood!D6 -> Dean | D96: =Candlewood!N6 -> 5.02 | F96: 0 | G96: N | H96: Steve S | I96: 0 | K96: 0 | M96: 3 | N96: 7 | O96: 7.33 | Q96: =Bashan!B6 -> 3 | R96: =Bashan!C6 -> N | S96: =Bashan!D6 -> Dean | T96: =Bashan!N6 -> 3.72 | V96: 0 | W96: N | X96: Jason | Y96: 0 | AA96: 0 | AC96: 3 | AD96: 2 | AE96: 14.33
A97: =Candlewood!B7 -> 1 | B97: =Candlewood!C7 -> N | C97: =Candlewood!D7 -> Jack | D97: =Candlewood!N7 -> 3.46 | F97: 0 | G97: N | H97: X | I97: 0 | K97: 0 | M97: 4 | N97: 9 | O97: 7.2 | Q97: =Bashan!B7 -> 0 | R97: =Bashan!C7 -> N | S97: =Bashan!D7 -> Jack | T97: =Bashan!N7 -> 0 | V97: 0 | W97: N | X97: Mike G | Y97: 0 | AA97: 0 | AC97: 4 | AD97: 3 | AE97: 9.62
A98: =Candlewood!B8 -> 3 | B98: =Candlewood!C8 -> N | C98: =Candlewood!D8 -> Jason | D98: =Candlewood!N8 -> 6.32 | F98: 0 | G98: N | H98: X | I98: 0 | K98: 0 | M98: 5 | N98: 8 | O98: 6.66 | Q98: =Bashan!B8 -> 0 | R98: =Bashan!C8 -> N | S98: =Bashan!D8 -> Jason | T98: =Bashan!N8 -> 0 | V98: 0 | W98: N | X98: Tom | Y98: 0 | AA98: 0 | AC98: 5 | AD98: 1 | AE98: 9.55
A99: =Candlewood!B9 -> 5 | B99: =Candlewood!C9 -> N | C99: =Candlewood!D9 -> Jim B | D99: =Candlewood!N9 -> 2.77 | F99: 0 | G99: N | H99: X | I99: 0 | K99: 0 | M99: 6 | N99: 5 | O99: 5.78 | Q99: =Bashan!B9 -> 2 | R99: =Bashan!C9 -> N | S99: =Bashan!D9 -> Jim B | T99: =Bashan!N9 -> 8.05 | V99: 0 | W99: N | X99: X | Y99: 0 | AA99: 0 | AC99: 6 | AD99: 4 | AE99: 8.32
A100: =Candlewood!B10 -> 0 | B100: =Candlewood!C10 -> N | C100: =Candlewood!D10 -> Kam | D100: =Candlewood!N10 -> 0 | F100: 0 | G100: N | H100: X | I100: 0 | K100: 0 | M100: 7 | N100: 4 | O100: 5.56 | Q100: =Bashan!B10 -> 6 | R100: =Bashan!C10 -> N | S100: =Bashan!D10 -> Kam | T100: =Bashan!N10 -> 0 | V100: 0 | W100: N | X100: X | Y100: 0 | AA100: 0 | AC100: 7 | AD100: 8 | AE100: 7.535714286
A101: =Candlewood!B11 -> 9 | B101: =Candlewood!C11 -> N | C101: =Candlewood!D11 -> Kevin | D101: =Candlewood!N11 -> 5.94 | F101: 0 | G101: N | H101: X | I101: 0 | K101: 0 | M101: 8 | N101: 1 | O101: 5.21 | Q101: =Bashan!B11 -> 2 | R101: =Bashan!C11 -> N | S101: =Bashan!D11 -> Kevin | T101: =Bashan!N11 -> 6.28 | V101: 0 | W101: N | X101: X | Y101: 0 | AA101: 0 | AC101: 8 | AD101: 6 | AE101: 5.72
A102: =Candlewood!B12 -> 2 | B102: =Candlewood!C12 -> N | C102: =Candlewood!D12 -> Mike M | D102: =Candlewood!N12 -> 4.03 | F102: 0 | G102: N | H102: X | I102: 0 | K102: 0 | M102: 9 | N102: 6 | O102: 3.445 | Q102: =Bashan!B12 -> 4 | R102: =Bashan!C12 -> N | S102: =Bashan!D12 -> Mike M | T102: =Bashan!N12 -> 6.33 | V102: 0 | W102: N | X102: X | Y102: 0 | AA102: 0 | AD102: 0 | AE102: 0
A103: =Candlewood!B13 -> 3 | B103: =Candlewood!C13 -> N | C103: =Candlewood!D13 -> Mike G | D103: =Candlewood!N13 -> 3.08 | F103: 1 | G103: N | H103: Jack | I103: 3.46 | K103: 5.21 | L103: 8 | N103: 0 | O103: 0 | Q103: =Bashan!B13 -> 0 | R103: =Bashan!C13 -> N | S103: =Bashan!D13 -> Mike G | T103: =Bashan!N13 -> 0 | V103: 0 | W103: N | X103: X | Y103: 0 | AA103: 0 | AD103: 0 | AE103: 0
A104: =Candlewood!B14 -> 0 | B104: =Candlewood!C14 -> N | C104: =Candlewood!D14 -> Morrie | D104: =Candlewood!N14 -> 0 | F104: 1 | G104: N | H104: Rich B | I104: 1.75 | K104: 0 | N104: 0 | O104: 0 | Q104: =Bashan!B14 -> 1 | R104: =Bashan!C14 -> N | S104: =Bashan!D14 -> Morrie | T104: =Bashan!N14 -> 2.33 | V104: 0 | W104: N | X104: X | Y104: 0 | AA104: 0 | AD104: 0 | AE104: 0
A105: =Candlewood!B15 -> 9 | B105: =Candlewood!C15 -> N | C105: =Candlewood!D15 -> Peter | D105: =Candlewood!N15 -> 1.26 | F105: 2 | G105: N | H105: Dean | I105: 5.02 | K105: 9.05 | L105: 2 | N105: 0 | O105: 0 | Q105: =Bashan!B15 -> 3 | R105: =Bashan!C15 -> N | S105: =Bashan!D15 -> Peter | T105: =Bashan!N15 -> 5.9 | V105: 1 | W105: N | X105: Morrie | Y105: 2.33 | AA105: 9.55 | AB105: 5 | AD105: 0 | AE105: 0
A106: =Candlewood!B16 -> 1 | B106: =Candlewood!C16 -> N | C106: =Candlewood!D16 -> Rich B | D106: =Candlewood!N16 -> 1.75 | F106: 2 | G106: N | H106: Mike M | I106: 4.03 | K106: 0 | N106: 0 | O106: 0 | Q106: =Bashan!B16 -> 1 | R106: =Bashan!C16 -> N | S106: =Bashan!D16 -> Rich B | T106: =Bashan!N16 -> 7.22 | V106: 1 | W106: N | X106: Rich B | Y106: 7.22 | AA106: 0 | AD106: 0 | AE106: 0
A107: =Candlewood!B17 -> 4 | B107: =Candlewood!C17 -> N | C107: =Candlewood!D17 -> Rich T | D107: =Candlewood!N17 -> 3.88 | F107: 3 | G107: N | H107: Jason | I107: 6.32 | K107: 9.4 | L107: 1 | N107: 0 | O107: 0 | Q107: =Bashan!B17 -> 5 | R107: =Bashan!C17 -> N | S107: =Bashan!D17 -> Rich T | T107: =Bashan!N17 -> 9.36 | V107: 2 | W107: N | X107: Jim B | Y107: 8.05 | AA107: 14.33 | AB107: 3 | AD107: 0 | AE107: 0
A108: =Candlewood!B18 -> 5 | B108: =Candlewood!C18 -> N | C108: =Candlewood!D18 -> Ron | D108: =Candlewood!N18 -> 3.01 | F108: 3 | G108: N | H108: Mike G | I108: 3.08 | K108: 0 | N108: 0 | O108: 0 | Q108: =Bashan!B18 -> 4 | R108: =Bashan!C18 -> N | S108: =Bashan!D18 -> Ron | T108: =Bashan!N18 -> 1.99 | V108: 2 | W108: N | X108: Kevin | Y108: 6.28 | AA108: 0 | AD108: 0 | AE108: 0
A109: =Candlewood!B19 -> 7 | B109: =Candlewood!C19 -> N | C109: =Candlewood!D19 -> Ryan | D109: =Candlewood!N19 -> 1 | F109: 4 | G109: N | H109: Armand | I109: 1.68 | K109: 5.56 | L109: 7 | N109: 0 | O109: 0 | Q109: =Bashan!B19 -> 7 | R109: =Bashan!C19 -> N | S109: =Bashan!D19 -> Ryan | T109: =Bashan!N19 -> 7.76 | V109: 3 | W109: N | X109: Dean | Y109: 3.72 | AA109: 9.62 | AB109: 4 | AD109: 0 | AE109: 0
A110: =Candlewood!B20 -> 7 | B110: =Candlewood!C20 -> N | C110: =Candlewood!D20 -> Scott | D110: =Candlewood!N20 -> 6.33 | F110: 4 | G110: N | H110: Rich T | I110: 3.88 | K110: 0 | N110: 0 | O110: 0 | Q110: =Bashan!B20 -> 6 | R110: =Bashan!C20 -> N | S110: =Bashan!D20 -> Scott | T110: =Bashan!N20 -> 5.72 | V110: 3 | W110: N | X110: Peter | Y110: 5.9 | AA110: 0 | AD110: 0 | AE110: 0
A111: =Candlewood!B21 -> 8 | B111: =Candlewood!C21 -> N | C111: =Candlewood!D21 -> Steve D | D111: =Candlewood!N21 -> 6.66 | F111: 5 | G111: N | H111: Jim B | I111: 2.77 | K111: 5.78 | L111: 6 | N111: 0 | O111: 0 | Q111: =Bashan!B21 -> 7 | R111: =Bashan!C21 -> N | S111: =Bashan!D21 -> Steve D | T111: =Bashan!N21 -> 8.09 | V111: 4 | W111: N | X111: Mike M | Y111: 6.33 | AA111: 8.32 | AB111: 6 | AD111: 0 | AE111: 0
A112: =Candlewood!B22 -> 0 | B112: =Candlewood!C22 -> N | C112: =Candlewood!D22 -> Steve S | D112: =Candlewood!N22 -> 0 | F112: 5 | G112: N | H112: Ron | I112: 3.01 | K112: 0 | N112: 1 | O112: 0 | Q112: =Bashan!B22 -> 8 | R112: =Bashan!C22 -> Y | S112: =Bashan!D22 -> Steve S | T112: =Bashan!N22 -> 1.43 | V112: 4 | W112: N | X112: Ron | Y112: 1.99 | AA112: 0 | AD112: 0 | AE112: 0
A113: =Candlewood!B23 -> 6 | B113: =Candlewood!C23 -> Y | C113: =Candlewood!D23 -> Tom | D113: =Candlewood!N23 -> 1.01 | F113: 6 | G113: Y | H113: Tom | I113: 1.01 | K113: 3.445 | L113: 9 | N113: 2 | O113: 0 | Q113: =Bashan!B23 -> 0 | R113: =Bashan!C23 -> N | S113: =Bashan!D23 -> Tom | T113: =Bashan!N23 -> 0 | V113: 5 | W113: N | X113: Anthony | Y113: 7.48 | AA113: 16.84 | AB113: 1 | AD113: 1 | AE113: 0
A114: =Candlewood!B24 -> 0 | B114: =Candlewood!C24 -> N | C114: =Candlewood!D24 -> X | D114: =Candlewood!N24 -> 0 | F114: 7 | G114: N | H114: Ryan | I114: 1 | K114: 7.33 | L114: 3 | N114: 3 | O114: 0 | Q114: =Bashan!B24 -> 0 | R114: =Bashan!C24 -> N | S114: =Bashan!D24 -> X | T114: =Bashan!N24 -> 0 | V114: 5 | W114: N | X114: Rich T | Y114: 9.36 | AA114: 0 | AD114: 2 | AE114: 0
A115: =Candlewood!B25 -> 0 | B115: =Candlewood!C25 -> N | C115: =Candlewood!D25 -> X | D115: =Candlewood!N25 -> 0 | F115: 7 | G115: N | H115: Scott | I115: 6.33 | K115: 0 | N115: 4 | O115: 0 | Q115: =Bashan!B25 -> 0 | R115: =Bashan!C25 -> N | S115: =Bashan!D25 -> X | T115: =Bashan!N25 -> 0 | V115: 6 | W115: N | X115: Kam | Y115: 0 | AA115: 5.72 | AB115: 8 | AD115: 3 | AE115: 0
A116: =Candlewood!B26 -> 0 | B116: =Candlewood!C26 -> N | C116: =Candlewood!D26 -> X | D116: =Candlewood!N26 -> 0 | F116: 8 | G116: N | H116: Anthony | I116: 0 | K116: 6.66 | L116: 5 | N116: 5 | O116: 0 | Q116: =Bashan!B26 -> 0 | R116: =Bashan!C26 -> N | S116: =Bashan!D26 -> X | T116: =Bashan!N26 -> 0 | V116: 6 | W116: N | X116: Scott | Y116: 5.72 | AA116: 0 | AD116: 4 | AE116: 0
A117: =Candlewood!B27 -> 0 | B117: =Candlewood!C27 -> N | C117: =Candlewood!D27 -> X | D117: =Candlewood!N27 -> 0 | F117: 8 | G117: N | H117: Steve D | I117: 6.66 | K117: 0 | N117: 7 | O117: 0 | Q117: =Bashan!B27 -> 0 | R117: =Bashan!C27 -> N | S117: =Bashan!D27 -> X | T117: =Bashan!N27 -> 0 | V117: 7 | W117: N | X117: Ryan | Y117: 7.76 | AA117: 15.85 | AB117: 2 | AD117: 5 | AE117: 0
A118: =Candlewood!B28 -> 0 | B118: =Candlewood!C28 -> N | C118: =Candlewood!D28 -> X | D118: =Candlewood!N28 -> 0 | F118: 9 | G118: N | H118: Kevin | I118: 5.94 | K118: 7.2 | L118: 4 | N118: 8 | O118: 0 | Q118: =Bashan!B28 -> 0 | R118: =Bashan!C28 -> N | S118: =Bashan!D28 -> X | T118: =Bashan!N28 -> 0 | V118: 7 | W118: N | X118: Steve D | Y118: 8.09 | AA118: 0 | AD118: 6 | AE118: 0
A119: =Candlewood!B29 -> 0 | B119: =Candlewood!C29 -> N | C119: =Candlewood!D29 -> X | D119: =Candlewood!N29 -> 0 | F119: 9 | G119: N | H119: Peter | I119: 1.26 | K119: 0 | N119: 9 | O119: 0 | Q119: =Bashan!B29 -> 0 | R119: =Bashan!C29 -> N | S119: =Bashan!D29 -> X | T119: =Bashan!N29 -> 0 | V119: 8 | W119: Y | X119: Steve S | Y119: 1.43 | AA119: 7.535714286 | AB119: 7 | AD119: 7 | AE119: 0
B120: Macro | C120: CTL+N | D120: Teams | E120: 4 | H120: NB Avg | I120: =Candlewood!Q31 -> 2.435 | R120: Macro | S120: CTL+Q | T120: Teams | U120: 8 | X120: NB Avg | Y120: =Bashan!Q31 -> 6.105714286

Sheet YTD
B1: =P15 -> Anthony | C1: =P16 -> Armand | D1: =P17 -> Dean | E1: =P18 -> Jack | F1: =P19 -> Jason | G1: =P20 -> Jim B | H1: =P21 -> Kam | I1: =P22 -> Kevin | J1: =P23 -> Mike M | K1: =P24 -> Mike G | L1: =P25 -> Morrie | M1: =P26 -> Peter | N1: =P27 -> Rich B | O1: =P28 -> Rich T | P1: =P29 -> Ron | Q1: =P30 -> Ryan | R1: =P31 -> Scott | S1: =P32 -> Steve D | T1: =P33 -> Steve S | U1: =P34 -> Tom | V1: =P35 -> X | W1: =P36 -> X | X1: =P37 -> X | Y1: =P38 -> X | Z1: =P39 -> X | AA1: =P40 -> X
B2: =Gardner!O4 -> 1 | C2: =Bantam!O5 -> 4 | D2: =Moodus!O6 -> 1 | E2: =Moodus!O7 -> 8 | F2: =Candlewood!O8 -> 3 | G2: =Bashan!O9 -> 3 | H2: ='Twin Lakes'!O10 -> 4 | I2: =Lillinonah!O11 -> 1 | J2: =Candlewood!O12 -> 6 | K2: =Moodus!O13 -> 5 | L2: ='CT River'!O14 -> 3 | M2: =Moodus!O15 -> 4 | N2: ='CT River'!O16 -> 1 | O2: ='Twin Lakes'!O17 -> 1 | P2: =Gardner!O18 -> 3 | Q2: =Bashan!O19 -> 4 | R2: =Candlewood!O20 -> 2 | S2: =Candlewood!O21 -> 1 | T2: ='CT River'!O22 -> 8 | U2: ='Twin Lakes'!O23 -> 2 | V2: =Moodus!O24 -> 35 | W2: =Bantam!O25 -> 35 | X2: =Lillinonah!O26 -> 35 | Y2: =Candlewood!O27 -> 35 | Z2: ='Twin Lakes'!O28 -> 35 | AA2: =Bashan!O29 -> 35
B3: =Lillinonah!O4 -> 4 | C3: =Moodus!O5 -> 7 | D3: =Bantam!O6 -> 1 | E3: =Candlewood!O7 -> 8 | F3: ='Twin Lakes'!O8 -> 3 | G3: =Candlewood!O9 -> 11 | H3: =Lillinonah!O10 -> 13 | I3: =Moodus!O11 -> 2 | J3: ='CT River'!O12 -> 6 | K3: =Gardner!O13 -> 9 | L3: =Lillinonah!O14 -> 6 | M3: ='CT River'!O15 -> 5 | N3: =Gardner!O16 -> 4 | O3: =Bashan!O17 -> 1 | P3: =Candlewood!O18 -> 10 | Q3: ='Twin Lakes'!O19 -> 6 | R3: =Bantam!O20 -> 6 | S3: =Bantam!O21 -> 2 | T3: ='Twin Lakes'!O22 -> 9 | U3: =Gardner!O23 -> 7 | V3: =Gardner!O24 -> 35 | W3: =Gardner!O25 -> 35 | X3: ='CT River'!O26 -> 35 | Y3: =Lillinonah!O27 -> 35 | Z3: =Gardner!O28 -> 35 | AA3: =Moodus!O29 -> 35
B4: =Bashan!O4 -> 5 | C4: =Candlewood!O5 -> 13 | D4: =Candlewood!O6 -> 5 | E4: ='CT River'!O7 -> 11 | F4: =Lillinonah!O8 -> 3 | G4: =Moodus!O9 -> 13 | H4: =Moodus!O10 -> 15 | I4: =Bantam!O11 -> 3 | J4: =Bashan!O12 -> 7 | K4: =Candlewood!O13 -> 9 | L4: =Moodus!O14 -> 9 | M4: ='Twin Lakes'!O15 -> 8 | N4: =Bashan!O16 -> 6 | O4: =Gardner!O17 -> 2 | P4: ='Twin Lakes'!O18 -> 10 | Q4: =Lillinonah!O19 -> 7 | R4: =Lillinonah!O20 -> 9 | S4: =Lillinonah!O21 -> 2 | T4: =Gardner!O22 -> 10 | U4: ='CT River'!O23 -> 10 | V4: =Bashan!O24 -> 35 | W4: =Candlewood!O25 -> 35 | X4: =Gardner!O26 -> 35 | Y4: =Bantam!O27 -> 35 | Z4: =Bashan!O28 -> 35 | AA4: ='Twin Lakes'!O29 -> 35
B5: =Bantam!O4 -> 8 | C5: =Lillinonah!O5 -> 14 | D5: =Lillinonah!O6 -> 5 | E5: ='Twin Lakes'!O7 -> 12 | F5: =Bantam!O8 -> 5 | G5: ='Twin Lakes'!O9 -> 14 | H5: ='CT River'!O10 -> 30 | I5: =Candlewood!O11 -> 4 | J5: =Lillinonah!O12 -> 11 | K5: ='Twin Lakes'!O13 -> 16 | L5: =Bashan!O14 -> 12 | M5: =Bantam!O15 -> 9 | N5: =Bantam!O16 -> 7 | O5: ='CT River'!O17 -> 4 | P5: =Moodus!O18 -> 12 | Q5: ='CT River'!O19 -> 7 | R5: =Bashan!O20 -> 10 | S5: ='CT River'!O21 -> 2 | T5: =Moodus!O22 -> 11 | U5: =Bantam!O23 -> 12 | V5: ='CT River'!O24 -> 35 | W5: =Moodus!O25 -> 35 | X5: =Bantam!O26 -> 35 | Y5: =Bashan!O27 -> 35 | Z5: =Moodus!O28 -> 35 | AA5: =Candlewood!O29 -> 35
B6: =Moodus!O4 -> 18 | C6: =Gardner!O5 -> 15 | D6: =Gardner!O6 -> 8 | E6: =Gardner!O7 -> 14 | F6: =Gardner!O8 -> 5 | G6: =Lillinonah!O9 -> 30 | H6: =Bashan!O10 -> 30 | I6: ='Twin Lakes'!O11 -> 5 | J6: =Moodus!O12 -> 16 | K6: =Lillinonah!O13 -> 16 | L6: ='Twin Lakes'!O14 -> 17 | M6: =Bashan!O15 -> 9 | N6: =Lillinonah!O16 -> 10 | O6: =Moodus!O17 -> 6 | P6: =Bashan!O18 -> 13 | Q6: =Moodus!O19 -> 10 | R6: ='Twin Lakes'!O20 -> 11 | S6: =Bashan!O21 -> 2 | T6: =Bantam!O22 -> 11 | U6: =Moodus!O23 -> 14 | V6: =Candlewood!O24 -> 35 | W6: =Lillinonah!O25 -> 35 | X6: =Moodus!O26 -> 35 | Y6: ='Twin Lakes'!O27 -> 35 | Z6: =Candlewood!O28 -> 35 | AA6: =Bantam!O29 -> 35
B7: ='Twin Lakes'!O4 -> 19 | C7: ='CT River'!O5 -> 35 | D7: ='CT River'!O6 -> 9 | E7: =Lillinonah!O7 -> 15 | F7: =Moodus!O8 -> 30 | G7: ='CT River'!O9 -> 35 | H7: =Candlewood!O10 -> 35 | I7: =Bashan!O11 -> 8 | J7: =Gardner!O12 -> 17 | K7: =Bashan!O13 -> 35 | L7: =Bantam!O14 -> 30 | M7: =Gardner!O15 -> 11 | N7: =Candlewood!O16 -> 12 | O7: =Candlewood!O17 -> 7 | P7: =Bantam!O18 -> 30 | Q7: =Gardner!O19 -> 11 | R7: =Gardner!O20 -> 16 | S7: =Moodus!O21 -> 3 | T7: =Lillinonah!O22 -> 12 | U7: =Candlewood!O23 -> 15 | V7: =Bantam!O24 -> 35 | W7: ='CT River'!O25 -> 35 | X7: =Bashan!O26 -> 35 | Y7: =Moodus!O27 -> 35 | Z7: =Bantam!O28 -> 35 | AA7: =Gardner!O29 -> 35
B8: =Candlewood!O4 -> 30 | C8: ='Twin Lakes'!O5 -> 35 | D8: =Bashan!O6 -> 11 | E8: =Bantam!O7 -> 30 | F8: ='CT River'!O8 -> 35 | G8: =Gardner!O9 -> 35 | H8: =Gardner!O10 -> 35 | I8: ='CT River'!O11 -> 12 | J8: ='Twin Lakes'!O12 -> 18 | K8: ='CT River'!O13 -> 35 | L8: =Candlewood!O14 -> 35 | M8: =Candlewood!O15 -> 14 | N8: ='Twin Lakes'!O16 -> 13 | O8: =Lillinonah!O17 -> 8 | P8: ='CT River'!O18 -> 30 | Q8: =Candlewood!O19 -> 16 | R8: =Moodus!O20 -> 17 | S8: =Gardner!O21 -> 6 | T8: =Bashan!O22 -> 14 | U8: =Lillinonah!O23 -> 30 | V8: =Lillinonah!O24 -> 35 | W8: ='Twin Lakes'!O25 -> 35 | X8: ='Twin Lakes'!O26 -> 35 | Y8: ='CT River'!O27 -> 35 | Z8: =Lillinonah!O28 -> 35 | AA8: =Lillinonah!O29 -> 35
B9: ='CT River'!O4 -> 30 | C9: =Bashan!O5 -> 35 | D9: ='Twin Lakes'!O6 -> 15 | E9: =Bashan!O7 -> 35 | F9: =Bashan!O8 -> 35 | G9: =Bantam!O9 -> 35 | H9: =Bantam!O10 -> 35 | I9: =Gardner!O11 -> 13 | J9: =Bantam!O12 -> 30 | K9: =Bantam!O13 -> 35 | L9: =Gardner!O14 -> 35 | M9: =Lillinonah!O15 -> 35 | N9: =Moodus!O16 -> 30 | O9: =Bantam!O17 -> 10 | P9: =Lillinonah!O18 -> 35 | Q9: =Bantam!O19 -> 30 | R9: ='CT River'!O20 -> 30 | S9: ='Twin Lakes'!O21 -> 7 | T9: =Candlewood!O22 -> 35 | U9: =Bashan!O23 -> 35 | V9: ='Twin Lakes'!O24 -> 35 | W9: =Bashan!O25 -> 35 | X9: =Candlewood!O26 -> 35 | Y9: =Gardner!O27 -> 35 | Z9: ='CT River'!O28 -> 35 | AA9: ='CT River'!O29 -> 35
A10: Pts. YTD | B10: =SUM(B2:B7) -> 55 | C10: 88 | D10: 29 | E10: 68 | F10: 49 | G10: 106 | H10: 127 | I10: =SUM(I2:I7) -> 23 | J10: 63 | K10: 90 | L10: 77 | M10: 46 | N10: 40 | O10: 21 | P10: 78 | Q10: 45 | R10: =SUM(R2:R7) -> 54 | S10: 12 | T10: 61 | U10: 60 | V10: 210 | W10: 210 | X10: 210 | Y10: 210 | Z10: 210 | AA10: 210
A11: Position | B11: =RANK(B10,Pts._YTD,1) -> 10 | C11: 17 | D11: 4 | E11: 14 | F11: 8 | G11: 19 | H11: 20 | I11: 3 | J11: =RANK(J10,Pts._YTD,1) -> 13 | K11: 18 | L11: =RANK(L10,Pts._YTD,1) -> 15 | M11: 7 | N11: 5 | O11: 2 | P11: 16 | Q11: 6 | R11: 9 | S11: =RANK(S10,Pts._YTD,1) -> 1 | T11: 12 | U11: 11 | V11: 21 | W11: 21 | X11: 21 | Y11: 21 | Z11: 21 | AA11: 21
W13: Use macro ctl-f
A14: Name | B14: Position | C14: Pts. YTD | E14: Name | F14: Position | G14: Pts. YTD | I14: Total Weight | L14: Lake / River 2017 | P14: Members | Q14: NonBoater | S14: Top 3 Finishers for Each Tournament
A15: =B1 -> Anthony | B15: =B11 -> 10 | C15: =B10 -> 55 | E15: Steve D | F15: 1 | G15: 12 | I15: =P15 -> Anthony | J15: =Bashan!N4+Moodus!N4+Lillinonah!N4+Gardner!N4+'CT River'!N4+Bantam!N4+Candlewood!N4+'Twin Lakes'!N4 -> 28.56 | L15: Moodus | P15: Anthony | Q15: Y | S15: =L15 -> Moodus | U15: =L16 -> Bantam | W15: =L17 -> Gardner | Y15: =L18 -> Candlewood | AA15: =L19 -> Twin Lakes | AC15: =L20 -> Lillinonah | AE15: =L21 -> CT River | AG15: =L22 -> Bashan
A16: =C1 -> Armand | B16: =C11 -> 17 | C16: =C10 -> 88 | E16: Rich T | F16: 2 | G16: 21 | I16: Armand | J16: =Bashan!N5+Moodus!N5+Lillinonah!N5+Gardner!N5+'CT River'!N5+Bantam!N5+Candlewood!N5+'Twin Lakes'!N5 -> 22.3 | L16: Bantam | P16: Armand | Q16: N | S16: =Moodus!D6 -> Dean | T16: =Moodus!O6 -> 1 | U16: =Bantam!D6 -> Dean | V16: =Bantam!O6 -> 1 | W16: =Gardner!D4 -> Anthony | X16: =Gardner!O4 -> 1 | Y16: =Candlewood!D21 -> Steve D | Z16: =Candlewood!O21 -> 1 | AA16: ='Twin Lakes'!D17 -> Rich T | AB16: ='Twin Lakes'!O17 -> 1 | AC16: =Lillinonah!D11 -> Kevin | AD16: =Lillinonah!O11 -> 1 | AE16: ='CT River'!D16 -> Rich B | AF16: ='CT River'!O16 -> 1 | AG16: =Bashan!D17 -> Rich T | AH16: =Bashan!O17 -> 1
A17: =D1 -> Dean | B17: =D11 -> 4 | C17: =D10 -> 29 | E17: Kevin | F17: 3 | G17: 23 | I17: Dean | J17: =Bashan!N6+Moodus!N6+Lillinonah!N6+Gardner!N6+'CT River'!N6+Bantam!N6+Candlewood!N6+'Twin Lakes'!N6 -> 47.75 | L17: Gardner | P17: Dean | Q17: N | S17: =Moodus!D11 -> Kevin | T17: =Moodus!O11 -> 2 | U17: =Bantam!D21 -> Steve D | V17: =Bantam!O21 -> 2 | W17: =Gardner!D17 -> Rich T | X17: =Gardner!O17 -> 2 | Y17: =Candlewood!D20 -> Scott | Z17: =Candlewood!O20 -> 2 | AA17: ='Twin Lakes'!D23 -> Tom | AB17: ='Twin Lakes'!O23 -> 2 | AC17: =Lillinonah!D21 -> Steve D | AD17: =Lillinonah!O21 -> 2 | AE17: ='CT River'!D21 -> Steve D | AF17: ='CT River'!O21 -> 2 | AG17: =Bashan!D21 -> Steve D | AH17: =Bashan!O21 -> 2
A18: =E1 -> Jack | B18: =E11 -> 14 | C18: =E10 -> 68 | E18: Dean | F18: 4 | G18: 29 | I18: Jack | J18: =Bashan!N7+Moodus!N7+Lillinonah!N7+Gardner!N7+'CT River'!N7+Bantam!N7+Candlewood!N7+'Twin Lakes'!N7 -> 18.93 | L18: Candlewood | P18: Jack | Q18: Y | S18: =Moodus!D21 -> Steve D | T18: =Moodus!O21 -> 3 | U18: =Bantam!D11 -> Kevin | V18: =Bantam!O11 -> 3 | W18: =Gardner!D18 -> Ron | X18: =Gardner!O18 -> 3 | Y18: =Candlewood!D8 -> Jason | Z18: =Candlewood!O8 -> 3 | AA18: ='Twin Lakes'!D8 -> Jason | AB18: ='Twin Lakes'!O8 -> 3 | AC18: =Lillinonah!D8 -> Jason | AD18: =Lillinonah!O8 -> 3 | AE18: ='CT River'!D14 -> Morrie | AF18: ='CT River'!O14 -> 3 | AG18: =Bashan!D9 -> Jim B | AH18: =Bashan!O9 -> 3
A19: =F1 -> Jason | B19: =F11 -> 8 | C19: =F10 -> 49 | E19: Rich B | F19: 5 | G19: 40 | I19: Jason | J19: =Bashan!N8+Moodus!N8+Lillinonah!N8+Gardner!N8+'CT River'!N8+Bantam!N8+Candlewood!N8+'Twin Lakes'!N8 -> 36.12 | L19: Twin Lakes | P19: Jason | Q19: N | S19: =Moodus!D15 -> Peter | T19: =Moodus!O15 -> 4 | U19: =Bantam!D5 -> Armand | V19: =Bantam!O5 -> 4 | W19: =Gardner!D16 -> Rich B | X19: =Gardner!O16 -> 4 | Y19: =Candlewood!D11 -> Kevin | Z19: =Candlewood!O11 -> 4 | AA19: ='Twin Lakes'!D10 -> Kam | AB19: ='Twin Lakes'!O10 -> 4 | AC19: =Lillinonah!D4 -> Anthony | AD19: =Lillinonah!O4 -> 4 | AE19: ='CT River'!D17 -> Rich T | AF19: ='CT River'!O17 -> 4 | AG19: =Bashan!D19 -> Ryan | AH19: =Bashan!O19 -> 4
A20: =G1 -> Jim B | B20: =G11 -> 19 | C20: =G10 -> 106 | E20: Ryan | F20: 6 | G20: 45 | I20: Jim B | J20: =Bashan!N9+Moodus!N9+Lillinonah!N9+Gardner!N9+'CT River'!N9+Bantam!N9+Candlewood!N9+'Twin Lakes'!N9 -> 15.82 | L20: Lillinonah | P20: Jim B | Q20: Y | S20: =Moodus!D13 -> Mike G | T20: =Moodus!O13 -> 5 | U20: =Bantam!D8 -> Jason | V20: =Bantam!O8 -> 5 | W20: =Gardner!D8 -> Jason | X20: =Gardner!O8 -> 5 | Y20: =Candlewood!D6 -> Dean | Z20: =Candlewood!O6 -> 5 | AA20: ='Twin Lakes'!D11 -> Kevin | AB20: ='Twin Lakes'!O11 -> 5 | AC20: =Lillinonah!D6 -> Dean | AD20: =Lillinonah!O6 -> 5 | AE20: ='CT River'!D15 -> Peter | AF20: ='CT River'!O15 -> 5 | AG20: =Bashan!D4 -> Anthony | AH20: =Bashan!O4 -> 5
A21: =H1 -> Kam | B21: =H11 -> 20 | C21: =H10 -> 127 | E21: Peter | F21: 7 | G21: 46 | I21: Kam | J21: =Bashan!N10+Moodus!N10+Lillinonah!N10+Gardner!N10+'CT River'!N10+Bantam!N10+Candlewood!N10+'Twin Lakes'!N10 -> 11.3 | L21: CT River | P21: Kam | Q21: Y | S21: =Moodus!D17 -> Rich T | T21: =Moodus!O17 -> 6 | U21: =Bantam!D20 -> Scott | V21: =Bantam!O20 -> 6 | W21: =Gardner!D21 -> Steve D | X21: =Gardner!O21 -> 6 | Y21: =Candlewood!D12 -> Mike M | Z21: =Candlewood!O12 -> 6 | AA21: ='Twin Lakes'!D19 -> Ryan | AB21: ='Twin Lakes'!O19 -> 6 | AC21: =Lillinonah!D14 -> Morrie | AD21: =Lillinonah!O14 -> 6 | AE21: ='CT River'!D12 -> Mike M | AF21: ='CT River'!O12 -> 6 | AG21: =Bashan!D16 -> Rich B | AH21: =Bashan!O16 -> 6
A22: =I1 -> Kevin | B22: =I11 -> 3 | C22: =I10 -> 23 | E22: Jason | F22: 8 | G22: 49 | I22: Kevin | J22: =Bashan!N11+Moodus!N11+Lillinonah!N11+Gardner!N11+'CT River'!N11+Bantam!N11+Candlewood!N11+'Twin Lakes'!N11 -> 53.05 | L22: Bashan | P22: Kevin | Q22: N | S22: =Moodus!D5 -> Armand | T22: =Moodus!O5 -> 7 | U22: =Bantam!D16 -> Rich B | V22: =Bantam!O16 -> 7 | W22: =Gardner!D23 -> Tom | X22: =Gardner!O23 -> 7 | Y22: =Candlewood!D17 -> Rich T | Z22: =Candlewood!O17 -> 7 | AA22: ='Twin Lakes'!D21 -> Steve D | AB22: ='Twin Lakes'!O21 -> 7 | AC22: =Lillinonah!D19 -> Ryan | AD22: =Lillinonah!O19 -> 7 | AE22: ='CT River'!D19 -> Ryan | AF22: ='CT River'!O19 -> 7 | AG22: =Bashan!D12 -> Mike M | AH22: =Bashan!O12 -> 7
A23: =J1 -> Mike M | B23: =J11 -> 13 | C23: =J10 -> 63 | E23: Scott | F23: 9 | G23: 54 | I23: Mike M | J23: =Bashan!N12+Moodus!N12+Lillinonah!N12+Gardner!N12+'CT River'!N12+Bantam!N12+Candlewood!N12+'Twin Lakes'!N12 -> 20.46 | P23: Mike M | Q23: Y | S23: =Moodus!D7 -> Jack | T23: =Moodus!O7 -> 8 | U23: =Bantam!D4 -> Anthony | V23: =Bantam!O4 -> 8 | W23: =Gardner!D6 -> Dean | X23: =Gardner!O6 -> 8 | Y23: =Candlewood!D7 -> Jack | Z23: =Candlewood!O7 -> 8 | AA23: ='Twin Lakes'!D15 -> Peter | AB23: ='Twin Lakes'!O15 -> 8 | AC23: =Lillinonah!D17 -> Rich T | AD23: =Lillinonah!O17 -> 8 | AE23: ='CT River'!D22 -> Steve S | AF23: ='CT River'!O22 -> 8 | AG23: =Bashan!D11 -> Kevin | AH23: =Bashan!O11 -> 8
A24: =K1 -> Mike G | B24: =K11 -> 18 | C24: =K10 -> 90 | E24: Anthony | F24: 10 | G24: 55 | I24: Mike G | J24: =Bashan!N13+Moodus!N13+Lillinonah!N13+Gardner!N13+'CT River'!N13+Bantam!N13+Candlewood!N13+'Twin Lakes'!N13 -> 17.95 | P24: Mike G | Q24: Y | S24: =Moodus!D14 -> Morrie | T24: =Moodus!O14 -> 9 | U24: =Bantam!D15 -> Peter | V24: =Bantam!O15 -> 9 | W24: =Gardner!D13 -> Mike G | X24: =Gardner!O13 -> 9 | Y24: =Candlewood!D13 -> Mike G | Z24: =Candlewood!O13 -> 9 | AA24: ='Twin Lakes'!D22 -> Steve S | AB24: ='Twin Lakes'!O22 -> 9 | AC24: =Lillinonah!D20 -> Scott | AD24: =Lillinonah!O20 -> 9 | AE24: ='CT River'!D6 -> Dean | AF24: ='CT River'!O6 -> 9 | AG24: =Bashan!D15 -> Peter | AH24: =Bashan!O15 -> 9
A25: =L1 -> Morrie | B25: =L11 -> 15 | C25: =L10 -> 77 | E25: Tom | F25: 11 | G25: 60 | I25: Morrie | J25: =Bashan!N14+Moodus!N14+Lillinonah!N14+Gardner!N14+'CT River'!N14+Bantam!N14+Candlewood!N14+'Twin Lakes'!N14 -> 16.33 | P25: Morrie | Q25: N | S25: =Moodus!D19 -> Ryan | T25: =Moodus!O19 -> 10 | U25: =Bantam!D17 -> Rich T | V25: =Bantam!O17 -> 10 | W25: =Gardner!D22 -> Steve S | X25: =Gardner!O22 -> 10 | Y25: =Candlewood!D18 -> Ron | Z25: =Candlewood!O18 -> 10 | AA25: ='Twin Lakes'!D18 -> Ron | AB25: ='Twin Lakes'!O18 -> 10 | AC25: =Lillinonah!D16 -> Rich B | AD25: =Lillinonah!O16 -> 10 | AE25: ='CT River'!D23 -> Tom | AF25: ='CT River'!O23 -> 10 | AG25: =Bashan!D20 -> Scott | AH25: =Bashan!O20 -> 10
A26: =M1 -> Peter | B26: =M11 -> 7 | C26: =M10 -> 46 | E26: Steve S | F26: 12 | G26: 61 | I26: Peter | J26: =Bashan!N15+Moodus!N15+Lillinonah!N15+Gardner!N15+'CT River'!N15+Bantam!N15+Candlewood!N15+'Twin Lakes'!N15 -> 30 | L26: Macros | P26: Peter | Q26: Y | S26: =Moodus!D22 -> Steve S | T26: =Moodus!O22 -> 11 | U26: =Bantam!D22 -> Steve S | V26: =Bantam!O22 -> 11 | W26: =Gardner!D19 -> Ryan | X26: =Gardner!O19 -> 11 | Y26: =Candlewood!D9 -> Jim B | Z26: =Candlewood!O9 -> 11 | AA26: ='Twin Lakes'!D20 -> Scott | AB26: ='Twin Lakes'!O20 -> 11 | AC26: =Lillinonah!D12 -> Mike M | AD26: =Lillinonah!O12 -> 11 | AE26: ='CT River'!D7 -> Jack | AF26: ='CT River'!O7 -> 11 | AG26: =Bashan!D6 -> Dean | AH26: =Bashan!O6 -> 11
A27: =N1 -> Rich B | B27: =N11 -> 5 | C27: =N10 -> 40 | E27: Mike M | F27: 13 | G27: 63 | I27: Rich B | J27: =Bashan!N16+Moodus!N16+Lillinonah!N16+Gardner!N16+'CT River'!N16+Bantam!N16+Candlewood!N16+'Twin Lakes'!N16 -> 46.22 | L27: ctl-S Sort Upper Section | P27: Rich B | Q27: N | S27: =Moodus!D18 -> Ron | T27: =Moodus!O18 -> 12 | U27: =Bantam!D23 -> Tom | V27: =Bantam!O23 -> 12 | W27: =Gardner!D15 -> Peter | X27: =Gardner!O15 -> 11 | Y27: =Candlewood!D16 -> Rich B | Z27: =Candlewood!O16 -> 12 | AA27: ='Twin Lakes'!D7 -> Jack | AB27: ='Twin Lakes'!O7 -> 12 | AC27: =Lillinonah!D22 -> Steve S | AD27: =Lillinonah!O22 -> 12 | AE27: ='CT River'!D11 -> Kevin | AF27: ='CT River'!O11 -> 12 | AG27: =Bashan!D14 -> Morrie | AH27: =Bashan!O14 -> 12
A28: =O1 -> Rich T | B28: =O11 -> 2 | C28: =O10 -> 21 | E28: Jack | F28: 14 | G28: 68 | I28: Rich T | J28: =Bashan!N17+Moodus!N17+Lillinonah!N17+Gardner!N17+'CT River'!N17+Bantam!N17+Candlewood!N17+'Twin Lakes'!N17 -> 48.59 | L28: ctl-K Copy and Paste for Position | P28: Rich T | Q28: Y | S28: =Moodus!D9 -> Jim B | T28: =Moodus!O9 -> 13 | U28: =Bantam!D18 -> Ron | V28: =Bantam!O18 -> 30 | W28: =Gardner!D11 -> Kevin | X28: =Gardner!O11 -> 13 | Y28: =Candlewood!D5 -> Armand | Z28: =Candlewood!O5 -> 13 | AA28: ='Twin Lakes'!D16 -> Rich B | AB28: ='Twin Lakes'!O16 -> 13 | AC28: =Lillinonah!D10 -> Kam | AD28: =Lillinonah!O10 -> 13 | AE28: ='CT River'!D18 -> Ron | AF28: ='CT River'!O18 -> 30 | AG28: =Bashan!D18 -> Ron | AH28: =Bashan!O18 -> 13
A29: =P1 -> Ron | B29: =P11 -> 16 | C29: =P10 -> 78 | E29: Morrie | F29: 15 | G29: 77 | I29: Ron | J29: =Bashan!N18+Moodus!N18+Lillinonah!N18+Gardner!N18+'CT River'!N18+Bantam!N18+Candlewood!N18+'Twin Lakes'!N18 -> 20.04 | L29: ctl-L Sort For Lunker | P29: Ron | Q29: N | S29: =Moodus!D23 -> Tom | T29: =Moodus!O23 -> 14 | U29: =Bantam!D19 -> Ryan | V29: =Bantam!O19 -> 30 | W29: =Gardner!D7 -> Jack | X29: =Gardner!O7 -> 14 | Y29: =Candlewood!D15 -> Peter | Z29: =Candlewood!O15 -> 14 | AA29: ='Twin Lakes'!D9 -> Jim B | AB29: ='Twin Lakes'!O9 -> 14 | AC29: =Lillinonah!D5 -> Armand | AD29: =Lillinonah!O5 -> 14 | AE29: ='CT River'!D20 -> Scott | AF29: ='CT River'!O20 -> 30 | AG29: =Bashan!D22 -> Steve S | AH29: =Bashan!O22 -> 14
A30: =Q1 -> Ryan | B30: =Q11 -> 6 | C30: =Q10 -> 45 | E30: Ron | F30: 16 | G30: 78 | I30: Ryan | J30: =Bashan!N19+Moodus!N19+Lillinonah!N19+Gardner!N19+'CT River'!N19+Bantam!N19+Candlewood!N19+'Twin Lakes'!N19 -> 31.95 | L30: ctl-F Sort Top 3 Finishers | P30: Ryan | Q30: Y | S30: =Moodus!D10 -> Kam | T30: =Moodus!O10 -> 15 | U30: =Bantam!D7 -> Jack | V30: =Bantam!O7 -> 30 | W30: =Gardner!D5 -> Armand | X30: =Gardner!O5 -> 15 | Y30: =Candlewood!D23 -> Tom | Z30: =Candlewood!O23 -> 15 | AA30: ='Twin Lakes'!D6 -> Dean | AB30: ='Twin Lakes'!O6 -> 15 | AC30: =Lillinonah!D7 -> Jack | AD30: =Lillinonah!O7 -> 15 | AE30: ='CT River'!D10 -> Kam | AF30: ='CT River'!O10 -> 30 | AG30: =Bashan!D10 -> Kam | AH30: =Bashan!O10 -> 30
A31: =R1 -> Scott | B31: =R11 -> 9 | C31: =R10 -> 54 | E31: Armand | F31: 17 | G31: 88 | I31: Scott | J31: =Bashan!N20+Moodus!N20+Lillinonah!N20+Gardner!N20+'CT River'!N20+Bantam!N20+Candlewood!N20+'Twin Lakes'!N20 -> 32.15 | L31: ctl-W Sort for Total Weight | P31: Scott | Q31: N | S31: =Moodus!D12 -> Mike M | T31: =Moodus!O12 -> 16 | U31: =Bantam!D14 -> Morrie | V31: =Bantam!O14 -> 30 | W31: =Gardner!D20 -> Scott | X31: =Gardner!O20 -> 16 | Y31: =Candlewood!D19 -> Ryan | Z31: =Candlewood!O19 -> 16 | AA31: ='Twin Lakes'!D13 -> Mike G | AB31: ='Twin Lakes'!O13 -> 16 | AC31: =Lillinonah!D13 -> Mike G | AD31: =Lillinonah!O13 -> 16 | AE31: ='CT River'!D4 -> Anthony | AF31: ='CT River'!O4 -> 30 | AG31: =Bashan!D13 -> Mike G | AH31: =Bashan!O13 -> 35
A32: =S1 -> Steve D | B32: =S11 -> 1 | C32: =S10 -> 12 | E32: Mike G | F32: 18 | G32: 90 | I32: Steve D | J32: =Bashan!N21+Moodus!N21+Lillinonah!N21+Gardner!N21+'CT River'!N21+Bantam!N21+Candlewood!N21+'Twin Lakes'!N21 -> 62.12 | P32: Steve D | Q32: N | S32: =Moodus!D20 -> Scott | T32: =Moodus!O20 -> 17 | U32: =Bantam!D12 -> Mike M | V32: =Bantam!O12 -> 30 | W32: =Gardner!D12 -> Mike M | X32: =Gardner!O12 -> 17 | Y32: =Candlewood!D4 -> Anthony | Z32: =Candlewood!O4 -> 30 | AA32: ='Twin Lakes'!D14 -> Morrie | AB32: ='Twin Lakes'!O14 -> 17 | AC32: =Lillinonah!D23 -> Tom | AD32: =Lillinonah!O23 -> 30 | AE32: ='CT River'!D8 -> Jason | AF32: ='CT River'!O8 -> 35 | AG32: =Bashan!D8 -> Jason | AH32: =Bashan!O8 -> 35
A33: =T1 -> Steve S | B33: =T11 -> 12 | C33: =T10 -> 61 | E33: Jim B | F33: 19 | G33: 106 | I33: Steve S | J33: =Bashan!N22+Moodus!N22+Lillinonah!N22+Gardner!N22+'CT River'!N22+Bantam!N22+Candlewood!N22+'Twin Lakes'!N22 -> 22.37 | P33: Steve S | Q33: N | S33: =Moodus!D4 -> Anthony | T33: =Moodus!O4 -> 18 | U33: =Bantam!D9 -> Jim B | V33: =Bantam!O9 -> 35 | W33: =Gardner!D9 -> Jim B | X33: =Gardner!O9 -> 35 | Y33: =Candlewood!D14 -> Morrie | Z33: =Candlewood!O14 -> 35 | AA33: ='Twin Lakes'!D12 -> Mike M | AB33: ='Twin Lakes'!O12 -> 18 | AC33: =Lillinonah!D9 -> Jim B | AD33: =Lillinonah!O9 -> 30 | AE33: ='CT River'!D9 -> Jim B | AF33: ='CT River'!O9 -> 35 | AG33: =Bashan!D23 -> Tom | AH33: =Bashan!O23 -> 35
A34: =U1 -> Tom | B34: =U11 -> 11 | C34: =U10 -> 60 | E34: Kam | F34: 20 | G34: 127 | I34: Tom | J34: =Bashan!N23+Moodus!N23+Lillinonah!N23+Gardner!N23+'CT River'!N23+Bantam!N23+Candlewood!N23+'Twin Lakes'!N23 -> 21.53 | P34: Tom | Q34: N | S34: =Moodus!D16 -> Rich B | T34: =Moodus!O16 -> 30 | U34: =Bantam!D10 -> Kam | V34: =Bantam!O10 -> 35 | W34: =Gardner!D14 -> Morrie | X34: =Gardner!O14 -> 35 | Y34: =Candlewood!D22 -> Steve S | Z34: =Candlewood!O22 -> 35 | AA34: ='Twin Lakes'!D4 -> Anthony | AB34: ='Twin Lakes'!O4 -> 19 | AC34: =Lillinonah!D15 -> Peter | AD34: =Lillinonah!O15 -> 35 | AE34: ='CT River'!D5 -> Armand | AF34: ='CT River'!O5 -> 35 | AG34: =Bashan!D7 -> Jack | AH34: =Bashan!O7 -> 35
A35: =V1 -> X | B35: =V11 -> 21 | C35: =V10 -> 210 | E35: X | F35: 21 | G35: 210 | I35: X | J35: =Bashan!N24+Moodus!N24+Lillinonah!N24+Gardner!N24+'CT River'!N24+Bantam!N24+Candlewood!N24+'Twin Lakes'!N24 -> 0 | P35: X | Q35: N | S35: =Moodus!D8 -> Jason | T35: =Moodus!O8 -> 30 | U35: =Bantam!D13 -> Mike G | V35: =Bantam!O13 -> 35 | W35: =Gardner!D10 -> Kam | X35: =Gardner!O10 -> 35 | Y35: =Candlewood!D10 -> Kam | Z35: =Candlewood!O10 -> 35 | AA35: ='Twin Lakes'!D5 -> Armand | AB35: ='Twin Lakes'!O5 -> 35 | AC35: =Lillinonah!D18 -> Ron | AD35: =Lillinonah!O18 -> 35 | AE35: ='CT River'!D13 -> Mike G | AF35: ='CT River'!O13 -> 35 | AG35: =Bashan!D5 -> Armand | AH35: =Bashan!O5 -> 35
A36: =W1 -> X | B36: =W11 -> 21 | C36: =W10 -> 210 | E36: X | F36: 21 | G36: 210 | I36: X | J36: =Bashan!N25+Moodus!N25+Lillinonah!N25+Gardner!N25+'CT River'!N25+Bantam!N25+Candlewood!N25+'Twin Lakes'!N25 -> 0 | P36: X | Q36: N | S36: =Moodus!D24 -> X | T36: =Moodus!O24 -> 35 | U36: =Bantam!D24 -> X | V36: =Bantam!O24 -> 35 | W36: =Gardner!D24 -> X | X36: =Gardner!O24 -> 35 | Y36: =Candlewood!D24 -> X | Z36: =Candlewood!O24 -> 35 | AA36: ='Twin Lakes'!D24 -> X | AB36: ='Twin Lakes'!O24 -> 35 | AC36: =Lillinonah!D24 -> X | AD36: =Lillinonah!O24 -> 35 | AE36: ='CT River'!D24 -> X | AF36: ='CT River'!O24 -> 35 | AG36: =Bashan!D24 -> X | AH36: =Bashan!O24 -> 35
A37: =X1 -> X | B37: =X11 -> 21 | C37: =X10 -> 210 | E37: X | F37: 21 | G37: 210 | I37: X | J37: =Bashan!N26+Moodus!N26+Lillinonah!N26+Gardner!N26+'CT River'!N26+Bantam!N26+Candlewood!N26+'Twin Lakes'!N26 -> 0 | P37: X | Q37: N | S37: =Moodus!D25 -> X | T37: =Moodus!O25 -> 35 | U37: =Bantam!D25 -> X | V37: =Bantam!O25 -> 35 | W37: =Gardner!D25 -> X | X37: =Gardner!O25 -> 35 | Y37: =Candlewood!D25 -> X | Z37: =Candlewood!O25 -> 35 | AA37: ='Twin Lakes'!D25 -> X | AB37: ='Twin Lakes'!O25 -> 35 | AC37: =Lillinonah!D25 -> X | AD37: =Lillinonah!O25 -> 35 | AE37: ='CT River'!D25 -> X | AF37: ='CT River'!O25 -> 35 | AG37: =Bashan!D25 -> X | AH37: =Bashan!O25 -> 35
A38: =Y1 -> X | B38: =Y11 -> 21 | C38: =Y10 -> 210 | E38: X | F38: 21 | G38: 210 | I38: X | J38: =Bashan!N27+Moodus!N27+Lillinonah!N27+Gardner!N27+'CT River'!N27+Bantam!N27+Candlewood!N27+'Twin Lakes'!N27 -> 0 | P38: X | Q38: N | S38: =Moodus!D26 -> X | T38: =Moodus!O26 -> 35 | U38: =Bantam!D27 -> X | V38: =Bantam!O27 -> 35 | W38: =Gardner!D26 -> X | X38: =Gardner!O26 -> 35 | Y38: =Candlewood!D26 -> X | Z38: =Candlewood!O26 -> 35 | AA38: ='Twin Lakes'!D26 -> X | AB38: ='Twin Lakes'!O26 -> 35 | AC38: =Lillinonah!D26 -> X | AD38: =Lillinonah!O26 -> 35 | AE38: ='CT River'!D26 -> X | AF38: ='CT River'!O26 -> 35 | AG38: =Bashan!D26 -> X | AH38: =Bashan!O26 -> 35
A39: =Z1 -> X | B39: =Z11 -> 21 | C39: =Z10 -> 210 | E39: X | F39: 21 | G39: 210 | I39: X | J39: =Bashan!N28+Moodus!N28+Lillinonah!N28+Gardner!N28+'CT River'!N28+Bantam!N28+Candlewood!N28+'Twin Lakes'!N28 -> 0 | P39: X | Q39: N | S39: =Moodus!D27 -> X | T39: =Moodus!O27 -> 35 | U39: =Bantam!D26 -> X | V39: =Bantam!O26 -> 35 | W39: =Gardner!D27 -> X | X39: =Gardner!O27 -> 35 | Y39: =Candlewood!D27 -> X | Z39: =Candlewood!O27 -> 35 | AA39: ='Twin Lakes'!D27 -> X | AB39: ='Twin Lakes'!O27 -> 35 | AC39: =Lillinonah!D27 -> X | AD39: =Lillinonah!O27 -> 35 | AE39: ='CT River'!D27 -> X | AF39: ='CT River'!O27 -> 35 | AG39: =Bashan!D27 -> X | AH39: =Bashan!O27 -> 35
A40: =AA1 -> X | B40: =AA11 -> 21 | C40: =AA10 -> 210 | E40: X | F40: 21 | G40: 210 | I40: X | J40: =Bashan!N29+Moodus!N29+Lillinonah!N29+Gardner!N29+'CT River'!N29+Bantam!N29+Candlewood!N29+'Twin Lakes'!N29 -> 0 | P40: X | Q40: N | S40: =Moodus!D28 -> X | T40: =Moodus!O28 -> 35 | U40: =Bantam!D28 -> X | V40: =Bantam!O28 -> 35 | W40: =Gardner!D28 -> X | X40: =Gardner!O28 -> 35 | Y40: =Candlewood!D28 -> X | Z40: =Candlewood!O28 -> 35 | AA40: ='Twin Lakes'!D28 -> X | AB40: ='Twin Lakes'!O28 -> 35 | AC40: =Lillinonah!D28 -> X | AD40: =Lillinonah!O28 -> 35 | AE40: ='CT River'!D28 -> X | AF40: ='CT River'!O28 -> 35 | AG40: =Bashan!D28 -> X | AH40: =Bashan!O28 -> 35
S41: =Moodus!D29 -> X | T41: =Moodus!O29 -> 35 | U41: =Bantam!D29 -> X | V41: =Bantam!O29 -> 35 | W41: =Gardner!D29 -> X | X41: =Gardner!O29 -> 35 | Y41: =Candlewood!D29 -> X | Z41: =Candlewood!O29 -> 35 | AA41: ='Twin Lakes'!D29 -> X | AB41: ='Twin Lakes'!O29 -> 35 | AC41: =Lillinonah!D29 -> X | AD41: =Lillinonah!O29 -> 35 | AE41: ='CT River'!D29 -> X | AF41: ='CT River'!O29 -> 35 | AG41: =Bashan!D29 -> X | AH41: =Bashan!O29 -> 35
A44: Total Weight
A45: =L15 -> Moodus | C45: =L16 -> Bantam | E45: =L17 -> Gardner | G45: =L18 -> Candlewood | I45: =L19 -> Twin Lakes | K45: =L20 -> Lillinonah | M45: =L21 -> CT River | O45: =L22 -> Bashan | Q45: Lbs | S45: Total Weight YTD
A46: Name | B46: Weight | C46: Name | D46: Weight | E46: Name | F46: Weight | G46: Name | H46: Weight | I46: Name | J46: Weight | K46: Name | L46: Weight | M46: Name | N46: Weight | O46: Name | P46: Weight | Q46: Ytd | S46: Name | T46: Weight
A47: =P15 -> Anthony | B47: =Moodus!N4 -> 0.88 | C47: =P15 -> Anthony | D47: =Bantam!N4 -> 3.04 | E47: =P15 -> Anthony | F47: =Gardner!N4 -> 9.09 | G47: =P15 -> Anthony | H47: =Candlewood!N4 -> 0 | I47: =P15 -> Anthony | J47: ='Twin Lakes'!N4 -> 0.86 | K47: =P15 -> Anthony | L47: =Lillinonah!N4 -> 7.21 | M47: =P15 -> Anthony | N47: ='CT River'!N4 -> 0 | O47: =P15 -> Anthony | P47: =Bashan!N4 -> 7.48 | Q47: =SUM(A47:P47) -> 28.56 | S47: =P15 -> Anthony | T47: =Q47 -> 28.56
A48: Armand | B48: =Moodus!N5 -> 1.98 | C48: Armand | D48: =Bantam!N5 -> 11.29 | E48: Armand | F48: =Gardner!N5 -> 4.27 | G48: Armand | H48: =Candlewood!N5 -> 1.68 | I48: Armand | J48: ='Twin Lakes'!N5 -> 0 | K48: Armand | L48: =Lillinonah!N5 -> 3.08 | M48: Armand | N48: ='CT River'!N5 -> 0 | O48: Armand | P48: =Bashan!N5 -> 0 | Q48: 22.3 | S48: =P16 -> Armand | T48: =Q48 -> 22.3
A49: Dean | B49: =Moodus!N6 -> 8.4 | C49: Dean | D49: =Bantam!N6 -> 12.7 | E49: Dean | F49: =Gardner!N6 -> 7.01 | G49: Dean | H49: =Candlewood!N6 -> 5.02 | I49: Dean | J49: ='Twin Lakes'!N6 -> 3.15 | K49: Dean | L49: =Lillinonah!N6 -> 6.44 | M49: Dean | N49: ='CT River'!N6 -> 1.31 | O49: Dean | P49: =Bashan!N6 -> 3.72 | Q49: 47.75 | S49: Dean | T49: 47.75
A50: Jack | B50: =Moodus!N7 -> 1.75 | C50: Jack | D50: =Bantam!N7 -> 0 | E50: Jack | F50: =Gardner!N7 -> 4.94 | G50: Jack | H50: =Candlewood!N7 -> 3.46 | I50: Jack | J50: ='Twin Lakes'!N7 -> 5.4 | K50: Jack | L50: =Lillinonah!N7 -> 2.31 | M50: Jack | N50: ='CT River'!N7 -> 1.07 | O50: Jack | P50: =Bashan!N7 -> 0 | Q50: 18.93 | S50: Jack | T50: 18.93
A51: Jason | B51: =Moodus!N8 -> 0 | C51: Jason | D51: =Bantam!N8 -> 4.95 | E51: Jason | F51: =Gardner!N8 -> 7.56 | G51: Jason | H51: =Candlewood!N8 -> 6.32 | I51: Jason | J51: ='Twin Lakes'!N8 -> 9.51 | K51: Jason | L51: =Lillinonah!N8 -> 7.78 | M51: Jason | N51: ='CT River'!N8 -> 0 | O51: Jason | P51: =Bashan!N8 -> 0 | Q51: 36.12 | S51: Jason | T51: 36.12
A52: Jim B | B52: =Moodus!N9 -> 1.07 | C52: Jim B | D52: =Bantam!N9 -> 0 | E52: Jim B | F52: =Gardner!N9 -> 0 | G52: Jim B | H52: =Candlewood!N9 -> 2.77 | I52: Jim B | J52: ='Twin Lakes'!N9 -> 3.93 | K52: Jim B | L52: =Lillinonah!N9 -> 0 | M52: Jim B | N52: ='CT River'!N9 -> 0 | O52: Jim B | P52: =Bashan!N9 -> 8.05 | Q52: 15.82 | S52: Jim B | T52: 15.82
A53: Kam | B53: =Moodus!N10 -> 1.01 | C53: Kam | D53: =Bantam!N10 -> 0 | E53: Kam | F53: =Gardner!N10 -> 0 | G53: Kam | H53: =Candlewood!N10 -> 0 | I53: Kam | J53: ='Twin Lakes'!N10 -> 7.05 | K53: Kam | L53: =Lillinonah!N10 -> 3.24 | M53: Kam | N53: ='CT River'!N10 -> 0 | O53: Kam | P53: =Bashan!N10 -> 0 | Q53: 11.3 | S53: Kam | T53: 11.3
A54: Kevin | B54: =Moodus!N11 -> 5.21 | C54: Kevin | D54: =Bantam!N11 -> 11.38 | E54: Kevin | F54: =Gardner!N11 -> 5.89 | G54: Kevin | H54: =Candlewood!N11 -> 5.94 | I54: Kevin | J54: ='Twin Lakes'!N11 -> 6.93 | K54: Kevin | L54: =Lillinonah!N11 -> 10.59 | M54: Kevin | N54: ='CT River'!N11 -> 0.83 | O54: Kevin | P54: =Bashan!N11 -> 6.28 | Q54: 53.05 | S54: Kevin | T54: 53.05
A55: Mike M | B55: =Moodus!N12 -> 0.94 | C55: Mike M | D55: =Bantam!N12 -> 0 | E55: Mike M | F55: =Gardner!N12 -> 0.77 | G55: Mike M | H55: =Candlewood!N12 -> 4.03 | I55: Mike M | J55: ='Twin Lakes'!N12 -> 1.75 | K55: Mike M | L55: =Lillinonah!N12 -> 3.84 | M55: Mike M | N55: ='CT River'!N12 -> 2.8 | O55: Mike M | P55: =Bashan!N12 -> 6.33 | Q55: 20.46 | S55: Mike M | T55: 20.46
A56: Mike G | B56: =Moodus!N13 -> 3.15 | C56: Mike G | D56: =Bantam!N13 -> 0 | E56: Mike G | F56: =Gardner!N13 -> 6.75 | G56: Mike G | H56: =Candlewood!N13 -> 3.08 | I56: Mike G | J56: ='Twin Lakes'!N13 -> 3.05 | K56: Mike G | L56: =Lillinonah!N13 -> 1.92 | M56: Mike G | N56: ='CT River'!N13 -> 0 | O56: Mike G | P56: =Bashan!N13 -> 0 | Q56: 17.95 | S56: Mike G | T56: 17.95
A57: Morrie | B57: =Moodus!N14 -> 1.71 | C57: Morrie | D57: =Bantam!N14 -> 0 | E57: Morrie | F57: =Gardner!N14 -> 0 | G57: Morrie | H57: =Candlewood!N14 -> 0 | I57: Morrie | J57: ='Twin Lakes'!N14 -> 1.97 | K57: Morrie | L57: =Lillinonah!N14 -> 6.3 | M57: Morrie | N57: ='CT River'!N14 -> 4.02 | O57: Morrie | P57: =Bashan!N14 -> 2.33 | Q57: 16.33 | S57: Morrie | T57: 16.33
A58: Peter | B58: =Moodus!N15 -> 3.97 | C58: Peter | D58: =Bantam!N15 -> 2.7 | E58: Peter | F58: =Gardner!N15 -> 6.48 | G58: Peter | H58: =Candlewood!N15 -> 1.26 | I58: Peter | J58: ='Twin Lakes'!N15 -> 6.66 | K58: Peter | L58: =Lillinonah!N15 -> 0 | M58: Peter | N58: ='CT River'!N15 -> 3.03 | O58: Peter | P58: =Bashan!N15 -> 5.9 | Q58: 30 | S58: Peter | T58: 30
A59: Rich B | B59: =Moodus!N16 -> 0 | C59: Rich B | D59: =Bantam!N16 -> 4.56 | E59: Rich B | F59: =Gardner!N16 -> 7.76 | G59: Rich B | H59: =Candlewood!N16 -> 1.75 | I59: Rich B | J59: ='Twin Lakes'!N16 -> 5.12 | K59: Rich B | L59: =Lillinonah!N16 -> 4.09 | M59: Rich B | N59: ='CT River'!N16 -> 15.72 | O59: Rich B | P59: =Bashan!N16 -> 7.22 | Q59: 46.22 | S59: Rich B | T59: 46.22
A60: Rich T | B60: =Moodus!N17 -> 2.77 | C60: Rich T | D60: =Bantam!N17 -> 1.58 | E60: Rich T | F60: =Gardner!N17 -> 8.75 | G60: Rich T | H60: =Candlewood!N17 -> 3.88 | I60: Rich T | J60: ='Twin Lakes'!N17 -> 12.9 | K60: Rich T | L60: =Lillinonah!N17 -> 5.85 | M60: Rich T | N60: ='CT River'!N17 -> 3.5 | O60: Rich T | P60: =Bashan!N17 -> 9.36 | Q60: 48.59 | S60: Rich T | T60: 48.59
A61: Ron | B61: =Moodus!N18 -> 1.1 | C61: Ron | D61: =Bantam!N18 -> 0 | E61: Ron | F61: =Gardner!N18 -> 8.27 | G61: Ron | H61: =Candlewood!N18 -> 3.01 | I61: Ron | J61: ='Twin Lakes'!N18 -> 5.67 | K61: Ron | L61: =Lillinonah!N18 -> 0 | M61: Ron | N61: ='CT River'!N18 -> 0 | O61: Ron | P61: =Bashan!N18 -> 1.99 | Q61: 20.04 | S61: Ron | T61: 20.04
A62: Ryan | B62: =Moodus!N19 -> 1.21 | C62: Ryan | D62: =Bantam!N19 -> 0 | E62: Ryan | F62: =Gardner!N19 -> 6.48 | G62: Ryan | H62: =Candlewood!N19 -> 1 | I62: Ryan | J62: ='Twin Lakes'!N19 -> 6.77 | K62: Ryan | L62: =Lillinonah!N19 -> 6.17 | M62: Ryan | N62: ='CT River'!N19 -> 2.56 | O62: Ryan | P62: =Bashan!N19 -> 7.76 | Q62: 31.95 | S62: Ryan | T62: 31.95
A63: Scott | B63: =Moodus!N20 -> 0.91 | C63: Scott | D63: =Bantam!N20 -> 4.88 | E63: Scott | F63: =Gardner!N20 -> 4.13 | G63: Scott | H63: =Candlewood!N20 -> 6.33 | I63: Scott | J63: ='Twin Lakes'!N20 -> 5.44 | K63: Scott | L63: =Lillinonah!N20 -> 4.74 | M63: Scott | N63: ='CT River'!N20 -> 0 | O63: Scott | P63: =Bashan!N20 -> 5.72 | Q63: 32.15 | S63: Scott | T63: 32.15
A64: Steve D | B64: =Moodus!N21 -> 4.96 | C64: Steve D | D64: =Bantam!N21 -> 11.77 | E64: Steve D | F64: =Gardner!N21 -> 7.29 | G64: Steve D | H64: =Candlewood!N21 -> 6.66 | I64: Steve D | J64: ='Twin Lakes'!N21 -> 6.74 | K64: Steve D | L64: =Lillinonah!N21 -> 7.85 | M64: Steve D | N64: ='CT River'!N21 -> 8.76 | O64: Steve D | P64: =Bashan!N21 -> 8.09 | Q64: 62.12 | S64: Steve D | T64: 62.12
A65: Steve S | B65: =Moodus!N22 -> 1.15 | C65: Steve S | D65: =Bantam!N22 -> 1.34 | E65: Steve S | F65: =Gardner!N22 -> 6.6 | G65: Steve S | H65: =Candlewood!N22 -> 0 | I65: Steve S | J65: ='Twin Lakes'!N22 -> 6.56 | K65: Steve S | L65: =Lillinonah!N22 -> 3.68 | M65: Steve S | N65: ='CT River'!N22 -> 1.61 | O65: Steve S | P65: =Bashan!N22 -> 1.43 | Q65: 22.37 | S65: Steve S | T65: 22.37
A66: Tom | B66: =Moodus!N23 -> 1.04 | C66: Tom | D66: =Bantam!N23 -> 1.05 | E66: Tom | F66: =Gardner!N23 -> 7.24 | G66: Tom | H66: =Candlewood!N23 -> 1.01 | I66: Tom | J66: ='Twin Lakes'!N23 -> 9.93 | K66: Tom | L66: =Lillinonah!N23 -> 0 | M66: Tom | N66: ='CT River'!N23 -> 1.26 | O66: Tom | P66: =Bashan!N23 -> 0 | Q66: 21.53 | S66: Tom | T66: 21.53
A67: X | B67: =Moodus!N24 -> 0 | C67: X | D67: =Bantam!N24 -> 0 | E67: X | F67: =Gardner!N24 -> 0 | G67: X | H67: =Candlewood!N24 -> 0 | I67: X | J67: ='Twin Lakes'!N24 -> 0 | K67: X | L67: =Lillinonah!N24 -> 0 | M67: X | N67: ='CT River'!N24 -> 0 | O67: X | P67: =Bashan!N24 -> 0 | Q67: 0 | S67: X | T67: 0
A68: X | B68: =Moodus!N25 -> 0 | C68: X | D68: =Bantam!N25 -> 0 | E68: X | F68: =Gardner!N25 -> 0 | G68: X | H68: =Candlewood!N25 -> 0 | I68: X | J68: ='Twin Lakes'!N25 -> 0 | K68: X | L68: =Lillinonah!N25 -> 0 | M68: X | N68: ='CT River'!N25 -> 0 | O68: X | P68: =Bashan!N25 -> 0 | Q68: 0 | S68: X | T68: 0
A69: X | B69: =Moodus!N26 -> 0 | C69: X | D69: =Bantam!N26 -> 0 | E69: X | F69: =Gardner!N26 -> 0 | G69: X | H69: =Candlewood!N26 -> 0 | I69: X | J69: ='Twin Lakes'!N26 -> 0 | K69: X | L69: =Lillinonah!N26 -> 0 | M69: X | N69: ='CT River'!N26 -> 0 | O69: X | P69: =Bashan!N26 -> 0 | Q69: 0 | S69: X | T69: 0
A70: X | B70: =Moodus!N27 -> 0 | C70: X | D70: =Bantam!N27 -> 0 | E70: X | F70: =Gardner!N27 -> 0 | G70: X | H70: =Candlewood!N27 -> 0 | I70: X | J70: ='Twin Lakes'!N27 -> 0 | K70: X | L70: =Lillinonah!N27 -> 0 | M70: X | N70: ='CT River'!N27 -> 0 | O70: X | P70: =Bashan!N27 -> 0 | Q70: 0 | S70: X | T70: 0
A71: X | B71: =Moodus!N28 -> 0 | C71: X | D71: =Bantam!N28 -> 0 | E71: X | F71: =Gardner!N28 -> 0 | G71: X | H71: =Candlewood!N28 -> 0 | I71: X | J71: ='Twin Lakes'!N28 -> 0 | K71: X | L71: =Lillinonah!N28 -> 0 | M71: X | N71: ='CT River'!N28 -> 0 | O71: X | P71: =Bashan!N28 -> 0 | Q71: 0 | S71: X | T71: 0
A72: X | B72: =Moodus!N29 -> 0 | C72: X | D72: =Bantam!N29 -> 0 | E72: X | F72: =Gardner!N29 -> 0 | G72: X | H72: =Candlewood!N29 -> 0 | I72: X | J72: ='Twin Lakes'!N29 -> 0 | K72: X | L72: =Lillinonah!N29 -> 0 | M72: X | N72: ='CT River'!N29 -> 0 | O72: X | P72: =Bashan!N29 -> 0 | Q72: 0 | S72: X | T72: 0
A74: Lunkers
A75: =A45 -> Moodus | D75: =C45 -> Bantam | G75: =E45 -> Gardner | J75: =G45 -> Candlewood | M75: =I45 -> Twin Lakes | P75: =K45 -> Lillinonah | S75: =M45 -> CT River | V75: =O45 -> Bashan
A76: Name | B76: Weight | C76: L or S | D76: Name | E76: Weight | F76: L or S | G76: Name | H76: Weight | I76: L or S | J76: Name | K76: Weight | L76: L or S | M76: Name | N76: Weight | O76: L or S | P76: Name | Q76: Weight | R76: L or S | S76: Name | T76: Weight | U76: L or S | V76: Name | W76: Weight | X76: L or S
A77: =$P15 -> Anthony | B77: =Moodus!J4 -> 0 | C77: =Moodus!K4 -> 0 | D77: =$P15 -> Anthony | E77: =Bantam!J4 -> 0 | F77: =Bantam!K4 -> 0 | G77: =$P15 -> Anthony | H77: =Gardner!J4 -> 0 | I77: =Gardner!K4 -> 0 | J77: =$P15 -> Anthony | K77: =Candlewood!J4 -> 0 | L77: =Candlewood!K4 -> 0 | M77: =$P15 -> Anthony | N77: ='Twin Lakes'!J4 -> 0 | O77: ='Twin Lakes'!K4 -> 0 | P77: =$P15 -> Anthony | Q77: =Lillinonah!J4 -> 0 | S77: =$P15 -> Anthony | T77: ='CT River'!J4 -> 0 | U77: ='CT River'!K4 -> 0 | V77: =$P15 -> Anthony | W77: =Bashan!J4 -> 0 | X77: =Bashan!K4 -> 0
A78: Armand | B78: =Moodus!J5 -> 0 | C78: =Moodus!K5 -> 0 | D78: Armand | E78: =Bantam!J5 -> 0 | F78: =Bantam!K5 -> 0 | G78: Armand | H78: =Gardner!J5 -> 0 | I78: =Gardner!K5 -> 0 | J78: Armand | K78: =Candlewood!J5 -> 0 | L78: =Candlewood!K5 -> 0 | M78: Armand | N78: ='Twin Lakes'!J5 -> 0 | O78: ='Twin Lakes'!K5 -> 0 | P78: Armand | Q78: =Lillinonah!J5 -> 0 | R78: =Lillinonah!K4 -> 0 | S78: Armand | T78: ='CT River'!J5 -> 0 | U78: ='CT River'!K5 -> 0 | V78: Armand | W78: =Bashan!J5 -> 0 | X78: =Bashan!K5 -> 0
A79: Dean | B79: =Moodus!J7 -> 0 | C79: =Moodus!K8 -> 0 | D79: Dean | E79: =Bantam!J6 -> 0 | F79: =Bantam!K6 -> 0 | G79: Dean | H79: =Gardner!J6 -> 0 | I79: =Gardner!K6 -> 0 | J79: Dean | K79: =Candlewood!J6 -> 0 | L79: =Candlewood!K6 -> 0 | M79: Dean | N79: ='Twin Lakes'!J6 -> 0 | O79: ='Twin Lakes'!K6 -> 0 | P79: Dean | Q79: =Lillinonah!J6 -> 0 | R79: =Lillinonah!K5 -> 0 | S79: Dean | T79: ='CT River'!J7 -> 0 | U79: ='CT River'!K7 -> 0 | V79: Dean | W79: =Bashan!J6 -> 0 | X79: =Bashan!K6 -> 0
A80: Jack | B80: =Moodus!J8 -> 0 | C80: =Moodus!K9 -> 0 | D80: Jack | E80: =Bantam!J7 -> 0 | F80: =Bantam!K7 -> 0 | G80: Jack | H80: =Gardner!J7 -> 0 | I80: =Gardner!K7 -> 0 | J80: Jack | K80: =Candlewood!J7 -> 0 | L80: =Candlewood!K7 -> 0 | M80: Jack | N80: ='Twin Lakes'!J7 -> 0 | O80: ='Twin Lakes'!K7 -> 0 | P80: Jack | Q80: =Lillinonah!J7 -> 0 | R80: =Lillinonah!K6 -> 0 | S80: Jack | T80: ='CT River'!J8 -> 0 | U80: ='CT River'!K8 -> 0 | V80: Jack | W80: =Bashan!J7 -> 0 | X80: =Bashan!K7 -> 0
A81: Jason | B81: =Moodus!J9 -> 0 | C81: =Moodus!K10 -> 0 | D81: Jason | E81: =Bantam!J8 -> 0 | F81: =Bantam!K8 -> 0 | G81: Jason | H81: =Gardner!J8 -> 0 | I81: =Gardner!K8 -> 0 | J81: Jason | K81: =Candlewood!J8 -> 0 | L81: =Candlewood!K8 -> 0 | M81: Jason | N81: ='Twin Lakes'!J8 -> 0 | O81: ='Twin Lakes'!K8 -> 0 | P81: Jason | Q81: =Lillinonah!J8 -> 0 | R81: =Lillinonah!K7 -> 0 | S81: Jason | T81: ='CT River'!J9 -> 0 | U81: ='CT River'!K9 -> 0 | V81: Jason | W81: =Bashan!J8 -> 0 | X81: =Bashan!K8 -> 0
A82: Jim B | B82: =Moodus!J10 -> 0 | C82: =Moodus!K11 -> 0 | D82: Jim B | E82: =Bantam!J9 -> 0 | F82: =Bantam!K9 -> 0 | G82: Jim B | H82: =Gardner!J9 -> 0 | I82: =Gardner!K9 -> 0 | J82: Jim B | K82: =Candlewood!J9 -> 0 | L82: =Candlewood!K9 -> 0 | M82: Jim B | N82: ='Twin Lakes'!J9 -> 0 | O82: ='Twin Lakes'!K9 -> 0 | P82: Jim B | Q82: =Lillinonah!J9 -> 0 | R82: =Lillinonah!K8 -> 0 | S82: Jim B | T82: ='CT River'!J10 -> 0 | U82: ='CT River'!K10 -> 0 | V82: Jim B | W82: =Bashan!J9 -> 0 | X82: =Bashan!K9 -> 0
A83: Kam | B83: =Moodus!J11 -> 0 | C83: =Moodus!K12 -> 0 | D83: Kam | E83: =Bantam!J10 -> 0 | F83: =Bantam!K10 -> 0 | G83: Kam | H83: =Gardner!J10 -> 0 | I83: =Gardner!K10 -> 0 | J83: Kam | K83: =Candlewood!J10 -> 0 | L83: =Candlewood!K9 -> 0 | M83: Kam | N83: ='Twin Lakes'!J10 -> 0 | O83: ='Twin Lakes'!K10 -> 0 | P83: Kam | Q83: =Lillinonah!J10 -> 0 | R83: =Lillinonah!K9 -> 0 | S83: Kam | T83: ='CT River'!J11 -> 0 | U83: ='CT River'!K11 -> 0 | V83: Kam | W83: =Bashan!J10 -> 0 | X83: =Bashan!K10 -> 0
A84: Kevin | B84: =Moodus!J13 -> 0 | C84: =Moodus!K14 -> 0 | D84: Kevin | E84: =Bantam!J13 -> 0 | F84: =Bantam!K13 -> 0 | G84: Kevin | H84: =Gardner!J11 -> 0 | I84: =Gardner!K11 -> 0 | J84: Kevin | K84: =Candlewood!J11 -> 0 | L84: =Candlewood!K10 -> 0 | M84: Kevin | N84: ='Twin Lakes'!J11 -> 0 | O84: ='Twin Lakes'!K11 -> 0 | P84: Kevin | Q84: =Lillinonah!J11 -> 0 | R84: =Lillinonah!K10 -> 0 | S84: Kevin | T84: ='CT River'!J13 -> 0 | U84: ='CT River'!K12 -> 0 | V84: Kevin | W84: =Bashan!J11 -> 0 | X84: =Bashan!K11 -> 0
A85: Mike M | B85: =Moodus!J12 -> 0 | C85: =Moodus!K13 -> 0 | D85: Mike M | E85: =Bantam!J12 -> 0 | F85: =Bantam!K12 -> 0 | G85: Mike M | H85: =Gardner!J13 -> 0 | I85: =Gardner!K13 -> 0 | J85: Mike M | K85: =Candlewood!J13 -> 0 | L85: =Candlewood!K11 -> 0 | M85: Mike M | N85: ='Twin Lakes'!J12 -> 0 | O85: ='Twin Lakes'!K13 -> 0 | P85: Mike M | Q85: =Lillinonah!J12 -> 0 | R85: =Lillinonah!K12 -> 0 | S85: Mike M | T85: ='CT River'!J14 -> 0 | U85: ='CT River'!K14 -> 0 | V85: Mike M | W85: =Bashan!J12 -> 0 | X85: =Bashan!K13 -> 0
A86: Mike G | B86: =Moodus!J14 -> 0 | C86: =Moodus!K15 -> 0 | D86: Mike G | E86: =Bantam!J14 -> 0 | F86: =Bantam!K14 -> 0 | G86: Mike G | H86: =Gardner!J12 -> 0 | I86: =Gardner!K12 -> 0 | J86: Mike G | K86: =Candlewood!J14 -> 0 | L86: =Candlewood!K13 -> 0 | M86: Mike G | N86: ='Twin Lakes'!J13 -> 0 | O86: ='Twin Lakes'!K12 -> 0 | P86: Mike G | Q86: =Lillinonah!J13 -> 0 | R86: =Lillinonah!K11 -> 0 | S86: Mike G | T86: ='CT River'!J12 -> 0 | U86: ='CT River'!K13 -> 0 | V86: Mike G | W86: =Bashan!J13 -> 0 | X86: =Bashan!K12 -> 0
A87: Morrie | B87: =Moodus!J15 -> 0 | C87: =Moodus!K16 -> 0 | D87: Morrie | E87: =Bantam!J15 -> 0 | F87: =Bantam!K15 -> 0 | G87: Morrie | H87: =Gardner!J14 -> 0 | I87: =Gardner!K14 -> 0 | J87: Mike M | K87: =Candlewood!J28 -> 0 | L87: =Candlewood!K28 -> 0 | M87: Morrie | N87: ='Twin Lakes'!J14 -> 0 | O87: ='Twin Lakes'!K14 -> 0 | P87: Morrie | Q87: =Lillinonah!J15 -> 0 | R87: =Lillinonah!K14 -> SMB | S87: Morrie | T87: ='CT River'!J15 -> 0 | U87: ='CT River'!K15 -> 0 | V87: Morrie | W87: =Bashan!J14 -> 0 | X87: =Bashan!K14 -> 0
A88: Peter | B88: =Moodus!J16 -> 0 | C88: =Moodus!K17 -> 0 | D88: Peter | E88: =Bantam!J16 -> 0 | F88: =Bantam!K16 -> 0 | G88: Peter | H88: =Gardner!J15 -> 0 | I88: =Gardner!K15 -> 0 | J88: =$P26 -> Peter | K88: =Candlewood!J15 -> 0 | L88: =Candlewood!K14 -> 0 | M88: Peter | N88: ='Twin Lakes'!J15 -> 0 | O88: ='Twin Lakes'!K15 -> 0 | P88: Peter | Q88: =Lillinonah!J16 -> 0 | R88: =Lillinonah!K15 -> 0 | S88: Peter | T88: ='CT River'!J17 -> 0 | U88: ='CT River'!K17 -> 0 | V88: Peter | W88: =Bashan!J15 -> 0 | X88: =Bashan!K15 -> 0
A89: Rich B | B89: =Moodus!J17 -> 0 | C89: =Moodus!K18 -> 0 | D89: Rich B | E89: =Bantam!J17 -> 0 | F89: =Bantam!K17 -> 0 | G89: Rich B | H89: =Gardner!J16 -> 0 | I89: =Gardner!K16 -> 0 | J89: Rich B | K89: =Candlewood!J16 -> 0 | L89: =Candlewood!K15 -> 0 | M89: Rich B | N89: ='Twin Lakes'!J16 -> 0 | O89: ='Twin Lakes'!K16 -> 0 | P89: Rich B | Q89: =Lillinonah!J17 -> 0 | R89: =Lillinonah!K16 -> 0 | S89: Rich B | T89: ='CT River'!J18 -> 0 | U89: ='CT River'!K18 -> 0 | V89: Rich B | W89: =Bashan!J16 -> 0 | X89: =Bashan!K16 -> 0
A90: Rich T | B90: =Moodus!J18 -> 0 | C90: =Moodus!K19 -> 0 | D90: Rich T | E90: =Bantam!J18 -> 0 | F90: =Bantam!K18 -> 0 | G90: Rich T | H90: =Gardner!J18 -> 0 | I90: =Gardner!K18 -> 0 | J90: Rich T | K90: =Candlewood!J17 -> 0 | L90: =Candlewood!K16 -> 0 | M90: Rich T | N90: ='Twin Lakes'!J17 -> 0 | O90: ='Twin Lakes'!K16 -> 0 | P90: Rich T | Q90: =Lillinonah!J18 -> 0 | R90: =Lillinonah!K17 -> 0 | S90: Rich T | T90: ='CT River'!J19 -> 0 | U90: ='CT River'!K19 -> 0 | V90: Rich T | W90: =Bashan!J17 -> 0 | X90: =Bashan!K17 -> 0
A91: Ron | B91: =Moodus!J19 -> 0 | C91: =Moodus!K20 -> 0 | D91: Ron | E91: =Bantam!J19 -> 0 | F91: =Bantam!K19 -> 0 | G91: Ron | H91: =Gardner!J19 -> 0 | I91: =Gardner!K19 -> 0 | J91: Ron | K91: =Candlewood!J18 -> 0 | L91: =Candlewood!K17 -> 0 | M91: Ron | N91: ='Twin Lakes'!J18 -> 0 | O91: ='Twin Lakes'!K17 -> 0 | P91: Ron | Q91: =Lillinonah!J19 -> 0 | R91: =Lillinonah!K18 -> 0 | S91: Ron | T91: ='CT River'!J20 -> 0 | U91: ='CT River'!K20 -> 0 | V91: Ron | W91: =Bashan!J18 -> 0 | X91: =Bashan!K18 -> 0
A92: Ryan | B92: =Moodus!J20 -> 0 | C92: =Moodus!K21 -> 0 | D92: Ryan | E92: =Bantam!J20 -> 0 | F92: =Bantam!K20 -> 0 | G92: Ryan | H92: =Gardner!J20 -> 0 | I92: =Gardner!K20 -> 0 | J92: Ryan | K92: =Candlewood!J19 -> 0 | L92: =Candlewood!K18 -> 0 | M92: Ryan | N92: ='Twin Lakes'!J19 -> 0 | O92: ='Twin Lakes'!K18 -> 0 | P92: Ryan | Q92: =Lillinonah!J20 -> 0 | R92: =Lillinonah!K19 -> 0 | S92: Ryan | T92: ='CT River'!J21 -> 0 | U92: ='CT River'!K21 -> 0 | V92: Ryan | W92: =Bashan!J19 -> 0 | X92: =Bashan!K19 -> 0
A93: Scott | B93: =Moodus!J21 -> 0 | C93: =Moodus!K22 -> 0 | D93: Scott | E93: =Bantam!J21 -> 0 | F93: =Bantam!K21 -> 0 | G93: Scott | H93: =Gardner!J21 -> 0 | I93: =Gardner!K21 -> 0 | J93: Scott | K93: =Candlewood!J20 -> 0 | L93: =Candlewood!K19 -> 0 | M93: Scott | N93: ='Twin Lakes'!J20 -> 0 | O93: ='Twin Lakes'!K19 -> 0 | P93: Scott | Q93: =Lillinonah!J21 -> 0 | R93: =Lillinonah!K20 -> 0 | S93: Scott | T93: ='CT River'!J22 -> 0 | U93: ='CT River'!K22 -> 0 | V93: Scott | W93: =Bashan!J20 -> 0 | X93: =Bashan!K20 -> 0
A94: Steve D | B94: =Moodus!J22 -> 0 | C94: =Moodus!K23 -> 0 | D94: Steve D | E94: =Bantam!J22 -> 0 | F94: =Bantam!K22 -> 0 | G94: Steve D | H94: =Gardner!J22 -> 0 | I94: =Gardner!K22 -> 0 | J94: Steve D | K94: =Candlewood!J21 -> 0 | L94: =Candlewood!K20 -> 0 | M94: Steve D | N94: ='Twin Lakes'!J21 -> 0 | O94: ='Twin Lakes'!K20 -> 0 | P94: Steve D | Q94: =Lillinonah!J22 -> 0 | R94: =Lillinonah!K21 -> 0 | S94: Steve D | T94: ='CT River'!J23 -> 0 | U94: ='CT River'!K23 -> 0 | V94: Steve D | W94: =Bashan!J22 -> 0 | X94: =Bashan!K22 -> 0
A95: Steve S | B95: =Moodus!J23 -> 0 | C95: =Moodus!K24 -> 0 | D95: Steve S | E95: =Bantam!J23 -> 0 | F95: =Bantam!K23 -> 0 | G95: Steve S | H95: =Gardner!J23 -> 0 | I95: =Gardner!K23 -> 0 | J95: Steve S | K95: =Candlewood!J22 -> 0 | L95: =Candlewood!K21 -> 0 | M95: Steve S | N95: ='Twin Lakes'!J22 -> 0 | O95: ='Twin Lakes'!K21 -> 0 | P95: Steve S | Q95: =Lillinonah!J23 -> 0 | R95: =Lillinonah!K22 -> 0 | S95: Steve S | T95: ='CT River'!J24 -> 0 | U95: ='CT River'!K24 -> 0 | V95: Steve S | W95: =Bashan!J23 -> 0 | X95: =Bashan!K23 -> 0
A96: Tom | B96: =Moodus!J24 -> 0 | C96: =Moodus!K25 -> 0 | D96: Tom | E96: =Bantam!J24 -> 0 | F96: =Bantam!K24 -> 0 | G96: Tom | H96: =Gardner!J24 -> 0 | I96: =Gardner!K24 -> 0 | J96: Tom | K96: =Candlewood!J23 -> 0 | L96: =Candlewood!K22 -> 0 | M96: Tom | N96: ='Twin Lakes'!J24 -> 0 | O96: ='Twin Lakes'!K23 -> LMB | P96: Tom | Q96: =Lillinonah!J24 -> 0 | R96: =Lillinonah!K23 -> 0 | S96: Tom | T96: ='CT River'!J25 -> 0 | U96: ='CT River'!K25 -> 0 | V96: Tom | W96: =Bashan!J24 -> 0 | X96: =Bashan!K24 -> 0
A97: X | B97: =Moodus!J25 -> 0 | C97: =Moodus!K26 -> 0 | D97: X | E97: =Bantam!J25 -> 0 | F97: =Bantam!K25 -> 0 | G97: X | H97: =Gardner!J25 -> 0 | I97: =Gardner!K25 -> 0 | J97: X | K97: =Candlewood!J24 -> 0 | L97: =Candlewood!K23 -> 0 | M97: X | N97: ='Twin Lakes'!J25 -> 0 | O97: ='Twin Lakes'!K24 -> 0 | P97: X | Q97: =Lillinonah!J25 -> 0 | R97: =Lillinonah!K24 -> 0 | S97: X | T97: ='CT River'!J26 -> 0 | U97: ='CT River'!K26 -> 0 | V97: X | W97: =Bashan!J25 -> 0 | X97: =Bashan!K25 -> 0
A98: X | B98: =Moodus!J26 -> 0 | C98: =Moodus!K27 -> 0 | D98: X | E98: =Bantam!J26 -> 0 | F98: =Bantam!K26 -> 0 | G98: X | H98: =Gardner!J26 -> 0 | I98: =Gardner!K26 -> 0 | J98: X | K98: =Candlewood!J25 -> 0 | L98: =Candlewood!K24 -> 0 | M98: X | N98: ='Twin Lakes'!J26 -> 0 | O98: ='Twin Lakes'!K25 -> 0 | P98: X | Q98: =Lillinonah!J26 -> 0 | R98: =Lillinonah!K25 -> 0 | S98: X | T98: ='CT River'!J27 -> 0 | U98: ='CT River'!K27 -> 0 | V98: X | W98: =Bashan!J26 -> 0 | X98: =Bashan!K26 -> 0
A99: X | B99: =Moodus!J27 -> 0 | C99: =Moodus!K28 -> 0 | D99: X | E99: =Bantam!J27 -> 0 | F99: =Bantam!K27 -> 0 | G99: X | H99: =Gardner!J27 -> 0 | I99: =Gardner!K27 -> 0 | J99: X | K99: =Candlewood!J26 -> 0 | L99: =Candlewood!K25 -> 0 | M99: X | N99: ='Twin Lakes'!J27 -> 0 | O99: ='Twin Lakes'!K26 -> 0 | P99: X | Q99: =Lillinonah!J27 -> 0 | R99: =Lillinonah!K26 -> 0 | S99: X | T99: ='CT River'!J28 -> 0 | U99: ='CT River'!K28 -> 0 | V99: X | W99: =Bashan!J27 -> 0 | X99: =Bashan!K27 -> 0
A100: X | B100: 0 | C100: =Moodus!K7 -> 0 | D100: X | E100: =Bantam!J28 -> 0 | F100: =Bantam!K28 -> 0 | G100: X | H100: =Gardner!J28 -> 0 | I100: =Gardner!K28 -> 0 | J100: X | K100: =Candlewood!J27 -> 0 | L100: =Candlewood!K26 -> 0 | M100: X | N100: ='Twin Lakes'!J28 -> 0 | O100: ='Twin Lakes'!K27 -> 0 | P100: X | Q100: =Lillinonah!J28 -> 0 | R100: =Lillinonah!K27 -> 0 | S100: X | T100: ='CT River'!J29 -> 0 | U100: ='CT River'!K29 -> 0 | V100: X | W100: =Bashan!J28 -> 0 | X100: =Bashan!K28 -> 0
A101: Dean | B101: =Moodus!J6 -> 5.84 | C101: =Moodus!K6 -> LMB | D101: Kevin | E101: =Bantam!J11 -> 5.73 | F101: =Bantam!K11 -> LMB | G101: Rich T | H101: =Gardner!J17 -> 3.85 | I101: =Gardner!K17 -> LMB | J101: X | K101: =Candlewood!J28 -> 0 | L101: =Candlewood!K27 -> 0 | M101: X | N101: ='Twin Lakes'!J28 -> 0 | O101: ='Twin Lakes'!K28 -> 0 | P101: =AE39 -> X | Q101: =Lillinonah!J28 -> 0 | R101: =Lillinonah!K28 -> 0 | S101: =$P39 -> X | T101: ='CT River'!J16 -> 4.43 | U101: ='CT River'!K16 -> SMB | V101: X | W101: =Bashan!J29 -> 0 | X101: =Bashan!K29 -> 0
A102: =$P40 -> X | B102: =Moodus!J6 -> 5.84 | C102: =Moodus!K8 -> 0 | D102: =$P40 -> X | E102: =Bantam!J11 -> 5.73 | F102: =Bantam!K11 -> LMB | H102: =Gardner!J17 -> 3.85 | I102: =Gardner!K17 -> LMB | J102: =J101 -> X | K102: =Candlewood!J12 -> 4.03 | L102: =Candlewood!K12 -> LMB | M102: =$P40 -> X | N102: ='Twin Lakes'!J23 -> 4.55 | O102: ='Twin Lakes'!K22 -> 0 | P102: =$P40 -> X | Q102: =Lillinonah!J14 -> 4.3 | R102: =Lillinonah!K13 -> 0 | S102: =$P40 -> X | T102: ='CT River'!J16 -> 4.43 | U102: ='CT River'!K6 -> 0 | V102: =$P40 -> X | W102: =Bashan!J21 -> 2.59 | X102: =Bashan!K21 -> LMB
A103: =A102 -> X | B103: 5.84 | C103: 0 | D103: X | E103: 5.73 | F103: LMB | G103: 0 | H103: 3.85 | I103: LMB | J103: =J87 -> Mike M | K103: =K102 -> 4.03 | L103: =L102 -> LMB | M103: =M96 -> Tom | N103: =N102 -> 4.55 | O103: =O96 -> LMB | P103: =P87 -> Morrie | Q103: =Q102 -> 4.3 | R103: =R87 -> SMB | S103: Rich B | T103: =T102 -> 4.43 | U103: SMB | V103: =V94 -> Steve D | W103: =W102 -> 2.59 | X103: =X102 -> LMB

Sheet Report
A1: MVBC 2017 Year-To-Date Report
A3: Individual Standings | E3: Lunkers | K3: Individual Adj'd Total Weight
A4: Name | B4: Position | C4: Points | E4: Lake / River | F4: Name | G4: Weight | H4: Species | I4: Trophy | K4: Name | L4: Adj'd Weight
A5: =YTD!E15 -> Steve D | B5: =YTD!F15 -> 1 | C5: =YTD!G15 -> 12 | E5: =YTD!L15 -> Moodus | F5: Dean | G5: =YTD!B103 -> 5.84 | H5: LMB | I5: =IF((H5="LMB")*AND(G5>=6),"Yes",IF((H5="SMB")*AND(G5>=4),"Yes","No")) -> No | K5: =YTD!S64 -> Steve D | L5: =YTD!T64 -> 62.12
A6: =YTD!E16 -> Rich T | B6: =YTD!F16 -> 2 | C6: =YTD!G16 -> 21 | E6: =YTD!L16 -> Bantam | F6: Kevin | G6: =YTD!E103 -> 5.73 | H6: =IF(YTD!F103=0,"N/A",YTD!F103) -> LMB | I6: =IF((H6="LMB")*AND(G6>=6),"Yes",IF((H6="SMB")*AND(G6>=4),"Yes","No")) -> No | K6: =YTD!S54 -> Kevin | L6: =YTD!T54 -> 53.05
A7: =YTD!E17 -> Kevin | B7: =YTD!F17 -> 3 | C7: =YTD!G17 -> 23 | E7: =YTD!L17 -> Gardner | F7: Rich T | G7: =YTD!H103 -> 3.85 | H7: =IF(YTD!I103=0,"N/A",YTD!I103) -> LMB | I7: No | K7: =YTD!S60 -> Rich T | L7: =YTD!T60 -> 48.59
A8: =YTD!E18 -> Dean | B8: =YTD!F18 -> 4 | C8: =YTD!G18 -> 29 | E8: =YTD!L18 -> Candlewood | F8: =IF(YTD!J103="X","N/A",YTD!J103) -> Mike M | G8: =YTD!K103 -> 4.03 | H8: =IF(YTD!L103=0,"N/A",YTD!L103) -> LMB | I8: No | K8: =YTD!S49 -> Dean | L8: =YTD!T49 -> 47.75
A9: =YTD!E19 -> Rich B | B9: =YTD!F19 -> 5 | C9: =YTD!G19 -> 40 | E9: =YTD!L19 -> Twin Lakes | F9: =IF(YTD!M103="X","N/A",YTD!M103) -> Tom | G9: =YTD!N103 -> 4.55 | H9: =IF(YTD!O103=0,"N/A",YTD!O103) -> LMB | I9: =IF((H9="LMB")*AND(G9>=6),"Yes",IF((H9="SMB")*AND(G9>=4),"Yes","No")) -> No | K9: =YTD!S59 -> Rich B | L9: =YTD!T59 -> 46.22
A10: =YTD!E20 -> Ryan | B10: =YTD!F20 -> 6 | C10: =YTD!G20 -> 45 | E10: =YTD!L20 -> Lillinonah | F10: =IF(YTD!P103="X","N/A",YTD!P103) -> Morrie | G10: =YTD!Q103 -> 4.3 | H10: =IF(YTD!R103=0,"N/A",YTD!R103) -> SMB | I10: =IF((H10="LMB")*AND(G10>=6),"Yes",IF((H10="SMB")*AND(G10>=4),"Yes","No")) -> Yes | K10: =YTD!S51 -> Jason | L10: =YTD!T51 -> 36.12
A11: =YTD!E21 -> Peter | B11: =YTD!F21 -> 7 | C11: =YTD!G21 -> 46 | E11: =YTD!L21 -> CT River | F11: =IF(YTD!S103="X","N/A",YTD!S103) -> Rich B | G11: =YTD!T103 -> 4.43 | H11: =IF(YTD!U103=0,"N/A",YTD!U103) -> SMB | I11: Yes | K11: =YTD!S63 -> Scott | L11: =YTD!T63 -> 32.15
A12: =YTD!E22 -> Jason | B12: =YTD!F22 -> 8 | C12: =YTD!G22 -> 49 | E12: =YTD!L22 -> Bashan | F12: =IF(YTD!V103="X","N/A",YTD!V103) -> Steve D | G12: =YTD!W103 -> 2.59 | H12: =IF(YTD!X103=0,"N/A",YTD!X103) -> LMB | I12: =IF((H12="LMB")*AND(G12>=6),"Yes",IF((H12="SMB")*AND(G12>=4),"Yes","No")) -> No | K12: =YTD!S62 -> Ryan | L12: =YTD!T62 -> 31.95
A13: =YTD!E23 -> Scott | B13: =YTD!F23 -> 9 | C13: =YTD!G23 -> 54 | K13: =YTD!S58 -> Peter | L13: =YTD!T58 -> 30
A14: =YTD!E24 -> Anthony | B14: =YTD!F24 -> 10 | C14: =YTD!G24 -> 55 | E14: Statistics | K14: =YTD!S47 -> Anthony | L14: =YTD!T47 -> 28.56
A15: =YTD!E25 -> Tom | B15: =YTD!F25 -> 11 | C15: =YTD!G25 -> 60 | E15: Lake / River | F15: Anglers | G15: Fish | H15: Total Wt | I15: Avg Wt | K15: =YTD!S65 -> Steve S | L15: =YTD!T65 -> 22.37
A16: =YTD!E26 -> Steve S | B16: =YTD!F26 -> 12 | C16: =YTD!G26 -> 61 | E16: =YTD!L15 -> Moodus | F16: =Moodus!E30 -> 20 | G16: =Moodus!M30 -> 38 | H16: =Moodus!L30 -> 43.21 | I16: =IF(G16=0,0,H16/G16) -> 1.137105263 | K16: =YTD!S48 -> Armand | L16: =YTD!T48 -> 22.3
A17: =YTD!E27 -> Mike M | B17: =YTD!F27 -> 13 | C17: =YTD!G27 -> 63 | E17: =YTD!L16 -> Bantam | F17: =Bantam!E30 -> 17 | G17: =Bantam!M30 -> 34 | H17: =Bantam!L30 -> 71.24 | I17: 2.095294118 | K17: =YTD!S66 -> Tom | L17: =YTD!T66 -> 21.53
A18: =YTD!E28 -> Jack | B18: =YTD!F28 -> 14 | C18: =YTD!G28 -> 68 | E18: =YTD!L17 -> Gardner | F18: =Gardner!E30 -> 17 | G18: =Gardner!M30 -> 73 | H18: =Gardner!L30 -> 109.88 | I18: 1.505205479 | K18: =YTD!S55 -> Mike M | L18: =YTD!T55 -> 20.46
A19: =YTD!E29 -> Morrie | B19: =YTD!F29 -> 15 | C19: =YTD!G29 -> 77 | E19: =YTD!L18 -> Candlewood | F19: =Candlewood!E30 -> 17 | G19: =Candlewood!M30 -> 32 | H19: =Candlewood!L30 -> 57.2 | I19: 1.7875 | K19: =YTD!S61 -> Ron | L19: =YTD!T61 -> 20.04
A20: =YTD!E30 -> Ron | B20: =YTD!F30 -> 16 | C20: =YTD!G30 -> 78 | E20: =YTD!L19 -> Twin Lakes | F20: ='Twin Lakes'!E30 -> 19 | G20: ='Twin Lakes'!M30 -> 66 | H20: ='Twin Lakes'!L30 -> 109.79 | I20: 1.663484848 | K20: =YTD!S50 -> Jack | L20: =YTD!T50 -> 18.93
A21: =YTD!E31 -> Armand | B21: =YTD!F31 -> 17 | C21: =YTD!G31 -> 88 | E21: =YTD!L20 -> Lillinonah | F21: =Lillinonah!E30 -> 18 | G21: =Lillinonah!M30 -> 56 | H21: =Lillinonah!L30 -> 86.49 | I21: 1.544464286 | K21: =YTD!S56 -> Mike G | L21: =YTD!T56 -> 17.95
A22: =YTD!E32 -> Mike G | B22: =YTD!F32 -> 18 | C22: =YTD!G32 -> 90 | E22: =YTD!L21 -> CT River | F22: ='CT River'!E30 -> 16 | G22: ='CT River'!M30 -> 27 | H22: ='CT River'!L30 -> 46.47 | I22: 1.721111111 | K22: =YTD!S57 -> Morrie | L22: =YTD!T57 -> 16.33
A23: =YTD!E33 -> Jim B | B23: =YTD!F33 -> 19 | C23: =YTD!G33 -> 106 | E23: =YTD!L22 -> Bashan | F23: =Bashan!E30 -> 15 | G23: =Bashan!M30 -> 55 | H23: =Bashan!L30 -> 82.06 | I23: 1.492 | K23: =YTD!S52 -> Jim B | L23: =YTD!T52 -> 15.82
A24: =YTD!E34 -> Kam | B24: =YTD!F34 -> 20 | C24: =YTD!G34 -> 127 | K24: =YTD!S53 -> Kam | L24: =YTD!T53 -> 11.3
A25: =YTD!E35 -> X | B25: =YTD!F35 -> 21 | C25: =YTD!G35 -> 210 | E25: Winning Teams | K25: =YTD!S67 -> X | L25: =YTD!T67 -> 0
A26: =YTD!E36 -> X | B26: =YTD!F36 -> 21 | C26: =YTD!G36 -> 210 | E26: Lake / River | F26: Team Number | H26: Total Weight | K26: =YTD!S68 -> X | L26: =YTD!T68 -> 0
A27: =YTD!E37 -> X | B27: =YTD!F37 -> 21 | C27: =YTD!G37 -> 210 | E27: =YTD!L15 -> Moodus | F27: =IF(Teams!N4=20,"N/A",Teams!N4) -> 2 | H27: =Teams!O4 -> 9.47 | K27: =YTD!S69 -> X | L27: =YTD!T69 -> 0
A28: =YTD!E38 -> X | B28: =YTD!F38 -> 21 | C28: =YTD!G38 -> 210 | E28: =YTD!L16 -> Bantam | F28: =IF(Teams!N34=20,"N/A",Teams!N34) -> 2 | H28: =Teams!O34 -> 16.65 | K28: =YTD!S70 -> X | L28: =YTD!T70 -> 0
A29: =YTD!E39 -> X | B29: =YTD!F39 -> 21 | C29: =YTD!G39 -> 210 | E29: =YTD!L17 -> Gardner | F29: =IF(Teams!N64=20,"N/A",Teams!N64) -> 5 | H29: =Teams!O64 -> 15.99 | K29: =YTD!S71 -> X | L29: =YTD!T71 -> 0
A30: =YTD!E40 -> X | B30: =YTD!F40 -> 21 | C30: =YTD!G40 -> 210 | E30: =YTD!L18 -> Candlewood | F30: =IF(Teams!N94=20,"N/A",Teams!N94) -> 3 | H30: =Teams!O94 -> 9.4 | K30: =YTD!S72 -> X | L30: =YTD!T72 -> 0
E31: =YTD!L19 -> Twin Lakes | F31: =IF(Teams!AD4=20,"N/A",Teams!AD4) -> 4 | H31: =Teams!AE4 -> 19.83
E32: =YTD!L20 -> Lillinonah | F32: =IF(Teams!AD34=20,"N/A",Teams!AD34) -> 8 | H32: =Teams!AE34 -> 14.99
E33: =YTD!L21 -> CT River | F33: =IF(Teams!AD64=20,"N/A",Teams!AD64) -> 2 | H33: =Teams!AE64 -> 15.72
E34: =YTD!L22 -> Bashan | F34: =IF(Teams!AD94=20,"N/A",Teams!AD94) -> 5 | H34: =Teams!AE94 -> 16.84

Sheet Sheet1
H6: =P15 -> 0
H7: 0
H8: 0
H9: 0
H10: 0
H11: 0
H12: 0
H13: 0
H14: 0
H15: 0
H16: 0
H17: 0
H18: 0
H19: 0
H20: 0
H21: 0
H22: 0
H23: 0
H24: 0
H25: 0
H26: 0
